Transaction Date,Local Authority Department,Beneficiary,Purpose of Expenditure,Amount (excluding VAT),Non Recoverable VAT,Merchant Category
 01-11-2023,oneSource Non-Shared LBH,Matrix SCM Ltd,Agency Staff,692.42,0.00,COMMERCIAL SUPPLIER 
 09-11-2023,oneSource Non-Shared LBH,Civica UK Ltd_a,Ict Maintenance And Support,840.00,0.00,COMMERCIAL SUPPLIER 
 01-11-2023,oneSource Non-Shared LBH,Matrix SCM Ltd,Agency Staff,1038.63,0.00,COMMERCIAL SUPPLIER 
 01-11-2023,oneSource Non-Shared LBH,Matrix SCM Ltd,Agency Staff,1153.14,0.00,COMMERCIAL SUPPLIER 
 22-11-2023,oneSource Non-Shared LBH,Matrix SCM Ltd,Agency Staff,1153.14,0.00,COMMERCIAL SUPPLIER 
 01-11-2023,oneSource Non-Shared LBH,Matrix SCM Ltd,Agency Staff,1387.88,0.00,COMMERCIAL SUPPLIER 
 22-11-2023,oneSource Non-Shared LBH,Matrix SCM Ltd,Agency Staff,1729.71,0.00,COMMERCIAL SUPPLIER 
 22-11-2023,oneSource Non-Shared LBH,Matrix SCM Ltd,Agency Staff,1729.71,0.00,COMMERCIAL SUPPLIER 
 15-11-2023,oneSource Non-Shared LBH,Matrix SCM Ltd,Agency Staff,1773.60,0.00,COMMERCIAL SUPPLIER 
 01-11-2023,oneSource Non-Shared LBH,Matrix SCM Ltd,Agency Staff,2081.82,0.00,COMMERCIAL SUPPLIER 
 01-11-2023,oneSource Non-Shared LBH,Matrix SCM Ltd,Agency Staff,2217.00,0.00,COMMERCIAL SUPPLIER 
 01-11-2023,oneSource Non-Shared LBH,Matrix SCM Ltd,Agency Staff,2217.00,0.00,COMMERCIAL SUPPLIER 
 15-11-2023,oneSource Non-Shared LBH,Matrix SCM Ltd,Agency Staff,2217.00,0.00,COMMERCIAL SUPPLIER 
 15-11-2023,oneSource Non-Shared LBH,Matrix SCM Ltd,Agency Staff,2217.00,0.00,COMMERCIAL SUPPLIER 
 29-11-2023,oneSource Non-Shared LBH,Matrix SCM Ltd,Agency Staff,2217.00,0.00,COMMERCIAL SUPPLIER 
 29-11-2023,oneSource Non-Shared LBH,Matrix SCM Ltd,Agency Staff,2217.00,0.00,COMMERCIAL SUPPLIER 
 15-11-2023,oneSource Non-Shared LBH,Matrix SCM Ltd,Agency Staff,2310.50,0.00,COMMERCIAL SUPPLIER 
 15-11-2023,oneSource Non-Shared LBH,Matrix SCM Ltd,Agency Staff,2310.50,0.00,COMMERCIAL SUPPLIER 
 22-11-2023,oneSource Non-Shared LBH,Matrix SCM Ltd,Agency Staff,2310.50,0.00,COMMERCIAL SUPPLIER 
 15-11-2023,oneSource Non-Shared LBH,Transunion International (UK) Limited,Professional Services - General,2719.60,0.00, 
 22-11-2023,oneSource Non-Shared LBH,Matrix SCM Ltd,Agency Staff,2775.76,0.00,COMMERCIAL SUPPLIER 
 10-11-2023,oneSource Non-Shared LBH,Computershare Voucher Services,Private Contractors Payment - Other,3438.00,0.00,COMMERCIAL SUPPLIER 
 22-11-2023,oneSource Non-Shared LBH,Matrix SCM Ltd,Agency Staff,3469.70,0.00,COMMERCIAL SUPPLIER 
 22-11-2023,oneSource Non-Shared LBH,Matrix SCM Ltd,Agency Staff,3469.70,0.00,COMMERCIAL SUPPLIER 
 29-11-2023,oneSource Non-Shared LBH,London Riverside Bid Ltd,Consultancy Fees,3742.63,0.00,COMMERCIAL SUPPLIER 
 07-11-2023,oneSource Non-Shared LBH,The Disablement Association of Barking and Dagenham t/as DABD (UK),Client Transport,15166.00,0.00,COMMERCIAL SUPPLIER 
 16-11-2023,oneSource Non-Shared LBH,Romford Town Management Partnership Ltd,Consultancy Fees,38213.53,0.00,NON COMMERCIAL SUPPLIER 
 17-11-2023,oneSource Non-Shared LBH,The Disablement Association of Barking and Dagenham t/as DABD (UK),Client Transport,60000.00,0.00,COMMERCIAL SUPPLIER 
 04-11-2023,oneSource Non-Shared LBH,The Disablement Association of Barking and Dagenham t/as DABD (UK),Client Transport,90000.00,0.00,COMMERCIAL SUPPLIER 
 21-11-2023,oneSource Shared,Ocella,Ict Maintenance And Support,500.00,0.00,COMMERCIAL SUPPLIER 
 01-11-2023,oneSource Shared,Matrix SCM Ltd,Agency Staff,510.72,0.00,COMMERCIAL SUPPLIER 
 29-11-2023,oneSource Shared,Matrix SCM Ltd,Agency Staff,518.07,0.00,COMMERCIAL SUPPLIER 
 08-11-2023,oneSource Shared,Premier Paper Group Ltd,Stationery,533.00,0.00,COMMERCIAL SUPPLIER 
 08-11-2023,oneSource Shared,Premier Paper Group Ltd,Stationery,554.00,0.00,COMMERCIAL SUPPLIER 
 08-11-2023,oneSource Shared,Premier Paper Group Ltd,Stationery,554.00,0.00,COMMERCIAL SUPPLIER 
 08-11-2023,oneSource Shared,Premier Paper Group Ltd,Stationery,554.00,0.00,COMMERCIAL SUPPLIER 
 01-11-2023,oneSource Shared,Bytes Software Services,Ict Software,565.48,0.00,COMMERCIAL SUPPLIER 
 15-11-2023,oneSource Shared,Northern Housing Consortium,Private Contractors Payment - Other,568.33,0.00,COMMERCIAL SUPPLIER 
 22-11-2023,oneSource Shared,Matrix SCM Ltd,Agency Staff,589.80,0.00,COMMERCIAL SUPPLIER 
 29-11-2023,oneSource Shared,Matrix SCM Ltd,Agency Staff,602.64,0.00,COMMERCIAL SUPPLIER 
 29-11-2023,oneSource Shared,Matrix SCM Ltd,Agency Staff,620.56,0.00,COMMERCIAL SUPPLIER 
 24-11-2023,oneSource Shared,Barristers - Five Paper,Legal Fees,650.00,0.00,LEGAL SERVICES 
 03-11-2023,oneSource Shared,Riso (UK) Ltd,Printing,655.00,0.00,COMMERCIAL SUPPLIER 
 29-11-2023,oneSource Shared,Matrix SCM Ltd,Agency Staff,659.17,0.00,COMMERCIAL SUPPLIER 
 15-11-2023,oneSource Shared,Matrix SCM Ltd,Agency Staff,668.44,0.00,COMMERCIAL SUPPLIER 
 22-11-2023,oneSource Shared,Matrix SCM Ltd,Agency Staff,705.28,0.00,COMMERCIAL SUPPLIER 
 29-11-2023,oneSource Shared,Matrix SCM Ltd,Agency Staff,707.76,0.00,COMMERCIAL SUPPLIER 
 08-11-2023,oneSource Shared,Matrix SCM Ltd,Agency Staff,731.87,0.00,COMMERCIAL SUPPLIER 
 15-11-2023,oneSource Shared,Matrix SCM Ltd,Agency Staff,731.87,0.00,COMMERCIAL SUPPLIER 
 22-11-2023,oneSource Shared,Matrix SCM Ltd,Agency Staff,731.87,0.00,COMMERCIAL SUPPLIER 
 29-11-2023,oneSource Shared,Matrix SCM Ltd,Agency Staff,731.87,0.00,COMMERCIAL SUPPLIER 
 08-11-2023,oneSource Shared,Matrix SCM Ltd,Agency Staff,732.96,0.00,COMMERCIAL SUPPLIER 
 15-11-2023,oneSource Shared,Matrix SCM Ltd,Agency Staff,732.96,0.00,COMMERCIAL SUPPLIER 
 22-11-2023,oneSource Shared,Matrix SCM Ltd,Agency Staff,732.96,0.00,COMMERCIAL SUPPLIER 
 29-11-2023,oneSource Shared,Matrix SCM Ltd,Agency Staff,732.96,0.00,COMMERCIAL SUPPLIER 
 08-11-2023,oneSource Shared,Premier Paper Group Ltd,Stationery,734.40,0.00,COMMERCIAL SUPPLIER 
 01-11-2023,oneSource Shared,Matrix SCM Ltd,Agency Staff,748.10,0.00,COMMERCIAL SUPPLIER 
 01-11-2023,oneSource Shared,Matrix SCM Ltd,Agency Staff,790.56,0.00,COMMERCIAL SUPPLIER 
 08-11-2023,oneSource Shared,Matrix SCM Ltd,Agency Staff,790.56,0.00,COMMERCIAL SUPPLIER 
 15-11-2023,oneSource Shared,Matrix SCM Ltd,Agency Staff,790.56,0.00,COMMERCIAL SUPPLIER 
 22-11-2023,oneSource Shared,Matrix SCM Ltd,Agency Staff,790.56,0.00,COMMERCIAL SUPPLIER 
 29-11-2023,oneSource Shared,Matrix SCM Ltd,Agency Staff,790.56,0.00,COMMERCIAL SUPPLIER 
 15-11-2023,oneSource Shared,Matrix SCM Ltd,Agency Staff,801.00,0.00,COMMERCIAL SUPPLIER 
 01-11-2023,oneSource Shared,Matrix SCM Ltd,Agency Staff,801.01,0.00,COMMERCIAL SUPPLIER 
 08-11-2023,oneSource Shared,Matrix SCM Ltd,Agency Staff,801.01,0.00,COMMERCIAL SUPPLIER 
 29-11-2023,oneSource Shared,Matrix SCM Ltd,Agency Staff,801.01,0.00,COMMERCIAL SUPPLIER 
 29-11-2023,oneSource Shared,Matrix SCM Ltd,Agency Staff,801.01,0.00,COMMERCIAL SUPPLIER 
 22-11-2023,oneSource Shared,Matrix SCM Ltd,Agency Staff,802.56,0.00,COMMERCIAL SUPPLIER 
 01-11-2023,oneSource Shared,Matrix SCM Ltd,Agency Staff,817.22,0.00,COMMERCIAL SUPPLIER 
 08-11-2023,oneSource Shared,Matrix SCM Ltd,Agency Staff,817.22,0.00,COMMERCIAL SUPPLIER 
 15-11-2023,oneSource Shared,Matrix SCM Ltd,Agency Staff,817.22,0.00,COMMERCIAL SUPPLIER 
 22-11-2023,oneSource Shared,Matrix SCM Ltd,Agency Staff,817.22,0.00,COMMERCIAL SUPPLIER 
 29-11-2023,oneSource Shared,Matrix SCM Ltd,Agency Staff,817.22,0.00,COMMERCIAL SUPPLIER 
 01-11-2023,oneSource Shared,Matrix SCM Ltd,Agency Staff,818.28,0.00,COMMERCIAL SUPPLIER 
 08-11-2023,oneSource Shared,Matrix SCM Ltd,Agency Staff,818.28,0.00,COMMERCIAL SUPPLIER 
 15-11-2023,oneSource Shared,Matrix SCM Ltd,Agency Staff,818.28,0.00,COMMERCIAL SUPPLIER 
 22-11-2023,oneSource Shared,Matrix SCM Ltd,Agency Staff,818.28,0.00,COMMERCIAL SUPPLIER 
 08-11-2023,oneSource Shared,Matrix SCM Ltd,Agency Staff,827.41,0.00,COMMERCIAL SUPPLIER 
 01-11-2023,oneSource Shared,Matrix SCM Ltd,Agency Staff,851.20,0.00,COMMERCIAL SUPPLIER 
 01-11-2023,oneSource Shared,Matrix SCM Ltd,Agency Staff,851.20,0.00,COMMERCIAL SUPPLIER 
 08-11-2023,oneSource Shared,Matrix SCM Ltd,Agency Staff,851.20,0.00,COMMERCIAL SUPPLIER 
 08-11-2023,oneSource Shared,Matrix SCM Ltd,Agency Staff,851.20,0.00,COMMERCIAL SUPPLIER 
 08-11-2023,oneSource Shared,Matrix SCM Ltd,Agency Staff,851.20,0.00,COMMERCIAL SUPPLIER 
 08-11-2023,oneSource Shared,Matrix SCM Ltd,Agency Staff,851.20,0.00,COMMERCIAL SUPPLIER 
 15-11-2023,oneSource Shared,Matrix SCM Ltd,Agency Staff,851.20,0.00,COMMERCIAL SUPPLIER 
 15-11-2023,oneSource Shared,Matrix SCM Ltd,Agency Staff,851.20,0.00,COMMERCIAL SUPPLIER 
 22-11-2023,oneSource Shared,Matrix SCM Ltd,Agency Staff,851.20,0.00,COMMERCIAL SUPPLIER 
 29-11-2023,oneSource Shared,Matrix SCM Ltd,Agency Staff,851.20,0.00,COMMERCIAL SUPPLIER 
 29-11-2023,oneSource Shared,Matrix SCM Ltd,Agency Staff,851.20,0.00,COMMERCIAL SUPPLIER 
 29-11-2023,oneSource Shared,Matrix SCM Ltd,Agency Staff,851.20,0.00,COMMERCIAL SUPPLIER 
 08-11-2023,oneSource Shared,Urgent Delivery Couriers Ltd,Postage And Courier Services,872.80,0.00,COMMERCIAL SUPPLIER 
 01-11-2023,oneSource Shared,Matrix SCM Ltd,Agency Staff,883.94,0.00,COMMERCIAL SUPPLIER 
 08-11-2023,oneSource Shared,Matrix SCM Ltd,Agency Staff,883.94,0.00,COMMERCIAL SUPPLIER 
 22-11-2023,oneSource Shared,Matrix SCM Ltd,Agency Staff,883.94,0.00,COMMERCIAL SUPPLIER 
 29-11-2023,oneSource Shared,Matrix SCM Ltd,Agency Staff,886.51,0.00,COMMERCIAL SUPPLIER 
 21-11-2023,oneSource Shared,Canon (UK) Ltd,Printing,899.20,0.00,COMMERCIAL SUPPLIER 
 01-11-2023,oneSource Shared,Matrix SCM Ltd,Agency Staff,907.74,0.00,COMMERCIAL SUPPLIER 
 01-11-2023,oneSource Shared,Matrix SCM Ltd,Agency Staff,970.56,0.00,COMMERCIAL SUPPLIER 
 15-11-2023,oneSource Shared,Matrix SCM Ltd,Agency Staff,970.56,0.00,COMMERCIAL SUPPLIER 
 22-11-2023,oneSource Shared,Matrix SCM Ltd,Agency Staff,970.56,0.00,COMMERCIAL SUPPLIER 
 29-11-2023,oneSource Shared,Matrix SCM Ltd,Agency Staff,970.56,0.00,COMMERCIAL SUPPLIER 
 24-11-2023,oneSource Shared,Canon (UK) Ltd,Printing,1043.20,0.00,COMMERCIAL SUPPLIER 
 30-11-2023,oneSource Shared,Canon (UK) Ltd,Printing,1043.20,0.00,COMMERCIAL SUPPLIER 
 29-11-2023,oneSource Shared,Matrix SCM Ltd,Agency Staff,1099.40,0.00,COMMERCIAL SUPPLIER 
 28-11-2023,oneSource Shared,Nominet Uk,Ict Maintenance And Support,1106.01,0.00,COMMERCIAL SUPPLIER 
 28-11-2023,oneSource Shared,Nominet Uk,Ict Maintenance And Support,1106.01,0.00,COMMERCIAL SUPPLIER 
 28-11-2023,oneSource Shared,Nominet Uk,Ict Maintenance And Support,1106.01,0.00,COMMERCIAL SUPPLIER 
 22-11-2023,oneSource Shared,Matrix SCM Ltd,Agency Staff,1122.92,0.00,COMMERCIAL SUPPLIER 
 01-11-2023,oneSource Shared,Bytes Software Services,Ict Software,1130.96,0.00,COMMERCIAL SUPPLIER 
 01-11-2023,oneSource Shared,Matrix SCM Ltd,Agency Staff,1189.80,0.00,COMMERCIAL SUPPLIER 
 08-11-2023,oneSource Shared,Matrix SCM Ltd,Agency Staff,1189.80,0.00,COMMERCIAL SUPPLIER 
 15-11-2023,oneSource Shared,Matrix SCM Ltd,Agency Staff,1189.80,0.00,COMMERCIAL SUPPLIER 
 22-11-2023,oneSource Shared,Matrix SCM Ltd,Agency Staff,1189.81,0.00,COMMERCIAL SUPPLIER 
 29-11-2023,oneSource Shared,Matrix SCM Ltd,Agency Staff,1189.81,0.00,COMMERCIAL SUPPLIER 
 08-11-2023,oneSource Shared,Matrix SCM Ltd,Agency Staff,1241.11,0.00,COMMERCIAL SUPPLIER 
 15-11-2023,oneSource Shared,Matrix SCM Ltd,Agency Staff,1325.91,0.00,COMMERCIAL SUPPLIER 
 29-11-2023,oneSource Shared,Matrix SCM Ltd,Agency Staff,1325.91,0.00,COMMERCIAL SUPPLIER 
 01-11-2023,oneSource Shared,Bytes Software Services,Ict Software,1413.70,0.00,COMMERCIAL SUPPLIER 
 01-11-2023,oneSource Shared,Matrix SCM Ltd,Agency Staff,1707.49,0.00,COMMERCIAL SUPPLIER 
 01-11-2023,oneSource Shared,Matrix SCM Ltd,Agency Staff,1707.49,0.00,COMMERCIAL SUPPLIER 
 08-11-2023,oneSource Shared,Matrix SCM Ltd,Agency Staff,1707.49,0.00,COMMERCIAL SUPPLIER 
 15-11-2023,oneSource Shared,Matrix SCM Ltd,Agency Staff,1707.49,0.00,COMMERCIAL SUPPLIER 
 22-11-2023,oneSource Shared,Matrix SCM Ltd,Agency Staff,1707.49,0.00,COMMERCIAL SUPPLIER 
 01-11-2023,oneSource Shared,Matrix SCM Ltd,Agency Staff,1717.55,0.00,COMMERCIAL SUPPLIER 
 15-11-2023,oneSource Shared,Matrix SCM Ltd,Agency Staff,1717.56,0.00,COMMERCIAL SUPPLIER 
 29-11-2023,oneSource Shared,Matrix SCM Ltd,Agency Staff,1717.56,0.00,COMMERCIAL SUPPLIER 
 22-11-2023,oneSource Shared,Matrix SCM Ltd,Agency Staff,1717.57,0.00,COMMERCIAL SUPPLIER 
 08-11-2023,oneSource Shared,Matrix SCM Ltd,Agency Staff,1717.58,0.00,COMMERCIAL SUPPLIER 
 01-11-2023,oneSource Shared,Matrix SCM Ltd,Agency Staff,1720.80,0.00,COMMERCIAL SUPPLIER 
 08-11-2023,oneSource Shared,Matrix SCM Ltd,Agency Staff,1720.80,0.00,COMMERCIAL SUPPLIER 
 15-11-2023,oneSource Shared,Matrix SCM Ltd,Agency Staff,1720.80,0.00,COMMERCIAL SUPPLIER 
 22-11-2023,oneSource Shared,Matrix SCM Ltd,Agency Staff,1720.80,0.00,COMMERCIAL SUPPLIER 
 29-11-2023,oneSource Shared,Matrix SCM Ltd,Agency Staff,1746.37,0.00,COMMERCIAL SUPPLIER 
 22-11-2023,oneSource Shared,Matrix SCM Ltd,Agency Staff,1765.04,0.00,COMMERCIAL SUPPLIER 
 08-11-2023,oneSource Shared,Matrix SCM Ltd,Agency Staff,1765.06,0.00,COMMERCIAL SUPPLIER 
 01-11-2023,oneSource Shared,Matrix SCM Ltd,Agency Staff,1815.48,0.00,COMMERCIAL SUPPLIER 
 15-11-2023,oneSource Shared,Matrix SCM Ltd,Agency Staff,1815.48,0.00,COMMERCIAL SUPPLIER 
 22-11-2023,oneSource Shared,Matrix SCM Ltd,Agency Staff,1815.48,0.00,COMMERCIAL SUPPLIER 
 29-11-2023,oneSource Shared,Matrix SCM Ltd,Agency Staff,1815.48,0.00,COMMERCIAL SUPPLIER 
 01-11-2023,oneSource Shared,Matrix SCM Ltd,Agency Staff,1815.49,0.00,COMMERCIAL SUPPLIER 
 08-11-2023,oneSource Shared,Matrix SCM Ltd,Agency Staff,1815.49,0.00,COMMERCIAL SUPPLIER 
 01-11-2023,oneSource Shared,Matrix SCM Ltd,Agency Staff,1865.90,0.00,COMMERCIAL SUPPLIER 
 01-11-2023,oneSource Shared,Matrix SCM Ltd,Agency Staff,1865.91,0.00,COMMERCIAL SUPPLIER 
 01-11-2023,oneSource Shared,Matrix SCM Ltd,Agency Staff,1865.91,0.00,COMMERCIAL SUPPLIER 
 15-11-2023,oneSource Shared,Matrix SCM Ltd,Agency Staff,1865.91,0.00,COMMERCIAL SUPPLIER 
 01-11-2023,oneSource Shared,Matrix SCM Ltd,Agency Staff,1865.92,0.00,COMMERCIAL SUPPLIER 
 01-11-2023,oneSource Shared,Matrix SCM Ltd,Agency Staff,1865.92,0.00,COMMERCIAL SUPPLIER 
 01-11-2023,oneSource Shared,Matrix SCM Ltd,Agency Staff,1865.92,0.00,COMMERCIAL SUPPLIER 
 29-11-2023,oneSource Shared,Matrix SCM Ltd,Agency Staff,1865.92,0.00,COMMERCIAL SUPPLIER 
 01-11-2023,oneSource Shared,Matrix SCM Ltd,Agency Staff,1865.93,0.00,COMMERCIAL SUPPLIER 
 01-11-2023,oneSource Shared,Matrix SCM Ltd,Agency Staff,1865.93,0.00,COMMERCIAL SUPPLIER 
 01-11-2023,oneSource Shared,Matrix SCM Ltd,Agency Staff,1865.93,0.00,COMMERCIAL SUPPLIER 
 08-11-2023,oneSource Shared,Matrix SCM Ltd,Agency Staff,1887.48,0.00,COMMERCIAL SUPPLIER 
 15-11-2023,oneSource Shared,Matrix SCM Ltd,Agency Staff,1887.48,0.00,COMMERCIAL SUPPLIER 
 08-11-2023,oneSource Shared,Matrix SCM Ltd,Agency Staff,1887.49,0.00,COMMERCIAL SUPPLIER 
 22-11-2023,oneSource Shared,Matrix SCM Ltd,Agency Staff,1887.49,0.00,COMMERCIAL SUPPLIER 
 01-11-2023,oneSource Shared,Matrix SCM Ltd,Agency Staff,1975.44,0.00,COMMERCIAL SUPPLIER 
 08-11-2023,oneSource Shared,Matrix SCM Ltd,Agency Staff,1975.45,0.00,COMMERCIAL SUPPLIER 
 15-11-2023,oneSource Shared,Matrix SCM Ltd,Agency Staff,1975.45,0.00,COMMERCIAL SUPPLIER 
 22-11-2023,oneSource Shared,Matrix SCM Ltd,Agency Staff,1975.45,0.00,COMMERCIAL SUPPLIER 
 29-11-2023,oneSource Shared,Matrix SCM Ltd,Agency Staff,1975.45,0.00,COMMERCIAL SUPPLIER 
 16-11-2023,oneSource Shared,Matrix SCM Ltd,Consultancy Fees,2045.00,0.00,COMMERCIAL SUPPLIER 
 01-11-2023,oneSource Shared,Matrix SCM Ltd,Agency Staff,2493.95,0.00,COMMERCIAL SUPPLIER 
 08-11-2023,oneSource Shared,Matrix SCM Ltd,Agency Staff,2493.95,0.00,COMMERCIAL SUPPLIER 
 15-11-2023,oneSource Shared,Matrix SCM Ltd,Agency Staff,2493.95,0.00,COMMERCIAL SUPPLIER 
 22-11-2023,oneSource Shared,Matrix SCM Ltd,Agency Staff,2493.95,0.00,COMMERCIAL SUPPLIER 
 29-11-2023,oneSource Shared,Matrix SCM Ltd,Agency Staff,2493.95,0.00,COMMERCIAL SUPPLIER 
 01-11-2023,oneSource Shared,Matrix SCM Ltd,Agency Staff,2546.00,0.00,COMMERCIAL SUPPLIER 
 08-11-2023,oneSource Shared,Matrix SCM Ltd,Agency Staff,2546.00,0.00,COMMERCIAL SUPPLIER 
 15-11-2023,oneSource Shared,Matrix SCM Ltd,Agency Staff,2546.00,0.00,COMMERCIAL SUPPLIER 
 22-11-2023,oneSource Shared,Matrix SCM Ltd,Agency Staff,2546.00,0.00,COMMERCIAL SUPPLIER 
 29-11-2023,oneSource Shared,Matrix SCM Ltd,Agency Staff,2546.00,0.00,COMMERCIAL SUPPLIER 
 16-11-2023,oneSource Shared,Matrix SCM Ltd,Consultancy Fees,2556.25,0.00,COMMERCIAL SUPPLIER 
 16-11-2023,oneSource Shared,Matrix SCM Ltd,Consultancy Fees,2556.25,0.00,COMMERCIAL SUPPLIER 
 16-11-2023,oneSource Shared,Matrix SCM Ltd,Consultancy Fees,2556.25,0.00,COMMERCIAL SUPPLIER 
 13-11-2023,oneSource Shared,Capita Business Services Ltd,Consultancy Fees,2573.06,0.00,COMMERCIAL SUPPLIER 
 08-11-2023,oneSource Shared,Matrix SCM Ltd,Agency Staff,2593.35,0.00,COMMERCIAL SUPPLIER 
 16-11-2023,oneSource Shared,Matrix SCM Ltd,Consultancy Fees,2632.94,0.00,COMMERCIAL SUPPLIER 
 01-11-2023,oneSource Shared,Bytes Software Services,Ict Software,2648.96,0.00,COMMERCIAL SUPPLIER 
 08-11-2023,oneSource Shared,Matrix SCM Ltd,Agency Staff,2944.53,0.00,COMMERCIAL SUPPLIER 
 01-11-2023,oneSource Shared,Matrix SCM Ltd,Agency Staff,2944.54,0.00,COMMERCIAL SUPPLIER 
 29-11-2023,oneSource Shared,Matrix SCM Ltd,Agency Staff,2961.45,0.00,COMMERCIAL SUPPLIER 
 01-11-2023,oneSource Shared,Matrix SCM Ltd,Agency Staff,2978.37,0.00,COMMERCIAL SUPPLIER 
 22-11-2023,oneSource Shared,Matrix SCM Ltd,Agency Staff,2978.38,0.00,COMMERCIAL SUPPLIER 
 15-11-2023,oneSource Shared,Matrix SCM Ltd,Agency Staff,3012.22,0.00,COMMERCIAL SUPPLIER 
 08-11-2023,oneSource Shared,Matrix SCM Ltd,Agency Staff,3457.80,0.00,COMMERCIAL SUPPLIER 
 08-11-2023,oneSource Shared,Matrix SCM Ltd,Agency Staff,3457.80,0.00,COMMERCIAL SUPPLIER 
 15-11-2023,oneSource Shared,Matrix SCM Ltd,Agency Staff,3457.80,0.00,COMMERCIAL SUPPLIER 
 15-11-2023,oneSource Shared,Matrix SCM Ltd,Agency Staff,3457.80,0.00,COMMERCIAL SUPPLIER 
 29-11-2023,oneSource Shared,Matrix SCM Ltd,Agency Staff,3457.80,0.00,COMMERCIAL SUPPLIER 
 29-11-2023,oneSource Shared,Matrix SCM Ltd,Agency Staff,3457.80,0.00,COMMERCIAL SUPPLIER 
 01-11-2023,oneSource Shared,Matrix SCM Ltd,Agency Staff,3615.05,0.00,COMMERCIAL SUPPLIER 
 15-11-2023,oneSource Shared,Matrix SCM Ltd,Agency Staff,3615.05,0.00,COMMERCIAL SUPPLIER 
 15-11-2023,oneSource Shared,Matrix SCM Ltd,Agency Staff,3615.05,0.00,COMMERCIAL SUPPLIER 
 22-11-2023,oneSource Shared,Matrix SCM Ltd,Agency Staff,3615.05,0.00,COMMERCIAL SUPPLIER 
 29-11-2023,oneSource Shared,Matrix SCM Ltd,Agency Staff,3615.05,0.00,COMMERCIAL SUPPLIER 
 01-11-2023,oneSource Shared,Matrix SCM Ltd,Agency Staff,3627.10,0.00,COMMERCIAL SUPPLIER 
 08-11-2023,oneSource Shared,Matrix SCM Ltd,Agency Staff,3627.10,0.00,COMMERCIAL SUPPLIER 
 15-11-2023,oneSource Shared,Matrix SCM Ltd,Agency Staff,3627.10,0.00,COMMERCIAL SUPPLIER 
 22-11-2023,oneSource Shared,Matrix SCM Ltd,Agency Staff,3627.10,0.00,COMMERCIAL SUPPLIER 
 29-11-2023,oneSource Shared,Matrix SCM Ltd,Agency Staff,3627.10,0.00,COMMERCIAL SUPPLIER 
 01-11-2023,oneSource Shared,Matrix SCM Ltd,Agency Staff,4058.05,0.00,COMMERCIAL SUPPLIER 
 08-11-2023,oneSource Shared,Matrix SCM Ltd,Agency Staff,4058.05,0.00,COMMERCIAL SUPPLIER 
 15-11-2023,oneSource Shared,Matrix SCM Ltd,Agency Staff,4058.05,0.00,COMMERCIAL SUPPLIER 
 22-11-2023,oneSource Shared,Matrix SCM Ltd,Agency Staff,4058.05,0.00,COMMERCIAL SUPPLIER 
 29-11-2023,oneSource Shared,Matrix SCM Ltd,Agency Staff,4058.05,0.00,COMMERCIAL SUPPLIER 
 01-11-2023,oneSource Shared,Matrix SCM Ltd,Agency Staff,4870.85,0.00,COMMERCIAL SUPPLIER 
 08-11-2023,oneSource Shared,Matrix SCM Ltd,Agency Staff,4870.85,0.00,COMMERCIAL SUPPLIER 
 22-11-2023,oneSource Shared,Matrix SCM Ltd,Agency Staff,4870.85,0.00,COMMERCIAL SUPPLIER 
 22-11-2023,oneSource Shared,Matrix SCM Ltd,Agency Staff,4870.85,0.00,COMMERCIAL SUPPLIER 
 29-11-2023,oneSource Shared,Matrix SCM Ltd,Agency Staff,4870.85,0.00,COMMERCIAL SUPPLIER 
 09-11-2023,oneSource Shared,CAE Technology Services Ltd,Ict Software,6312.17,0.00,COMMERCIAL SUPPLIER 
 29-11-2023,oneSource Shared,Edenred (UK Group) Limited,Professional Services - General,7200.00,0.00,NON COMMERCIAL SUPPLIER 
 23-11-2023,oneSource Shared,Civica UK Ltd_a,Ict Maintenance And Support,9117.00,0.00,COMMERCIAL SUPPLIER 
 14-11-2023,oneSource Shared,SAP (UK) Ltd,Ict Software,11331.29,0.00,COMMERCIAL SUPPLIER 
 09-11-2023,oneSource Shared,Stripe OLT,Ict Maintenance And Support,12500.00,0.00,COMMERCIAL SUPPLIER 
 15-11-2023,oneSource Shared,SAP (UK) Ltd,Ict Software,12817.01,0.00,COMMERCIAL SUPPLIER 
 01-11-2023,oneSource Shared,Bytes Software Services,Ict Software,18812.16,0.00,COMMERCIAL SUPPLIER 
 16-11-2023,oneSource Shared,Matrix SCM Ltd,Consultancy Fees,20031.41,0.00,COMMERCIAL SUPPLIER 
 17-11-2023,oneSource Shared,Civica UK Ltd_a,Ict Software,88703.75,0.00,COMMERCIAL SUPPLIER 
 03-11-2023,People - Ageing Well,HR AMBER CARS Ltd,Client Transport,500.00,0.00,COMMERCIAL SUPPLIER 
 10-11-2023,People - Ageing Well,Home Sweet Home Care Ltd,Home Care - Private Contractors Payment,500.15,0.00,COMMERCIAL SUPPLIER 
 10-11-2023,People - Ageing Well,Homestead Care Service,Home Care - Private Contractors Payment,500.88,0.00,COMMERCIAL SUPPLIER 
 17-11-2023,People - Ageing Well,Voyage 1 Ltd - Quite Waters,Residential Placements - Private Contractors Payment,502.04,0.00,COMMERCIAL SUPPLIER 
 06-11-2023,People - Ageing Well,Radfield Home Care Havering & Brentwood,Home Care - Private Contractors Payment,502.33,0.00,COMMERCIAL SUPPLIER 
 20-11-2023,People - Ageing Well,Radfield Home Care Havering & Brentwood,Home Care - Private Contractors Payment,502.33,0.00,COMMERCIAL SUPPLIER 
 14-11-2023,People - Ageing Well,Home Support Services (Havering & Essex) Ltd,Home Care - Private Contractors Payment,504.16,0.00,COMMERCIAL SUPPLIER 
 10-11-2023,People - Ageing Well,Care-Away Ltd T/A Care Support,Home Care - Private Contractors Payment,504.35,0.00,COMMERCIAL SUPPLIER 
 15-11-2023,People - Ageing Well,Matrix SCM Ltd,Agency Staff,504.90,0.00,COMMERCIAL SUPPLIER 
 29-11-2023,People - Ageing Well,Matrix SCM Ltd,Agency Staff,504.90,0.00,COMMERCIAL SUPPLIER 
 08-11-2023,People - Ageing Well,Morepower Ltd t/a Aqs Homecare,Home Care - Private Contractors Payment,505.25,0.00,COMMERCIAL SUPPLIER 
 20-11-2023,People - Ageing Well,Asvacare Ltd,Payment To Health Authorities,510.00,0.00,COMMERCIAL SUPPLIER 
 08-11-2023,People - Ageing Well,Morepower Ltd t/a Aqs Homecare,Home Care - Private Contractors Payment,513.26,0.00,COMMERCIAL SUPPLIER 
 08-11-2023,People - Ageing Well,Morepower Ltd t/a Aqs Homecare,Home Care - Private Contractors Payment,513.26,0.00,COMMERCIAL SUPPLIER 
 08-11-2023,People - Ageing Well,Morepower Ltd t/a Aqs Homecare,Home Care - Private Contractors Payment,513.26,0.00,COMMERCIAL SUPPLIER 
 10-11-2023,People - Ageing Well,Care-Away Ltd T/A Care Support,Home Care - Private Contractors Payment,513.52,0.00,COMMERCIAL SUPPLIER 
 10-11-2023,People - Ageing Well,Care-Away Ltd T/A Care Support,Home Care - Private Contractors Payment,513.52,0.00,COMMERCIAL SUPPLIER 
 10-11-2023,People - Ageing Well,Care-Away Ltd T/A Care Support,Home Care - Private Contractors Payment,513.52,0.00,COMMERCIAL SUPPLIER 
 10-11-2023,People - Ageing Well,Care-Away Ltd T/A Care Support,Home Care - Private Contractors Payment,513.52,0.00,COMMERCIAL SUPPLIER 
 10-11-2023,People - Ageing Well,Care-Away Ltd T/A Care Support,Home Care - Private Contractors Payment,513.52,0.00,COMMERCIAL SUPPLIER 
 14-11-2023,People - Ageing Well,Care-Away Ltd T/A Care Support,Home Care - Private Contractors Payment,513.52,0.00,COMMERCIAL SUPPLIER 
 14-11-2023,People - Ageing Well,Care-Away Ltd T/A Care Support,Home Care - Private Contractors Payment,513.52,0.00,COMMERCIAL SUPPLIER 
 14-11-2023,People - Ageing Well,Care-Away Ltd T/A Care Support,Home Care - Private Contractors Payment,513.52,0.00,COMMERCIAL SUPPLIER 
 14-11-2023,People - Ageing Well,Care-Away Ltd T/A Care Support,Home Care - Private Contractors Payment,513.52,0.00,COMMERCIAL SUPPLIER 
 14-11-2023,People - Ageing Well,Care-Away Ltd T/A Care Support,Home Care - Private Contractors Payment,513.52,0.00,COMMERCIAL SUPPLIER 
 16-11-2023,People - Ageing Well,Care-Away Ltd T/A Care Support,Home Care - Private Contractors Payment,513.52,0.00,COMMERCIAL SUPPLIER 
 16-11-2023,People - Ageing Well,Care-Away Ltd T/A Care Support,Home Care - Private Contractors Payment,513.52,0.00,COMMERCIAL SUPPLIER 
 16-11-2023,People - Ageing Well,Care-Away Ltd T/A Care Support,Home Care - Private Contractors Payment,513.52,0.00,COMMERCIAL SUPPLIER 
 13-11-2023,People - Ageing Well,Livingstone Health Care Services,Home Care - Private Contractors Payment,513.98,0.00,COMMERCIAL SUPPLIER 
 17-11-2023,People - Ageing Well,Lodge Lane Care Home Limited,Respite Care - Private Contractors Payment,514.29,0.00,COMMERCIAL SUPPLIER 
 09-11-2023,People - Ageing Well,Prior Care Ltd_a,Home Care - Private Contractors Payment,514.71,0.00,COMMERCIAL SUPPLIER 
 14-11-2023,People - Ageing Well,Home Support Services (Havering & Essex) Ltd,Home Care - Private Contractors Payment,514.71,0.00,COMMERCIAL SUPPLIER 
 10-11-2023,People - Ageing Well,Homestead Care Service,Home Care - Private Contractors Payment,517.25,0.00,COMMERCIAL SUPPLIER 
 17-11-2023,People - Ageing Well,Quality Healthcare Solutions Ltd t/a Kare Plus Romford,Home Care - Private Contractors Payment,517.26,0.00,COMMERCIAL SUPPLIER 
 15-11-2023,People - Ageing Well,John Stanleys Care Agency Ltd,Home Care - Private Contractors Payment,518.35,0.00,COMMERCIAL SUPPLIER 
 07-11-2023,People - Ageing Well,Haven Care Ltd.,Home Care - Private Contractors Payment,518.72,0.00,COMMERCIAL SUPPLIER 
 08-11-2023,People - Ageing Well,Matrix SCM Ltd,Agency Staff,518.82,0.00,COMMERCIAL SUPPLIER 
 05-11-2023,People - Ageing Well,Personal Information - Redacted,Home Care - Private Contractors Payment,524.16,0.00,INDIVIDUALS 
 07-11-2023,People - Ageing Well,Haven Care Ltd.,Home Care - Private Contractors Payment,524.16,0.00,COMMERCIAL SUPPLIER 
 14-11-2023,People - Ageing Well,Home Support Services (Havering & Essex) Ltd,Home Care - Private Contractors Payment,524.16,0.00,COMMERCIAL SUPPLIER 
 05-11-2023,People - Ageing Well,Personal Information - Redacted,Home Care - Private Contractors Payment,524.17,0.00,INDIVIDUALS 
 10-11-2023,People - Ageing Well,Home Sweet Home Care Ltd,Home Care - Private Contractors Payment,524.18,0.00,COMMERCIAL SUPPLIER 
 14-11-2023,People - Ageing Well,Home Support Services (Havering & Essex) Ltd,Home Care - Private Contractors Payment,524.18,0.00,COMMERCIAL SUPPLIER 
 16-11-2023,People - Ageing Well,Inna Care Ltd,Home Care - Private Contractors Payment,524.18,0.00,COMMERCIAL SUPPLIER 
 14-11-2023,People - Ageing Well,Westminster Homecare Ltd_a,Home Care - Private Contractors Payment,524.91,0.00,COMMERCIAL SUPPLIER 
 16-11-2023,People - Ageing Well,Anytime Care 2020_a,Home Care - Private Contractors Payment,529.64,0.00,COMMERCIAL SUPPLIER 
 17-11-2023,People - Ageing Well,DMP Healthcare (Cherry Orchard) Ltd,Nursing Homes - Private Contractors Payment,529.83,0.00,COMMERCIAL SUPPLIER 
 09-11-2023,People - Ageing Well,Prior Care Ltd_a,Home Care - Private Contractors Payment,530.00,0.00,COMMERCIAL SUPPLIER 
 17-11-2023,People - Ageing Well,Affinia Healthcare Ltd_a,Supported Other Accommodation - Private Contractors Payment,534.80,0.00,COMMERCIAL SUPPLIER 
 16-11-2023,People - Ageing Well,Anytime Care 2020_a,Home Care - Private Contractors Payment,535.10,0.00,COMMERCIAL SUPPLIER 
 16-11-2023,People - Ageing Well,Anytime Care 2020_a,Home Care - Private Contractors Payment,535.10,0.00,COMMERCIAL SUPPLIER 
 17-11-2023,People - Ageing Well,Lodge Lane Care Home Limited,Respite Care - Private Contractors Payment,535.71,0.00,COMMERCIAL SUPPLIER 
 10-11-2023,People - Ageing Well,Home Sweet Home Care Ltd,Home Care - Private Contractors Payment,535.83,0.00,COMMERCIAL SUPPLIER 
 17-11-2023,People - Ageing Well,L & Q Living (SWIFT Payments),Supported Other Accommodation - Private Contractors Payment,536.48,0.00,COMMERCIAL SUPPLIER 
 17-11-2023,People - Ageing Well,L & Q Living (SWIFT Payments),Supported Other Accommodation - Private Contractors Payment,536.48,0.00,COMMERCIAL SUPPLIER 
 17-11-2023,People - Ageing Well,L & Q Living (SWIFT Payments),Supported Other Accommodation - Private Contractors Payment,536.48,0.00,COMMERCIAL SUPPLIER 
 17-11-2023,People - Ageing Well,L & Q Living (SWIFT Payments),Supported Other Accommodation - Private Contractors Payment,536.48,0.00,COMMERCIAL SUPPLIER 
 17-11-2023,People - Ageing Well,L & Q Living (SWIFT Payments),Supported Other Accommodation - Private Contractors Payment,536.48,0.00,COMMERCIAL SUPPLIER 
 17-11-2023,People - Ageing Well,L & Q Living (SWIFT Payments),Supported Other Accommodation - Private Contractors Payment,536.48,0.00,COMMERCIAL SUPPLIER 
 17-11-2023,People - Ageing Well,L & Q Living (SWIFT Payments),Supported Other Accommodation - Private Contractors Payment,536.48,0.00,COMMERCIAL SUPPLIER 
 17-11-2023,People - Ageing Well,L & Q Living (SWIFT Payments),Supported Other Accommodation - Private Contractors Payment,536.48,0.00,COMMERCIAL SUPPLIER 
 15-11-2023,People - Ageing Well,John Stanleys Care Agency Ltd,Home Care - Private Contractors Payment,537.28,0.00,COMMERCIAL SUPPLIER 
 22-11-2023,People - Ageing Well,Matrix SCM Ltd,Agency Staff,540.69,0.00,COMMERCIAL SUPPLIER 
 08-11-2023,People - Ageing Well,Prestige Care & Support Ltd,Home Care - Private Contractors Payment,540.92,0.00,COMMERCIAL SUPPLIER 
 17-11-2023,People - Ageing Well,Quality Healthcare Solutions Ltd t/a Kare Plus Romford,Home Care - Private Contractors Payment,542.38,0.00,COMMERCIAL SUPPLIER 
 14-11-2023,People - Ageing Well,Home Support Services (Havering & Essex) Ltd,Home Care - Private Contractors Payment,543.47,0.00,COMMERCIAL SUPPLIER 
 08-11-2023,People - Ageing Well,Morepower Ltd t/a Aqs Homecare,Home Care - Private Contractors Payment,546.02,0.00,COMMERCIAL SUPPLIER 
 17-11-2023,People - Ageing Well,Lodge Group Care UK Ltd,Home Care - Private Contractors Payment,546.02,0.00,COMMERCIAL SUPPLIER 
 10-11-2023,People - Ageing Well,Home Sweet Home Care Ltd,Home Care - Private Contractors Payment,546.38,0.00,COMMERCIAL SUPPLIER 
 17-11-2023,People - Ageing Well,Lodge Group Care UK Ltd,Home Care - Private Contractors Payment,546.74,0.00,COMMERCIAL SUPPLIER 
 17-11-2023,People - Ageing Well,Lodge Group Care UK Ltd,Home Care - Private Contractors Payment,548.93,0.00,COMMERCIAL SUPPLIER 
 06-11-2023,People - Ageing Well,Tapestry_a.,Daycare - Private Contractors Payment,549.00,0.00,COMMERCIAL SUPPLIER 
 09-11-2023,People - Ageing Well,The Lambourne End Centre ,Daycare - Private Contractors Payment,550.00,0.00,COMMERCIAL SUPPLIER 
 13-11-2023,People - Ageing Well,Livingstone Health Care Services,Home Care - Private Contractors Payment,550.02,0.00,COMMERCIAL SUPPLIER 
 14-11-2023,People - Ageing Well,Care-Away Ltd T/A Care Support,Home Care - Private Contractors Payment,550.20,0.00,COMMERCIAL SUPPLIER 
 17-11-2023,People - Ageing Well,Lodge Lane Care Home Limited,Residential Placements - Private Contractors Payment,551.04,0.00,COMMERCIAL SUPPLIER 
 17-11-2023,People - Ageing Well,Fountains Care Centre - Bondcare,Nursing Homes - Private Contractors Payment,552.00,0.00,COMMERCIAL SUPPLIER 
 08-11-2023,People - Ageing Well,Matrix SCM Ltd,Agency Staff,555.17,0.00,COMMERCIAL SUPPLIER 
 17-11-2023,People - Ageing Well,Topaz Care and Support Co Ltd,Supported Other Accommodation - Private Contractors Payment,555.20,0.00,COMMERCIAL SUPPLIER 
 10-11-2023,People - Ageing Well,Home Sweet Home Care Ltd,Home Care - Private Contractors Payment,555.48,0.00,COMMERCIAL SUPPLIER 
 14-11-2023,People - Ageing Well,Cera Care Operations Ltd,Home Care - Private Contractors Payment,556.94,0.00,COMMERCIAL SUPPLIER 
 14-11-2023,People - Ageing Well,Cera Care Operations Ltd,Home Care - Private Contractors Payment,557.30,0.00,COMMERCIAL SUPPLIER 
 08-11-2023,People - Ageing Well,Livingstone Health Care Services,Home Care - Private Contractors Payment,559.49,0.00,COMMERCIAL SUPPLIER 
 15-11-2023,People - Ageing Well,Matrix SCM Ltd,Agency Staff,560.00,0.00,COMMERCIAL SUPPLIER 
 29-11-2023,People - Ageing Well,Matrix SCM Ltd,Agency Staff,560.00,0.00,COMMERCIAL SUPPLIER 
 03-11-2023,People - Ageing Well,Livingstone Health Care Services,Home Care - Private Contractors Payment,560.58,0.00,COMMERCIAL SUPPLIER 
 17-11-2023,People - Ageing Well,Lodge Group Care UK Ltd,Home Care - Private Contractors Payment,560.94,0.00,COMMERCIAL SUPPLIER 
 16-11-2023,People - Ageing Well,Anytime Care 2020_a,Home Care - Private Contractors Payment,561.67,0.00,COMMERCIAL SUPPLIER 
 08-11-2023,People - Ageing Well,Livingstone Health Care Services,Home Care - Private Contractors Payment,564.22,0.00,COMMERCIAL SUPPLIER 
 10-11-2023,People - Ageing Well,Home Sweet Home Care Ltd,Home Care - Private Contractors Payment,567.86,0.00,COMMERCIAL SUPPLIER 
 10-11-2023,People - Ageing Well,Home Sweet Home Care Ltd,Home Care - Private Contractors Payment,567.86,0.00,COMMERCIAL SUPPLIER 
 03-11-2023,People - Ageing Well,Bettertogether Limited,Supported Other Accommodation - Private Contractors Payment,568.90,0.00,NON COMMERCIAL SUPPLIER 
 08-11-2023,People - Ageing Well,Prestige Care & Support Ltd,Home Care - Private Contractors Payment,570.41,0.00,COMMERCIAL SUPPLIER 
 17-11-2023,People - Ageing Well,Priory Supporting Care Ltd,Respite Care - Private Contractors Payment,571.43,0.00,COMMERCIAL SUPPLIER 
 17-11-2023,People - Ageing Well,Ash Grove Residential Care Home,Residential Placements - Private Contractors Payment,571.43,0.00,COMMERCIAL SUPPLIER 
 14-11-2023,People - Ageing Well,Cera Care Operations Ltd,Home Care - Private Contractors Payment,578.77,0.00,COMMERCIAL SUPPLIER 
 06-11-2023,People - Ageing Well,Hospiva Care & Associates Agency Ltd_a,Home Care - Private Contractors Payment,580.96,0.00,COMMERCIAL SUPPLIER 
 03-11-2023,People - Ageing Well,Phoenix Care Havering Ltd,Home Care - Private Contractors Payment,584.24,0.00,COMMERCIAL SUPPLIER 
 17-11-2023,People - Ageing Well,Lodge Group Care UK Ltd,Home Care - Private Contractors Payment,584.24,0.00,COMMERCIAL SUPPLIER 
 17-11-2023,People - Ageing Well,Affinia Healthcare Ltd_a,Supported Other Accommodation - Private Contractors Payment,586.64,0.00,COMMERCIAL SUPPLIER 
 17-11-2023,People - Ageing Well,Outlook Care - 76 Neave Crescent,Supported Other Accommodation - Private Contractors Payment,586.80,0.00,COMMERCIAL SUPPLIER 
 14-11-2023,People - Ageing Well,Care-Away Ltd T/A Care Support,Home Care - Private Contractors Payment,586.88,0.00,COMMERCIAL SUPPLIER 
 16-11-2023,People - Ageing Well,Care-Away Ltd T/A Care Support,Home Care - Private Contractors Payment,586.88,0.00,COMMERCIAL SUPPLIER 
 08-11-2023,People - Ageing Well,Morepower Ltd t/a Aqs Homecare,Home Care - Private Contractors Payment,589.33,0.00,COMMERCIAL SUPPLIER 
 17-11-2023,People - Ageing Well,Moreland House_a,Nursing Care Income,589.39,0.00,COMMERCIAL SUPPLIER 
 14-11-2023,People - Ageing Well,Cera Care Operations Ltd,Home Care - Private Contractors Payment,589.69,0.00,COMMERCIAL SUPPLIER 
 10-11-2023,People - Ageing Well,Home Sweet Home Care Ltd,Home Care - Private Contractors Payment,589.70,0.00,COMMERCIAL SUPPLIER 
 17-11-2023,People - Ageing Well,Paradise Independent Living,Supported Other Accommodation - Private Contractors Payment,589.92,0.00,NON COMMERCIAL SUPPLIER 
 08-11-2023,People - Ageing Well,Morepower Ltd t/a Aqs Homecare,Home Care - Private Contractors Payment,590.06,0.00,COMMERCIAL SUPPLIER 
 10-11-2023,People - Ageing Well,Homestead Care Service,Home Care - Private Contractors Payment,591.89,0.00,COMMERCIAL SUPPLIER 
 06-11-2023,People - Ageing Well,Tapestry_a.,Daycare - Private Contractors Payment,592.57,0.00,COMMERCIAL SUPPLIER 
 20-11-2023,People - Ageing Well,Livingstone Health Care Services,Home Care - Private Contractors Payment,593.71,0.00,COMMERCIAL SUPPLIER 
 09-11-2023,People - Ageing Well,Prior Care Ltd_a,Home Care - Private Contractors Payment,594.07,0.00,COMMERCIAL SUPPLIER 
 01-11-2023,People - Ageing Well,Matrix SCM Ltd,Agency Staff,595.00,0.00,COMMERCIAL SUPPLIER 
 14-11-2023,People - Ageing Well,Cera Care Operations Ltd,Home Care - Private Contractors Payment,595.15,0.00,COMMERCIAL SUPPLIER 
 07-11-2023,People - Ageing Well,Headway East London,Daycare - Private Contractors Payment,600.00,0.00,COMMERCIAL SUPPLIER 
 10-11-2023,People - Ageing Well,Home Sweet Home Care Ltd,Home Care - Private Contractors Payment,600.62,0.00,COMMERCIAL SUPPLIER 
 17-11-2023,People - Ageing Well,Lodge Group Care UK Ltd,Home Care - Private Contractors Payment,600.98,0.00,COMMERCIAL SUPPLIER 
 16-11-2023,People - Ageing Well,Anytime Care 2020_a,Home Care - Private Contractors Payment,600.99,0.00,COMMERCIAL SUPPLIER 
 17-11-2023,People - Ageing Well,Lodge Group Care UK Ltd,Home Care - Private Contractors Payment,600.99,0.00,COMMERCIAL SUPPLIER 
 17-11-2023,People - Ageing Well,Lodge Group Care UK Ltd,Home Care - Private Contractors Payment,602.44,0.00,COMMERCIAL SUPPLIER 
 10-11-2023,People - Ageing Well,Homestead Care Service,Home Care - Private Contractors Payment,602.81,0.00,COMMERCIAL SUPPLIER 
 10-11-2023,People - Ageing Well,Home Sweet Home Care Ltd,Home Care - Private Contractors Payment,603.90,0.00,COMMERCIAL SUPPLIER 
 10-11-2023,People - Ageing Well,Homestead Care Service,Home Care - Private Contractors Payment,604.63,0.00,COMMERCIAL SUPPLIER 
 17-11-2023,People - Ageing Well,Lodge Group Care UK Ltd,Home Care - Private Contractors Payment,604.99,0.00,COMMERCIAL SUPPLIER 
 08-11-2023,People - Ageing Well,Morepower Ltd t/a Aqs Homecare,Home Care - Private Contractors Payment,605.35,0.00,COMMERCIAL SUPPLIER 
 14-11-2023,People - Ageing Well,Home Support Services (Havering & Essex) Ltd,Home Care - Private Contractors Payment,605.72,0.00,COMMERCIAL SUPPLIER 
 17-11-2023,People - Ageing Well,Lodge Group Care UK Ltd,Home Care - Private Contractors Payment,606.08,0.00,COMMERCIAL SUPPLIER 
 10-11-2023,People - Ageing Well,Home Sweet Home Care Ltd,Home Care - Private Contractors Payment,606.81,0.00,COMMERCIAL SUPPLIER 
 10-11-2023,People - Ageing Well,Home Sweet Home Care Ltd,Home Care - Private Contractors Payment,606.81,0.00,COMMERCIAL SUPPLIER 
 17-11-2023,People - Ageing Well,Masumin Ltd t/s Abbeleigh House,Residential Placements - Private Contractors Payment,607.14,0.00,COMMERCIAL SUPPLIER 
 17-11-2023,People - Ageing Well,Langley House,Respite Care - Private Contractors Payment,607.14,0.00,COMMERCIAL SUPPLIER 
 10-11-2023,People - Ageing Well,Home Sweet Home Care Ltd,Home Care - Private Contractors Payment,607.17,0.00,COMMERCIAL SUPPLIER 
 22-11-2023,People - Ageing Well,Matrix SCM Ltd,Agency Staff,607.20,0.00,COMMERCIAL SUPPLIER 
 10-11-2023,People - Ageing Well,Home Sweet Home Care Ltd,Home Care - Private Contractors Payment,607.54,0.00,COMMERCIAL SUPPLIER 
 14-11-2023,People - Ageing Well,Home Support Services (Havering & Essex) Ltd,Home Care - Private Contractors Payment,607.54,0.00,COMMERCIAL SUPPLIER 
 10-11-2023,People - Ageing Well,Home Sweet Home Care Ltd,Home Care - Private Contractors Payment,609.36,0.00,COMMERCIAL SUPPLIER 
 14-11-2023,People - Ageing Well,Home Support Services (Havering & Essex) Ltd,Home Care - Private Contractors Payment,609.36,0.00,COMMERCIAL SUPPLIER 
 17-11-2023,People - Ageing Well,Voyage 1 Ltd - Quite Waters,Residential Placements - Private Contractors Payment,609.62,0.00,COMMERCIAL SUPPLIER 
 05-11-2023,People - Ageing Well,Personal Information - Redacted,Home Care - Private Contractors Payment,609.76,0.00,INDIVIDUALS 
 06-11-2023,People - Ageing Well,Tapestry_a.,Daycare - Private Contractors Payment,610.00,0.00,COMMERCIAL SUPPLIER 
 15-11-2023,People - Ageing Well,John Stanleys Care Agency Ltd,Home Care - Private Contractors Payment,610.45,0.00,COMMERCIAL SUPPLIER 
 01-11-2023,People - Ageing Well,Everycare Romford ,Home Care - Private Contractors Payment,611.52,0.00,COMMERCIAL SUPPLIER 
 05-11-2023,People - Ageing Well,Personal Information - Redacted,Home Care - Private Contractors Payment,611.53,0.00,INDIVIDUALS 
 05-11-2023,People - Ageing Well,Personal Information - Redacted,Home Care - Private Contractors Payment,611.53,0.00,INDIVIDUALS 
 13-11-2023,People - Ageing Well,Outreach Support Services Ltd,Home Care - Private Contractors Payment,611.53,0.00,COMMERCIAL SUPPLIER 
 16-11-2023,People - Ageing Well,Inna Care Ltd,Home Care - Private Contractors Payment,611.53,0.00,COMMERCIAL SUPPLIER 
 30-11-2023,People - Ageing Well,Crystalize Care Services Ltd,Home Care - Private Contractors Payment,611.53,0.00,COMMERCIAL SUPPLIER 
 05-11-2023,People - Ageing Well,Personal Information - Redacted,Home Care - Private Contractors Payment,611.54,0.00,INDIVIDUALS 
 05-11-2023,People - Ageing Well,Personal Information - Redacted,Home Care - Private Contractors Payment,611.54,0.00,INDIVIDUALS 
 06-11-2023,People - Ageing Well,Hospiva Care & Associates Agency Ltd_a,Home Care - Private Contractors Payment,611.54,0.00,COMMERCIAL SUPPLIER 
 06-11-2023,People - Ageing Well,Hospiva Care & Associates Agency Ltd_a,Home Care - Private Contractors Payment,611.54,0.00,COMMERCIAL SUPPLIER 
 07-11-2023,People - Ageing Well,London Homecare Ltd,Home Care - Private Contractors Payment,611.54,0.00,COMMERCIAL SUPPLIER 
 07-11-2023,People - Ageing Well,London Homecare Ltd,Home Care - Private Contractors Payment,611.54,0.00,COMMERCIAL SUPPLIER 
 07-11-2023,People - Ageing Well,Premier Carewaiting Ltd,Home Care - Private Contractors Payment,611.54,0.00,COMMERCIAL SUPPLIER 
 07-11-2023,People - Ageing Well,Premier Carewaiting Ltd,Home Care - Private Contractors Payment,611.54,0.00,COMMERCIAL SUPPLIER 
 08-11-2023,People - Ageing Well,Prestige Care & Support Ltd,Home Care - Private Contractors Payment,611.54,0.00,COMMERCIAL SUPPLIER 
 08-11-2023,People - Ageing Well,Prestige Care & Support Ltd,Home Care - Private Contractors Payment,611.54,0.00,COMMERCIAL SUPPLIER 
 08-11-2023,People - Ageing Well,Prestige Care & Support Ltd,Home Care - Private Contractors Payment,611.54,0.00,COMMERCIAL SUPPLIER 
 08-11-2023,People - Ageing Well,Morepower Ltd t/a Aqs Homecare,Home Care - Private Contractors Payment,611.54,0.00,COMMERCIAL SUPPLIER 
 10-11-2023,People - Ageing Well,Home Sweet Home Care Ltd,Home Care - Private Contractors Payment,611.54,0.00,COMMERCIAL SUPPLIER 
 10-11-2023,People - Ageing Well,Home Sweet Home Care Ltd,Home Care - Private Contractors Payment,611.54,0.00,COMMERCIAL SUPPLIER 
 10-11-2023,People - Ageing Well,Home Sweet Home Care Ltd,Home Care - Private Contractors Payment,611.54,0.00,COMMERCIAL SUPPLIER 
 10-11-2023,People - Ageing Well,Home Sweet Home Care Ltd,Home Care - Private Contractors Payment,611.54,0.00,COMMERCIAL SUPPLIER 
 10-11-2023,People - Ageing Well,Home Sweet Home Care Ltd,Home Care - Private Contractors Payment,611.54,0.00,COMMERCIAL SUPPLIER 
 10-11-2023,People - Ageing Well,Home Sweet Home Care Ltd,Home Care - Private Contractors Payment,611.54,0.00,COMMERCIAL SUPPLIER 
 10-11-2023,People - Ageing Well,Home Sweet Home Care Ltd,Home Care - Private Contractors Payment,611.54,0.00,COMMERCIAL SUPPLIER 
 10-11-2023,People - Ageing Well,Home Sweet Home Care Ltd,Home Care - Private Contractors Payment,611.54,0.00,COMMERCIAL SUPPLIER 
 13-11-2023,People - Ageing Well,Passion Tree Care Services Ltd,Home Care - Private Contractors Payment,611.54,0.00,COMMERCIAL SUPPLIER 
 13-11-2023,People - Ageing Well,Passion Tree Care Services Ltd,Home Care - Private Contractors Payment,611.54,0.00,COMMERCIAL SUPPLIER 
 13-11-2023,People - Ageing Well,Passion Tree Care Services Ltd,Home Care - Private Contractors Payment,611.54,0.00,COMMERCIAL SUPPLIER 
 13-11-2023,People - Ageing Well,Passion Tree Care Services Ltd,Home Care - Private Contractors Payment,611.54,0.00,COMMERCIAL SUPPLIER 
 13-11-2023,People - Ageing Well,Passion Tree Care Services Ltd,Home Care - Private Contractors Payment,611.54,0.00,COMMERCIAL SUPPLIER 
 14-11-2023,People - Ageing Well,Cera Care Operations Ltd,Home Care - Private Contractors Payment,611.54,0.00,COMMERCIAL SUPPLIER 
 14-11-2023,People - Ageing Well,Cera Care Operations Ltd,Home Care - Private Contractors Payment,611.54,0.00,COMMERCIAL SUPPLIER 
 14-11-2023,People - Ageing Well,Home Support Services (Havering & Essex) Ltd,Home Care - Private Contractors Payment,611.54,0.00,COMMERCIAL SUPPLIER 
 16-11-2023,People - Ageing Well,Anytime Care 2020_a,Home Care - Private Contractors Payment,611.54,0.00,COMMERCIAL SUPPLIER 
 16-11-2023,People - Ageing Well,Anytime Care 2020_a,Home Care - Private Contractors Payment,611.54,0.00,COMMERCIAL SUPPLIER 
 16-11-2023,People - Ageing Well,Anytime Care 2020_a,Home Care - Private Contractors Payment,611.54,0.00,COMMERCIAL SUPPLIER 
 16-11-2023,People - Ageing Well,Inna Care Ltd,Home Care - Private Contractors Payment,611.54,0.00,COMMERCIAL SUPPLIER 
 16-11-2023,People - Ageing Well,Inna Care Ltd,Home Care - Private Contractors Payment,611.54,0.00,COMMERCIAL SUPPLIER 
 16-11-2023,People - Ageing Well,Inna Care Ltd,Home Care - Private Contractors Payment,611.54,0.00,COMMERCIAL SUPPLIER 
 16-11-2023,People - Ageing Well,Inna Care Ltd,Home Care - Private Contractors Payment,611.54,0.00,COMMERCIAL SUPPLIER 
 16-11-2023,People - Ageing Well,Inna Care Ltd,Home Care - Private Contractors Payment,611.54,0.00,COMMERCIAL SUPPLIER 
 17-11-2023,People - Ageing Well,Lodge Group Care UK Ltd,Home Care - Private Contractors Payment,611.54,0.00,COMMERCIAL SUPPLIER 
 17-11-2023,People - Ageing Well,Lodge Group Care UK Ltd,Home Care - Private Contractors Payment,611.54,0.00,COMMERCIAL SUPPLIER 
 17-11-2023,People - Ageing Well,Lodge Group Care UK Ltd,Home Care - Private Contractors Payment,611.54,0.00,COMMERCIAL SUPPLIER 
 08-11-2023,People - Ageing Well,Prestige Care & Support Ltd,Home Care - Private Contractors Payment,611.91,0.00,COMMERCIAL SUPPLIER 
 14-11-2023,People - Ageing Well,Home Support Services (Havering & Essex) Ltd,Home Care - Private Contractors Payment,611.91,0.00,COMMERCIAL SUPPLIER 
 16-11-2023,People - Ageing Well,Anytime Care 2020_a,Home Care - Private Contractors Payment,611.91,0.00,COMMERCIAL SUPPLIER 
 17-11-2023,People - Ageing Well,Lodge Group Care UK Ltd,Home Care - Private Contractors Payment,611.91,0.00,COMMERCIAL SUPPLIER 
 06-11-2023,People - Ageing Well,Hospiva Care & Associates Agency Ltd_a,Home Care - Private Contractors Payment,612.27,0.00,COMMERCIAL SUPPLIER 
 17-11-2023,People - Ageing Well,Lodge Group Care UK Ltd,Home Care - Private Contractors Payment,612.27,0.00,COMMERCIAL SUPPLIER 
 10-11-2023,People - Ageing Well,Home Sweet Home Care Ltd,Home Care - Private Contractors Payment,612.63,0.00,COMMERCIAL SUPPLIER 
 13-11-2023,People - Ageing Well,Livingstone Health Care Services,Home Care - Private Contractors Payment,612.63,0.00,COMMERCIAL SUPPLIER 
 17-11-2023,People - Ageing Well,Leonard Cheshire Disability_a.,Residential Placements - Private Contractors Payment,612.76,0.00,COMMERCIAL SUPPLIER 
 10-11-2023,People - Ageing Well,Home Sweet Home Care Ltd,Home Care - Private Contractors Payment,613.36,0.00,COMMERCIAL SUPPLIER 
 10-11-2023,People - Ageing Well,Home Sweet Home Care Ltd,Home Care - Private Contractors Payment,613.36,0.00,COMMERCIAL SUPPLIER 
 10-11-2023,People - Ageing Well,Home Sweet Home Care Ltd,Home Care - Private Contractors Payment,613.36,0.00,COMMERCIAL SUPPLIER 
 10-11-2023,People - Ageing Well,Home Sweet Home Care Ltd,Home Care - Private Contractors Payment,613.36,0.00,COMMERCIAL SUPPLIER 
 17-11-2023,People - Ageing Well,Lodge Group Care UK Ltd,Home Care - Private Contractors Payment,613.36,0.00,COMMERCIAL SUPPLIER 
 08-11-2023,People - Ageing Well,Prestige Care & Support Ltd,Home Care - Private Contractors Payment,613.73,0.00,COMMERCIAL SUPPLIER 
 14-11-2023,People - Ageing Well,Home Support Services (Havering & Essex) Ltd,Home Care - Private Contractors Payment,613.73,0.00,COMMERCIAL SUPPLIER 
 17-11-2023,People - Ageing Well,Raynet Recruitment Agency Ltd,Supported Other Accommodation - Private Contractors Payment,614.04,0.00,COMMERCIAL SUPPLIER 
 10-11-2023,People - Ageing Well,Homestead Care Service,Home Care - Private Contractors Payment,614.09,0.00,COMMERCIAL SUPPLIER 
 16-11-2023,People - Ageing Well,Anytime Care 2020_a,Home Care - Private Contractors Payment,614.09,0.00,COMMERCIAL SUPPLIER 
 10-11-2023,People - Ageing Well,Homestead Care Service,Home Care - Private Contractors Payment,614.82,0.00,COMMERCIAL SUPPLIER 
 17-11-2023,People - Ageing Well,Quality Healthcare Solutions Ltd t/a Kare Plus Romford,Home Care - Private Contractors Payment,615.18,0.00,COMMERCIAL SUPPLIER 
 14-11-2023,People - Ageing Well,Home Support Services (Havering & Essex) Ltd,Home Care - Private Contractors Payment,615.55,0.00,COMMERCIAL SUPPLIER 
 17-11-2023,People - Ageing Well,Lodge Group Care UK Ltd,Home Care - Private Contractors Payment,616.27,0.00,COMMERCIAL SUPPLIER 
 17-11-2023,People - Ageing Well,Lodge Group Care UK Ltd,Home Care - Private Contractors Payment,616.64,0.00,COMMERCIAL SUPPLIER 
 14-11-2023,People - Ageing Well,Home Support Services (Havering & Essex) Ltd,Home Care - Private Contractors Payment,617.00,0.00,COMMERCIAL SUPPLIER 
 13-11-2023,People - Ageing Well,Livingstone Health Care Services,Home Care - Private Contractors Payment,617.36,0.00,COMMERCIAL SUPPLIER 
 08-11-2023,People - Ageing Well,Prestige Care & Support Ltd,Home Care - Private Contractors Payment,617.37,0.00,COMMERCIAL SUPPLIER 
 08-11-2023,People - Ageing Well,Morepower Ltd t/a Aqs Homecare,Home Care - Private Contractors Payment,617.37,0.00,COMMERCIAL SUPPLIER 
 14-11-2023,People - Ageing Well,Home Support Services (Havering & Essex) Ltd,Home Care - Private Contractors Payment,617.37,0.00,COMMERCIAL SUPPLIER 
 17-11-2023,People - Ageing Well,Lodge Group Care UK Ltd,Home Care - Private Contractors Payment,617.37,0.00,COMMERCIAL SUPPLIER 
 06-11-2023,People - Ageing Well,Hospiva Care & Associates Agency Ltd_a,Home Care - Private Contractors Payment,617.73,0.00,COMMERCIAL SUPPLIER 
 17-11-2023,People - Ageing Well,Lodge Group Care UK Ltd,Home Care - Private Contractors Payment,617.73,0.00,COMMERCIAL SUPPLIER 
 03-11-2023,People - Ageing Well,Livingstone Health Care Services,Home Care - Private Contractors Payment,618.09,0.00,COMMERCIAL SUPPLIER 
 10-11-2023,People - Ageing Well,Homestead Care Service,Home Care - Private Contractors Payment,618.09,0.00,COMMERCIAL SUPPLIER 
 14-11-2023,People - Ageing Well,Home Support Services (Havering & Essex) Ltd,Home Care - Private Contractors Payment,618.09,0.00,COMMERCIAL SUPPLIER 
 16-11-2023,People - Ageing Well,Anytime Care 2020_a,Home Care - Private Contractors Payment,618.09,0.00,COMMERCIAL SUPPLIER 
 14-11-2023,People - Ageing Well,Home Support Services (Havering & Essex) Ltd,Home Care - Private Contractors Payment,618.82,0.00,COMMERCIAL SUPPLIER 
 15-11-2023,People - Ageing Well,Livingstone Health Care Services,Home Care - Private Contractors Payment,618.82,0.00,COMMERCIAL SUPPLIER 
 14-11-2023,People - Ageing Well,Cera Care Operations Ltd,Home Care - Private Contractors Payment,619.19,0.00,COMMERCIAL SUPPLIER 
 17-11-2023,People - Ageing Well,Lodge Group Care UK Ltd,Home Care - Private Contractors Payment,619.19,0.00,COMMERCIAL SUPPLIER 
 20-11-2023,People - Ageing Well,Livingstone Health Care Services,Home Care - Private Contractors Payment,619.55,0.00,COMMERCIAL SUPPLIER 
 03-11-2023,People - Ageing Well,Romford Private Hire Ltd,Client Transport,620.00,0.00,COMMERCIAL SUPPLIER 
 08-11-2023,People - Ageing Well,Action First Assessments Ltd,Private Contractors Payment - Other,620.00,0.00,COMMERCIAL SUPPLIER 
 08-11-2023,People - Ageing Well,Action First Assessments Ltd,Private Contractors Payment - Other,620.00,0.00,COMMERCIAL SUPPLIER 
 08-11-2023,People - Ageing Well,Action First Assessments Ltd,Private Contractors Payment - Other,620.00,0.00,COMMERCIAL SUPPLIER 
 08-11-2023,People - Ageing Well,Action First Assessments Ltd,Private Contractors Payment - Other,620.00,0.00,COMMERCIAL SUPPLIER 
 08-11-2023,People - Ageing Well,Action First Assessments Ltd,Private Contractors Payment - Other,620.00,0.00,COMMERCIAL SUPPLIER 
 10-11-2023,People - Ageing Well,Homestead Care Service,Home Care - Private Contractors Payment,620.28,0.00,COMMERCIAL SUPPLIER 
 17-11-2023,People - Ageing Well,Lodge Group Care UK Ltd,Home Care - Private Contractors Payment,620.64,0.00,COMMERCIAL SUPPLIER 
 08-11-2023,People - Ageing Well,Prestige Care & Support Ltd,Home Care - Private Contractors Payment,621.37,0.00,COMMERCIAL SUPPLIER 
 17-11-2023,People - Ageing Well,Lodge Group Care UK Ltd,Home Care - Private Contractors Payment,621.37,0.00,COMMERCIAL SUPPLIER 
 17-11-2023,People - Ageing Well,BeTo Solutions Ltd,Supported Other Accommodation - Private Contractors Payment,622.08,0.00,COMMERCIAL SUPPLIER 
 10-11-2023,People - Ageing Well,Home Sweet Home Care Ltd,Home Care - Private Contractors Payment,622.46,0.00,COMMERCIAL SUPPLIER 
 10-11-2023,People - Ageing Well,Home Sweet Home Care Ltd,Home Care - Private Contractors Payment,623.55,0.00,COMMERCIAL SUPPLIER 
 01-11-2023,People - Ageing Well,Cakeybakeydoodaa Ltd,Daycare - Private Contractors Payment,624.00,0.00,COMMERCIAL SUPPLIER 
 29-11-2023,People - Ageing Well,Cakeybakeydoodaa Ltd,Daycare - Private Contractors Payment,624.00,0.00,COMMERCIAL SUPPLIER 
 17-11-2023,People - Ageing Well,The Avenues Trust - 13A Repton Drive,Residential Care Income,624.60,0.00,COMMERCIAL SUPPLIER 
 17-11-2023,People - Ageing Well,The Avenues Trust - 13A Repton Drive,Residential Care Income,624.60,0.00,COMMERCIAL SUPPLIER 
 17-11-2023,People - Ageing Well,The Avenues Trust - 13A Repton Drive,Residential Care Income,624.60,0.00,COMMERCIAL SUPPLIER 
 17-11-2023,People - Ageing Well,Lodge Group Care UK Ltd,Home Care - Private Contractors Payment,625.01,0.00,COMMERCIAL SUPPLIER 
 10-11-2023,People - Ageing Well,Home Sweet Home Care Ltd,Home Care - Private Contractors Payment,625.37,0.00,COMMERCIAL SUPPLIER 
 03-11-2023,People - Ageing Well,Livingstone Health Care Services,Home Care - Private Contractors Payment,625.74,0.00,COMMERCIAL SUPPLIER 
 17-11-2023,People - Ageing Well,Lodge Group Care UK Ltd,Home Care - Private Contractors Payment,626.10,0.00,COMMERCIAL SUPPLIER 
 17-11-2023,People - Ageing Well,Lodge Group Care UK Ltd,Home Care - Private Contractors Payment,626.10,0.00,COMMERCIAL SUPPLIER 
 07-11-2023,People - Ageing Well,Livingstone Health Care Services,Home Care - Private Contractors Payment,626.83,0.00,COMMERCIAL SUPPLIER 
 07-11-2023,People - Ageing Well,Livingstone Health Care Services,Home Care - Private Contractors Payment,628.29,0.00,COMMERCIAL SUPPLIER 
 08-11-2023,People - Ageing Well,Morepower Ltd t/a Aqs Homecare,Home Care - Private Contractors Payment,628.29,0.00,COMMERCIAL SUPPLIER 
 17-11-2023,People - Ageing Well,Little Gaynes,Residential Placements - Private Contractors Payment,628.57,0.00,COMMERCIAL SUPPLIER 
 08-11-2023,People - Ageing Well,Morepower Ltd t/a Aqs Homecare,Home Care - Private Contractors Payment,628.65,0.00,COMMERCIAL SUPPLIER 
 17-11-2023,People - Ageing Well,Care Square Ltd.,Supported Other Accommodation - Private Contractors Payment,629.60,0.00,COMMERCIAL SUPPLIER 
 17-11-2023,People - Ageing Well,Cygnet Health Care,Residential Placements - Private Contractors Payment,630.00,0.00,COMMERCIAL SUPPLIER 
 03-11-2023,People - Ageing Well,Livingstone Health Care Services,Home Care - Private Contractors Payment,630.47,0.00,COMMERCIAL SUPPLIER 
 07-11-2023,People - Ageing Well,Livingstone Health Care Services,Home Care - Private Contractors Payment,631.20,0.00,COMMERCIAL SUPPLIER 
 01-11-2023,People - Ageing Well,Matrix SCM Ltd,Agency Staff,631.64,0.00,COMMERCIAL SUPPLIER 
 08-11-2023,People - Ageing Well,Matrix SCM Ltd,Agency Staff,632.51,0.00,COMMERCIAL SUPPLIER 
 15-11-2023,People - Ageing Well,Matrix SCM Ltd,Agency Staff,632.51,0.00,COMMERCIAL SUPPLIER 
 22-11-2023,People - Ageing Well,Matrix SCM Ltd,Agency Staff,632.51,0.00,COMMERCIAL SUPPLIER 
 15-11-2023,People - Ageing Well,John Stanleys Care Agency Ltd,Home Care - Private Contractors Payment,633.75,0.00,COMMERCIAL SUPPLIER 
 14-11-2023,People - Ageing Well,Home Support Services (Havering & Essex) Ltd,Home Care - Private Contractors Payment,634.47,0.00,COMMERCIAL SUPPLIER 
 08-11-2023,People - Ageing Well,Livingstone Health Care Services,Home Care - Private Contractors Payment,635.57,0.00,COMMERCIAL SUPPLIER 
 07-11-2023,People - Ageing Well,Livingstone Health Care Services,Home Care - Private Contractors Payment,636.29,0.00,COMMERCIAL SUPPLIER 
 07-11-2023,People - Ageing Well,Livingstone Health Care Services,Home Care - Private Contractors Payment,637.02,0.00,COMMERCIAL SUPPLIER 
 08-11-2023,People - Ageing Well,Livingstone Health Care Services,Home Care - Private Contractors Payment,638.11,0.00,COMMERCIAL SUPPLIER 
 03-11-2023,People - Ageing Well,Livingstone Health Care Services,Home Care - Private Contractors Payment,638.48,0.00,COMMERCIAL SUPPLIER 
 20-11-2023,People - Ageing Well,Livingstone Health Care Services,Home Care - Private Contractors Payment,638.84,0.00,COMMERCIAL SUPPLIER 
 17-11-2023,People - Ageing Well,Lodge Group Care UK Ltd,Home Care - Private Contractors Payment,639.21,0.00,COMMERCIAL SUPPLIER 
 17-11-2023,People - Ageing Well,Moreland House_a,Nursing Homes - Private Contractors Payment,640.00,0.00,COMMERCIAL SUPPLIER 
 10-11-2023,People - Ageing Well,Home Sweet Home Care Ltd,Home Care - Private Contractors Payment,640.30,0.00,COMMERCIAL SUPPLIER 
 16-11-2023,People - Ageing Well,Care-Away Ltd T/A Care Support,Home Care - Private Contractors Payment,641.90,0.00,COMMERCIAL SUPPLIER 
 15-11-2023,People - Ageing Well,Livingstone Health Care Services,Home Care - Private Contractors Payment,642.12,0.00,COMMERCIAL SUPPLIER 
 17-11-2023,People - Ageing Well,Quality Healthcare Solutions Ltd t/a Kare Plus Romford,Home Care - Private Contractors Payment,643.21,0.00,COMMERCIAL SUPPLIER 
 08-11-2023,People - Ageing Well,Morepower Ltd t/a Aqs Homecare,Home Care - Private Contractors Payment,644.29,0.00,COMMERCIAL SUPPLIER 
 10-11-2023,People - Ageing Well,Home Sweet Home Care Ltd,Home Care - Private Contractors Payment,645.39,0.00,COMMERCIAL SUPPLIER 
 15-11-2023,People - Ageing Well,John Stanleys Care Agency Ltd,Home Care - Private Contractors Payment,646.85,0.00,COMMERCIAL SUPPLIER 
 09-11-2023,People - Ageing Well,Prior Care Ltd_a,Home Care - Private Contractors Payment,647.58,0.00,COMMERCIAL SUPPLIER 
 01-11-2023,People - Ageing Well,Matrix SCM Ltd,Agency Staff,647.68,0.00,COMMERCIAL SUPPLIER 
 22-11-2023,People - Ageing Well,Matrix SCM Ltd,Agency Staff,647.68,0.00,COMMERCIAL SUPPLIER 
 02-11-2023,People - Ageing Well,Lakefield Enterprises Ltd t/a R J Bowyer Building Services,Maintenance - Equipment Furniture And Materials,650.00,0.00,COMMERCIAL SUPPLIER 
 07-11-2023,People - Ageing Well,Livingstone Health Care Services,Home Care - Private Contractors Payment,651.58,0.00,COMMERCIAL SUPPLIER 
 08-11-2023,People - Ageing Well,Prestige Care & Support Ltd,Home Care - Private Contractors Payment,651.58,0.00,COMMERCIAL SUPPLIER 
 07-11-2023,People - Ageing Well,London Homecare Ltd,Home Care - Private Contractors Payment,655.21,0.00,COMMERCIAL SUPPLIER 
 07-11-2023,People - Ageing Well,London Homecare Ltd,Home Care - Private Contractors Payment,655.22,0.00,COMMERCIAL SUPPLIER 
 07-11-2023,People - Ageing Well,London Homecare Ltd,Home Care - Private Contractors Payment,655.22,0.00,COMMERCIAL SUPPLIER 
 09-11-2023,People - Ageing Well,Prior Care Ltd_a,Home Care - Private Contractors Payment,655.22,0.00,COMMERCIAL SUPPLIER 
 10-11-2023,People - Ageing Well,Homestead Care Service,Home Care - Private Contractors Payment,655.22,0.00,COMMERCIAL SUPPLIER 
 14-11-2023,People - Ageing Well,Home Support Services (Havering & Essex) Ltd,Home Care - Private Contractors Payment,655.22,0.00,COMMERCIAL SUPPLIER 
 16-11-2023,People - Ageing Well,Anytime Care 2020_a,Home Care - Private Contractors Payment,655.22,0.00,COMMERCIAL SUPPLIER 
 16-11-2023,People - Ageing Well,Anytime Care 2020_a,Home Care - Private Contractors Payment,655.22,0.00,COMMERCIAL SUPPLIER 
 10-11-2023,People - Ageing Well,Homestead Care Service,Home Care - Private Contractors Payment,658.50,0.00,COMMERCIAL SUPPLIER 
 08-11-2023,People - Ageing Well,Morepower Ltd t/a Aqs Homecare,Home Care - Private Contractors Payment,658.86,0.00,COMMERCIAL SUPPLIER 
 14-11-2023,People - Ageing Well,Cera Care Operations Ltd,Home Care - Private Contractors Payment,658.86,0.00,COMMERCIAL SUPPLIER 
 16-11-2023,People - Ageing Well,Care-Away Ltd T/A Care Support,Home Care - Private Contractors Payment,660.24,0.00,COMMERCIAL SUPPLIER 
 17-11-2023,People - Ageing Well,Lodge Group Care UK Ltd,Home Care - Private Contractors Payment,661.41,0.00,COMMERCIAL SUPPLIER 
 17-11-2023,People - Ageing Well,Quality Healthcare Solutions Ltd t/a Kare Plus Romford,Home Care - Private Contractors Payment,662.50,0.00,COMMERCIAL SUPPLIER 
 14-11-2023,People - Ageing Well,Home Support Services (Havering & Essex) Ltd,Home Care - Private Contractors Payment,665.05,0.00,COMMERCIAL SUPPLIER 
 17-11-2023,People - Ageing Well,Lodge Group Care UK Ltd,Home Care - Private Contractors Payment,665.78,0.00,COMMERCIAL SUPPLIER 
 14-11-2023,People - Ageing Well,Cera Care Operations Ltd,Home Care - Private Contractors Payment,668.69,0.00,COMMERCIAL SUPPLIER 
 22-11-2023,People - Ageing Well,Matrix SCM Ltd,Agency Staff,673.20,0.00,COMMERCIAL SUPPLIER 
 08-11-2023,People - Ageing Well,Prestige Care & Support Ltd,Home Care - Private Contractors Payment,673.42,0.00,COMMERCIAL SUPPLIER 
 03-11-2023,People - Ageing Well,Livingstone Health Care Services,Home Care - Private Contractors Payment,673.79,0.00,COMMERCIAL SUPPLIER 
 10-11-2023,People - Ageing Well,Homestead Care Service,Home Care - Private Contractors Payment,674.52,0.00,COMMERCIAL SUPPLIER 
 08-11-2023,People - Ageing Well,Livingstone Health Care Services,Home Care - Private Contractors Payment,674.88,0.00,COMMERCIAL SUPPLIER 
 08-11-2023,People - Ageing Well,Morepower Ltd t/a Aqs Homecare,Home Care - Private Contractors Payment,675.24,0.00,COMMERCIAL SUPPLIER 
 08-11-2023,People - Ageing Well,Morepower Ltd t/a Aqs Homecare,Home Care - Private Contractors Payment,677.06,0.00,COMMERCIAL SUPPLIER 
 10-11-2023,People - Ageing Well,Home Sweet Home Care Ltd,Home Care - Private Contractors Payment,677.06,0.00,COMMERCIAL SUPPLIER 
 14-11-2023,People - Ageing Well,Home Support Services (Havering & Essex) Ltd,Home Care - Private Contractors Payment,677.06,0.00,COMMERCIAL SUPPLIER 
 14-11-2023,People - Ageing Well,Home Support Services (Havering & Essex) Ltd,Home Care - Private Contractors Payment,678.52,0.00,COMMERCIAL SUPPLIER 
 17-11-2023,People - Ageing Well,Lodge Lane Care Home Limited,Respite Care - Private Contractors Payment,678.57,0.00,COMMERCIAL SUPPLIER 
 16-11-2023,People - Ageing Well,Anytime Care 2020_a,Home Care - Private Contractors Payment,679.25,0.00,COMMERCIAL SUPPLIER 
 17-11-2023,People - Ageing Well,Lodge Group Care UK Ltd,Home Care - Private Contractors Payment,680.34,0.00,COMMERCIAL SUPPLIER 
 10-11-2023,People - Ageing Well,Homestead Care Service,Home Care - Private Contractors Payment,683.25,0.00,COMMERCIAL SUPPLIER 
 17-11-2023,People - Ageing Well,Lodge Group Care UK Ltd,Home Care - Private Contractors Payment,685.43,0.00,COMMERCIAL SUPPLIER 
 17-11-2023,People - Ageing Well,Quality Healthcare Solutions Ltd t/a Kare Plus Romford,Home Care - Private Contractors Payment,686.16,0.00,COMMERCIAL SUPPLIER 
 17-11-2023,People - Ageing Well,Gemini Assisted Living Ltd,Supported Other Accommodation - Private Contractors Payment,686.40,0.00,COMMERCIAL SUPPLIER 
 10-11-2023,People - Ageing Well,Home Sweet Home Care Ltd,Home Care - Private Contractors Payment,688.35,0.00,COMMERCIAL SUPPLIER 
 10-11-2023,People - Ageing Well,Home Sweet Home Care Ltd,Home Care - Private Contractors Payment,689.08,0.00,COMMERCIAL SUPPLIER 
 15-11-2023,People - Ageing Well,Livingstone Health Care Services,Home Care - Private Contractors Payment,693.44,0.00,COMMERCIAL SUPPLIER 
 15-11-2023,People - Ageing Well,John Stanleys Care Agency Ltd,Home Care - Private Contractors Payment,694.17,0.00,COMMERCIAL SUPPLIER 
 10-11-2023,People - Ageing Well,Homestead Care Service,Home Care - Private Contractors Payment,695.26,0.00,COMMERCIAL SUPPLIER 
 14-11-2023,People - Ageing Well,Home Support Services (Havering & Essex) Ltd,Home Care - Private Contractors Payment,696.72,0.00,COMMERCIAL SUPPLIER 
 17-11-2023,People - Ageing Well,Blessday Services Ltd,Supported Other Accommodation - Private Contractors Payment,697.68,0.00,COMMERCIAL SUPPLIER 
 05-11-2023,People - Ageing Well,Personal Information - Redacted,Home Care - Private Contractors Payment,698.91,0.00,INDIVIDUALS 
 17-11-2023,People - Ageing Well,Lodge Group Care UK Ltd,Home Care - Private Contractors Payment,703.64,0.00,COMMERCIAL SUPPLIER 
 16-11-2023,People - Ageing Well,Anytime Care 2020_a,Home Care - Private Contractors Payment,708.00,0.00,COMMERCIAL SUPPLIER 
 01-11-2023,People - Ageing Well,REMARK LTD,Home Care - Private Contractors Payment,712.32,0.00,COMMERCIAL SUPPLIER 
 01-11-2023,People - Ageing Well,REMARK LTD,Home Care - Private Contractors Payment,712.32,0.00,COMMERCIAL SUPPLIER 
 01-11-2023,People - Ageing Well,REMARK LTD,Home Care - Private Contractors Payment,712.32,0.00,COMMERCIAL SUPPLIER 
 14-11-2023,People - Ageing Well,Home Support Services (Havering & Essex) Ltd,Home Care - Private Contractors Payment,713.46,0.00,COMMERCIAL SUPPLIER 
 16-11-2023,People - Ageing Well,Anytime Care 2020_a,Home Care - Private Contractors Payment,713.46,0.00,COMMERCIAL SUPPLIER 
 17-11-2023,People - Ageing Well,Lodge Lane Care Home Limited,Respite Care - Private Contractors Payment,714.29,0.00,COMMERCIAL SUPPLIER 
 03-11-2023,People - Ageing Well,Livingstone Health Care Services,Home Care - Private Contractors Payment,714.56,0.00,COMMERCIAL SUPPLIER 
 01-11-2023,People - Ageing Well,Inclusive Care Support Limited,Long Term Support - Community: Supported Living,714.96,0.00,COMMERCIAL SUPPLIER 
 01-11-2023,People - Ageing Well,Inclusive Care Support Limited,Long Term Support - Community: Supported Living,714.96,0.00,COMMERCIAL SUPPLIER 
 01-11-2023,People - Ageing Well,Inclusive Care Support Limited,Long Term Support - Community: Supported Living,714.96,0.00,COMMERCIAL SUPPLIER 
 01-11-2023,People - Ageing Well,Inclusive Care Support Limited,Long Term Support - Community: Supported Living,714.96,0.00,COMMERCIAL SUPPLIER 
 01-11-2023,People - Ageing Well,Inclusive Care Support Limited,Supported Other Accommodation - Private Contractors Payment,714.96,0.00,COMMERCIAL SUPPLIER 
 01-11-2023,People - Ageing Well,Inclusive Care Support Limited,Supported Other Accommodation - Private Contractors Payment,714.96,0.00,COMMERCIAL SUPPLIER 
 01-11-2023,People - Ageing Well,Inclusive Care Support Limited,Supported Other Accommodation - Private Contractors Payment,714.96,0.00,COMMERCIAL SUPPLIER 
 01-11-2023,People - Ageing Well,Inclusive Care Support Limited,Supported Other Accommodation - Private Contractors Payment,714.96,0.00,COMMERCIAL SUPPLIER 
 01-11-2023,People - Ageing Well,Inclusive Care Support Limited,Supported Other Accommodation - Private Contractors Payment,714.96,0.00,COMMERCIAL SUPPLIER 
 01-11-2023,People - Ageing Well,Inclusive Care Support Limited,Supported Other Accommodation - Private Contractors Payment,714.96,0.00,COMMERCIAL SUPPLIER 
 01-11-2023,People - Ageing Well,Inclusive Care Support Limited,Supported Other Accommodation - Private Contractors Payment,714.96,0.00,COMMERCIAL SUPPLIER 
 21-11-2023,People - Ageing Well,Inclusive Care Support Limited,Long Term Support - Community: Supported Living,714.96,0.00,COMMERCIAL SUPPLIER 
 21-11-2023,People - Ageing Well,Inclusive Care Support Limited,Supported Other Accommodation - Private Contractors Payment,714.96,0.00,COMMERCIAL SUPPLIER 
 21-11-2023,People - Ageing Well,Inclusive Care Support Limited,Long Term Support - Community: Supported Living,714.96,0.00,COMMERCIAL SUPPLIER 
 21-11-2023,People - Ageing Well,Inclusive Care Support Limited,Supported Other Accommodation - Private Contractors Payment,714.96,0.00,COMMERCIAL SUPPLIER 
 21-11-2023,People - Ageing Well,Inclusive Care Support Limited,Supported Other Accommodation - Private Contractors Payment,714.96,0.00,COMMERCIAL SUPPLIER 
 17-11-2023,People - Ageing Well,Affinia Healthcare Ltd_a,Supported Other Accommodation - Private Contractors Payment,716.00,0.00,COMMERCIAL SUPPLIER 
 17-11-2023,People - Ageing Well,Affinia Healthcare Ltd_a,Supported Other Accommodation - Private Contractors Payment,716.00,0.00,COMMERCIAL SUPPLIER 
 17-11-2023,People - Ageing Well,Quality Healthcare Solutions Ltd t/a Kare Plus Romford,Home Care - Private Contractors Payment,716.01,0.00,COMMERCIAL SUPPLIER 
 08-11-2023,People - Ageing Well,Morepower Ltd t/a Aqs Homecare,Home Care - Private Contractors Payment,717.47,0.00,COMMERCIAL SUPPLIER 
 17-11-2023,People - Ageing Well,Barleycroft Care Home Ltd,Nursing Homes - Private Contractors Payment,720.00,0.00,COMMERCIAL SUPPLIER 
 08-11-2023,People - Ageing Well,Livingstone Health Care Services,Home Care - Private Contractors Payment,722.20,0.00,COMMERCIAL SUPPLIER 
 10-11-2023,People - Ageing Well,Homestead Care Service,Home Care - Private Contractors Payment,722.92,0.00,COMMERCIAL SUPPLIER 
 08-11-2023,People - Ageing Well,Morepower Ltd t/a Aqs Homecare,Home Care - Private Contractors Payment,726.93,0.00,COMMERCIAL SUPPLIER 
 14-11-2023,People - Ageing Well,Home Support Services (Havering & Essex) Ltd,Home Care - Private Contractors Payment,731.67,0.00,COMMERCIAL SUPPLIER 
 06-11-2023,People - Ageing Well,Tapestry_a.,Daycare - Private Contractors Payment,732.00,0.00,COMMERCIAL SUPPLIER 
 06-11-2023,People - Ageing Well,Tapestry_a.,Daycare - Private Contractors Payment,732.00,0.00,COMMERCIAL SUPPLIER 
 06-11-2023,People - Ageing Well,Tapestry_a.,Daycare - Private Contractors Payment,732.00,0.00,COMMERCIAL SUPPLIER 
 06-11-2023,People - Ageing Well,Tapestry_a.,Daycare - Private Contractors Payment,732.00,0.00,COMMERCIAL SUPPLIER 
 06-11-2023,People - Ageing Well,Tapestry_a.,Daycare - Private Contractors Payment,732.00,0.00,COMMERCIAL SUPPLIER 
 06-11-2023,People - Ageing Well,Tapestry_a.,Daycare - Private Contractors Payment,732.00,0.00,COMMERCIAL SUPPLIER 
 06-11-2023,People - Ageing Well,Tapestry_a.,Daycare - Private Contractors Payment,732.00,0.00,COMMERCIAL SUPPLIER 
 06-11-2023,People - Ageing Well,Tapestry_a.,Daycare - Private Contractors Payment,732.00,0.00,COMMERCIAL SUPPLIER 
 06-11-2023,People - Ageing Well,Tapestry_a.,Daycare - Private Contractors Payment,732.00,0.00,COMMERCIAL SUPPLIER 
 06-11-2023,People - Ageing Well,Tapestry_a.,Daycare - Private Contractors Payment,732.00,0.00,COMMERCIAL SUPPLIER 
 06-11-2023,People - Ageing Well,Tapestry_a.,Daycare - Private Contractors Payment,732.00,0.00,COMMERCIAL SUPPLIER 
 08-11-2023,People - Ageing Well,Matrix SCM Ltd,Agency Staff,732.26,0.00,COMMERCIAL SUPPLIER 
 15-11-2023,People - Ageing Well,Matrix SCM Ltd,Agency Staff,732.26,0.00,COMMERCIAL SUPPLIER 
 22-11-2023,People - Ageing Well,Matrix SCM Ltd,Agency Staff,732.26,0.00,COMMERCIAL SUPPLIER 
 22-11-2023,People - Ageing Well,Matrix SCM Ltd,Agency Staff,732.26,0.00,COMMERCIAL SUPPLIER 
 29-11-2023,People - Ageing Well,Matrix SCM Ltd,Agency Staff,732.26,0.00,COMMERCIAL SUPPLIER 
 17-11-2023,People - Ageing Well,Affinia Healthcare Ltd_a,Supported Other Accommodation - Private Contractors Payment,733.28,0.00,COMMERCIAL SUPPLIER 
 08-11-2023,People - Ageing Well,Morepower Ltd t/a Aqs Homecare,Home Care - Private Contractors Payment,733.48,0.00,COMMERCIAL SUPPLIER 
 07-11-2023,People - Ageing Well,Headway East London,Daycare - Private Contractors Payment,735.00,0.00,COMMERCIAL SUPPLIER 
 07-11-2023,People - Ageing Well,Livingstone Health Care Services,Home Care - Private Contractors Payment,735.67,0.00,COMMERCIAL SUPPLIER 
 14-11-2023,People - Ageing Well,Cera Care Operations Ltd,Home Care - Private Contractors Payment,736.03,0.00,COMMERCIAL SUPPLIER 
 07-11-2023,People - Ageing Well,Livingstone Health Care Services,Home Care - Private Contractors Payment,736.40,0.00,COMMERCIAL SUPPLIER 
 15-11-2023,People - Ageing Well,John Stanleys Care Agency Ltd,Home Care - Private Contractors Payment,738.94,0.00,COMMERCIAL SUPPLIER 
 29-11-2023,People - Ageing Well,Matrix SCM Ltd,Agency Staff,739.20,0.00,COMMERCIAL SUPPLIER 
 09-11-2023,People - Ageing Well,Prior Care Ltd_a,Home Care - Private Contractors Payment,741.85,0.00,COMMERCIAL SUPPLIER 
 17-11-2023,People - Ageing Well,Quality Healthcare Solutions Ltd t/a Kare Plus Romford,Home Care - Private Contractors Payment,742.22,0.00,COMMERCIAL SUPPLIER 
 17-11-2023,People - Ageing Well,Bayfield Court Operations Ltd C/o Care UK,Residential Placements - Private Contractors Payment,742.86,0.00,COMMERCIAL SUPPLIER 
 17-11-2023,People - Ageing Well,Lodge Group Care UK Ltd,Home Care - Private Contractors Payment,743.67,0.00,COMMERCIAL SUPPLIER 
 08-11-2023,People - Ageing Well,Prestige Care & Support Ltd,Home Care - Private Contractors Payment,744.04,0.00,COMMERCIAL SUPPLIER 
 14-11-2023,People - Ageing Well,Home Support Services (Havering & Essex) Ltd,Home Care - Private Contractors Payment,749.50,0.00,COMMERCIAL SUPPLIER 
 22-11-2023,People - Ageing Well,Matrix SCM Ltd,Agency Staff,749.94,0.00,COMMERCIAL SUPPLIER 
 06-11-2023,People - Ageing Well,Gims Care Solution Ltd_a,Home Care - Private Contractors Payment,751.00,0.00,NON COMMERCIAL SUPPLIER 
 17-11-2023,People - Ageing Well,Lodge Group Care UK Ltd,Home Care - Private Contractors Payment,754.58,0.00,COMMERCIAL SUPPLIER 
 22-11-2023,People - Ageing Well,Matrix SCM Ltd,Agency Staff,755.30,0.00,COMMERCIAL SUPPLIER 
 29-11-2023,People - Ageing Well,Matrix SCM Ltd,Agency Staff,755.30,0.00,COMMERCIAL SUPPLIER 
 17-11-2023,People - Ageing Well,Fari Care Ltd,Supported Other Accommodation - Private Contractors Payment,756.00,0.00,COMMERCIAL SUPPLIER 
 17-11-2023,People - Ageing Well,Fari Care Ltd,Supported Other Accommodation - Private Contractors Payment,756.00,0.00,COMMERCIAL SUPPLIER 
 06-11-2023,People - Ageing Well,Radfield Home Care Havering & Brentwood,Home Care - Private Contractors Payment,756.08,0.00,COMMERCIAL SUPPLIER 
 20-11-2023,People - Ageing Well,Radfield Home Care Havering & Brentwood,Home Care - Private Contractors Payment,756.08,0.00,COMMERCIAL SUPPLIER 
 15-11-2023,People - Ageing Well,John Stanleys Care Agency Ltd,Home Care - Private Contractors Payment,756.78,0.00,COMMERCIAL SUPPLIER 
 03-11-2023,People - Ageing Well,Livingstone Health Care Services,Home Care - Private Contractors Payment,757.51,0.00,COMMERCIAL SUPPLIER 
 15-11-2023,People - Ageing Well,John Stanleys Care Agency Ltd,Home Care - Private Contractors Payment,757.87,0.00,COMMERCIAL SUPPLIER 
 03-11-2023,People - Ageing Well,Livingstone Health Care Services,Home Care - Private Contractors Payment,759.33,0.00,COMMERCIAL SUPPLIER 
 10-11-2023,People - Ageing Well,Home Sweet Home Care Ltd,Home Care - Private Contractors Payment,761.88,0.00,COMMERCIAL SUPPLIER 
 14-11-2023,People - Ageing Well,Home Support Services (Havering & Essex) Ltd,Home Care - Private Contractors Payment,763.34,0.00,COMMERCIAL SUPPLIER 
 07-11-2023,People - Ageing Well,London Homecare Ltd,Home Care - Private Contractors Payment,764.42,0.00,COMMERCIAL SUPPLIER 
 07-11-2023,People - Ageing Well,London Homecare Ltd,Home Care - Private Contractors Payment,764.42,0.00,COMMERCIAL SUPPLIER 
 08-11-2023,People - Ageing Well,IJB Healthcare Ltd,Home Care - Private Contractors Payment,764.42,0.00,COMMERCIAL SUPPLIER 
 08-11-2023,People - Ageing Well,Prestige Care & Support Ltd,Home Care - Private Contractors Payment,764.43,0.00,COMMERCIAL SUPPLIER 
 15-11-2023,People - Ageing Well,John Stanleys Care Agency Ltd,Home Care - Private Contractors Payment,766.97,0.00,COMMERCIAL SUPPLIER 
 14-11-2023,People - Ageing Well,Home Support Services (Havering & Essex) Ltd,Home Care - Private Contractors Payment,768.07,0.00,COMMERCIAL SUPPLIER 
 01-11-2023,People - Ageing Well,Matrix SCM Ltd,Agency Staff,768.95,0.00,COMMERCIAL SUPPLIER 
 08-11-2023,People - Ageing Well,Matrix SCM Ltd,Agency Staff,768.95,0.00,COMMERCIAL SUPPLIER 
 14-11-2023,People - Ageing Well,Care-Away Ltd T/A Care Support,Home Care - Private Contractors Payment,770.28,0.00,COMMERCIAL SUPPLIER 
 14-11-2023,People - Ageing Well,Care-Away Ltd T/A Care Support,Home Care - Private Contractors Payment,770.28,0.00,COMMERCIAL SUPPLIER 
 14-11-2023,People - Ageing Well,Care-Away Ltd T/A Care Support,Home Care - Private Contractors Payment,770.28,0.00,COMMERCIAL SUPPLIER 
 14-11-2023,People - Ageing Well,Care-Away Ltd T/A Care Support,Home Care - Private Contractors Payment,770.28,0.00,COMMERCIAL SUPPLIER 
 16-11-2023,People - Ageing Well,Care-Away Ltd T/A Care Support,Home Care - Private Contractors Payment,770.28,0.00,COMMERCIAL SUPPLIER 
 16-11-2023,People - Ageing Well,Care-Away Ltd T/A Care Support,Home Care - Private Contractors Payment,770.28,0.00,COMMERCIAL SUPPLIER 
 10-11-2023,People - Ageing Well,Home Sweet Home Care Ltd,Home Care - Private Contractors Payment,771.71,0.00,COMMERCIAL SUPPLIER 
 01-11-2023,People - Ageing Well,Matrix SCM Ltd,Agency Staff,774.90,0.00,COMMERCIAL SUPPLIER 
 15-11-2023,People - Ageing Well,Matrix SCM Ltd,Agency Staff,774.90,0.00,COMMERCIAL SUPPLIER 
 15-11-2023,People - Ageing Well,Matrix SCM Ltd,Agency Staff,774.90,0.00,COMMERCIAL SUPPLIER 
 22-11-2023,People - Ageing Well,Matrix SCM Ltd,Agency Staff,774.90,0.00,COMMERCIAL SUPPLIER 
 29-11-2023,People - Ageing Well,Matrix SCM Ltd,Agency Staff,774.90,0.00,COMMERCIAL SUPPLIER 
 17-11-2023,People - Ageing Well,Acorn Village_a,Residential Placements - Private Contractors Payment,774.92,0.00,COMMERCIAL SUPPLIER 
 16-11-2023,People - Ageing Well,Anytime Care 2020_a,Home Care - Private Contractors Payment,775.71,0.00,COMMERCIAL SUPPLIER 
 13-11-2023,People - Ageing Well,London Borough of Barking & Dagenham_a,Daycare - Private Contractors Payment,776.00,0.00,LOCAL AUTHORITY SERVICES 
 10-11-2023,People - Ageing Well,Homestead Care Service,Home Care - Private Contractors Payment,776.44,0.00,COMMERCIAL SUPPLIER 
 14-11-2023,People - Ageing Well,Home Support Services (Havering & Essex) Ltd,Home Care - Private Contractors Payment,777.17,0.00,COMMERCIAL SUPPLIER 
 15-11-2023,People - Ageing Well,Livingstone Health Care Services,Home Care - Private Contractors Payment,777.53,0.00,COMMERCIAL SUPPLIER 
 08-11-2023,People - Ageing Well,Prestige Care & Support Ltd,Home Care - Private Contractors Payment,778.26,0.00,COMMERCIAL SUPPLIER 
 17-11-2023,People - Ageing Well,Lodge Group Care UK Ltd,Home Care - Private Contractors Payment,782.26,0.00,COMMERCIAL SUPPLIER 
 14-11-2023,People - Ageing Well,Westminster Homecare Ltd_a,Home Care - Private Contractors Payment,783.72,0.00,COMMERCIAL SUPPLIER 
 17-11-2023,People - Ageing Well,Lodge Group Care UK Ltd,Home Care - Private Contractors Payment,785.54,0.00,COMMERCIAL SUPPLIER 
 13-11-2023,People - Ageing Well,Outreach Support Services Ltd,Home Care - Private Contractors Payment,786.26,0.00,COMMERCIAL SUPPLIER 
 17-11-2023,People - Ageing Well,Lodge Group Care UK Ltd,Home Care - Private Contractors Payment,788.45,0.00,COMMERCIAL SUPPLIER 
 17-11-2023,People - Ageing Well,Lodge Group Care UK Ltd,Home Care - Private Contractors Payment,788.45,0.00,COMMERCIAL SUPPLIER 
 14-11-2023,People - Ageing Well,Care-Away Ltd T/A Care Support,Home Care - Private Contractors Payment,788.62,0.00,COMMERCIAL SUPPLIER 
 15-11-2023,People - Ageing Well,Matrix SCM Ltd,Agency Staff,790.91,0.00,COMMERCIAL SUPPLIER 
 08-11-2023,People - Ageing Well,Matrix SCM Ltd,Agency Staff,790.93,0.00,COMMERCIAL SUPPLIER 
 15-11-2023,People - Ageing Well,Matrix SCM Ltd,Agency Staff,790.93,0.00,COMMERCIAL SUPPLIER 
 22-11-2023,People - Ageing Well,Matrix SCM Ltd,Agency Staff,790.93,0.00,COMMERCIAL SUPPLIER 
 29-11-2023,People - Ageing Well,Matrix SCM Ltd,Agency Staff,790.93,0.00,COMMERCIAL SUPPLIER 
 16-11-2023,People - Ageing Well,Anytime Care 2020_a,Home Care - Private Contractors Payment,791.36,0.00,COMMERCIAL SUPPLIER 
 17-11-2023,People - Ageing Well,Lodge Group Care UK Ltd,Home Care - Private Contractors Payment,798.64,0.00,COMMERCIAL SUPPLIER 
 10-11-2023,People - Ageing Well,Home Sweet Home Care Ltd,Home Care - Private Contractors Payment,799.01,0.00,COMMERCIAL SUPPLIER 
 14-11-2023,People - Ageing Well,Cera Care Operations Ltd,Home Care - Private Contractors Payment,799.37,0.00,COMMERCIAL SUPPLIER 
 17-11-2023,People - Ageing Well,Ranc Care Homes Ltd - Romford Care Centre,Respite Care - Private Contractors Payment,800.00,0.00,COMMERCIAL SUPPLIER 
 10-11-2023,People - Ageing Well,Homestead Care Service,Home Care - Private Contractors Payment,801.55,0.00,COMMERCIAL SUPPLIER 
 17-11-2023,People - Ageing Well,Lodge Group Care UK Ltd,Home Care - Private Contractors Payment,803.38,0.00,COMMERCIAL SUPPLIER 
 17-11-2023,People - Ageing Well,Lodge Group Care UK Ltd,Home Care - Private Contractors Payment,803.74,0.00,COMMERCIAL SUPPLIER 
 10-11-2023,People - Ageing Well,Homestead Care Service,Home Care - Private Contractors Payment,804.47,0.00,COMMERCIAL SUPPLIER 
 17-11-2023,People - Ageing Well,Ashgate House Ltd_a,Residential Placements - Private Contractors Payment,805.84,0.00,COMMERCIAL SUPPLIER 
 15-11-2023,People - Ageing Well,John Stanleys Care Agency Ltd,Home Care - Private Contractors Payment,810.66,0.00,COMMERCIAL SUPPLIER 
 17-11-2023,People - Ageing Well,Coastal Supported Living CIC,Supported Other Accommodation - Private Contractors Payment,816.04,0.00,COMMERCIAL SUPPLIER 
 16-11-2023,People - Ageing Well,Anytime Care 2020_a,Home Care - Private Contractors Payment,817.57,0.00,COMMERCIAL SUPPLIER 
 16-11-2023,People - Ageing Well,Anytime Care 2020_a,Home Care - Private Contractors Payment,817.57,0.00,COMMERCIAL SUPPLIER 
 08-11-2023,People - Ageing Well,Livingstone Health Care Services,Home Care - Private Contractors Payment,821.21,0.00,COMMERCIAL SUPPLIER 
 14-11-2023,People - Ageing Well,Cera Care Operations Ltd,Home Care - Private Contractors Payment,821.21,0.00,COMMERCIAL SUPPLIER 
 17-11-2023,People - Ageing Well,Outlook Care - 76 Neave Crescent,Supported Other Accommodation - Private Contractors Payment,821.48,0.00,COMMERCIAL SUPPLIER 
 10-11-2023,People - Ageing Well,Home Sweet Home Care Ltd,Home Care - Private Contractors Payment,824.85,0.00,COMMERCIAL SUPPLIER 
 07-11-2023,People - Ageing Well,Headway East London,Daycare - Private Contractors Payment,826.00,0.00,COMMERCIAL SUPPLIER 
 09-11-2023,People - Ageing Well,Prior Care Ltd_a,Home Care - Private Contractors Payment,827.04,0.00,COMMERCIAL SUPPLIER 
 16-11-2023,People - Ageing Well,Anytime Care 2020_a,Home Care - Private Contractors Payment,827.77,0.00,COMMERCIAL SUPPLIER 
 01-11-2023,People - Ageing Well,Everycare Romford ,Home Care - Private Contractors Payment,829.92,0.00,COMMERCIAL SUPPLIER 
 16-11-2023,People - Ageing Well,Anytime Care 2020_a,Home Care - Private Contractors Payment,829.95,0.00,COMMERCIAL SUPPLIER 
 16-11-2023,People - Ageing Well,Anytime Care 2020_a,Home Care - Private Contractors Payment,829.95,0.00,COMMERCIAL SUPPLIER 
 06-11-2023,People - Ageing Well,Bluebird Care Havering,Home Care - Private Contractors Payment,831.36,0.00,COMMERCIAL SUPPLIER 
 20-11-2023,People - Ageing Well,Bluebird Care Havering,Home Care - Private Contractors Payment,831.36,0.00,COMMERCIAL SUPPLIER 
 08-11-2023,People - Ageing Well,Prestige Care & Support Ltd,Home Care - Private Contractors Payment,831.40,0.00,COMMERCIAL SUPPLIER 
 17-11-2023,People - Ageing Well,Chosen Care Group Ltd,Supported Other Accommodation - Private Contractors Payment,834.40,0.00,COMMERCIAL SUPPLIER 
 15-11-2023,People - Ageing Well,Matrix SCM Ltd,Agency Staff,834.74,0.00,COMMERCIAL SUPPLIER 
 29-11-2023,People - Ageing Well,Matrix SCM Ltd,Agency Staff,834.74,0.00,COMMERCIAL SUPPLIER 
 05-11-2023,People - Ageing Well,Personal Information - Redacted,Home Care - Private Contractors Payment,835.41,0.00,INDIVIDUALS 
 10-11-2023,People - Ageing Well,Home Sweet Home Care Ltd,Home Care - Private Contractors Payment,837.23,0.00,COMMERCIAL SUPPLIER 
 08-11-2023,People - Ageing Well,Morepower Ltd t/a Aqs Homecare,Home Care - Private Contractors Payment,837.95,0.00,COMMERCIAL SUPPLIER 
 07-11-2023,People - Ageing Well,R G Care Ltd ,Daycare - Private Contractors Payment,840.00,0.00,COMMERCIAL SUPPLIER 
 16-11-2023,People - Ageing Well,Anytime Care 2020_a,Home Care - Private Contractors Payment,840.87,0.00,COMMERCIAL SUPPLIER 
 16-11-2023,People - Ageing Well,Anytime Care 2020_a,Home Care - Private Contractors Payment,840.87,0.00,COMMERCIAL SUPPLIER 
 14-11-2023,People - Ageing Well,Care-Away Ltd T/A Care Support,Home Care - Private Contractors Payment,843.64,0.00,COMMERCIAL SUPPLIER 
 15-11-2023,People - Ageing Well,Livingstone Health Care Services,Home Care - Private Contractors Payment,844.15,0.00,COMMERCIAL SUPPLIER 
 17-11-2023,People - Ageing Well,Ashgate House Ltd_a,Residential Placements - Private Contractors Payment,846.16,0.00,COMMERCIAL SUPPLIER 
 17-11-2023,People - Ageing Well,Ashgate House Ltd_a,Residential Placements - Private Contractors Payment,846.16,0.00,COMMERCIAL SUPPLIER 
 17-11-2023,People - Ageing Well,Ashgate House Ltd_a,Residential Placements - Private Contractors Payment,846.16,0.00,COMMERCIAL SUPPLIER 
 17-11-2023,People - Ageing Well,Ashgate House Ltd_a,Residential Placements - Private Contractors Payment,846.16,0.00,COMMERCIAL SUPPLIER 
 17-11-2023,People - Ageing Well,Ashgate House Ltd_a,Residential Placements - Private Contractors Payment,846.16,0.00,COMMERCIAL SUPPLIER 
 17-11-2023,People - Ageing Well,Ashgate House Ltd_a,Residential Placements - Private Contractors Payment,846.16,0.00,COMMERCIAL SUPPLIER 
 17-11-2023,People - Ageing Well,Ashgate House Ltd_a,Residential Placements - Private Contractors Payment,846.16,0.00,COMMERCIAL SUPPLIER 
 10-11-2023,People - Ageing Well,Homestead Care Service,Home Care - Private Contractors Payment,851.42,0.00,COMMERCIAL SUPPLIER 
 08-11-2023,People - Ageing Well,Prestige Care & Support Ltd,Home Care - Private Contractors Payment,851.79,0.00,COMMERCIAL SUPPLIER 
 14-11-2023,People - Ageing Well,Cera Care Operations Ltd,Home Care - Private Contractors Payment,853.61,0.00,COMMERCIAL SUPPLIER 
 17-11-2023,People - Ageing Well,Topaz Care and Support Co Ltd,Supported Other Accommodation - Private Contractors Payment,854.20,0.00,COMMERCIAL SUPPLIER 
 10-11-2023,People - Ageing Well,Home Sweet Home Care Ltd,Home Care - Private Contractors Payment,854.33,0.00,COMMERCIAL SUPPLIER 
 08-11-2023,People - Ageing Well,Prestige Care & Support Ltd,Home Care - Private Contractors Payment,855.06,0.00,COMMERCIAL SUPPLIER 
 15-11-2023,People - Ageing Well,Livingstone Health Care Services,Home Care - Private Contractors Payment,855.79,0.00,COMMERCIAL SUPPLIER 
 17-11-2023,People - Ageing Well,Lodge Lane Care Home Limited,Respite Care - Private Contractors Payment,857.14,0.00,COMMERCIAL SUPPLIER 
 14-11-2023,People - Ageing Well,Home Support Services (Havering & Essex) Ltd,Home Care - Private Contractors Payment,857.62,0.00,COMMERCIAL SUPPLIER 
 10-11-2023,People - Ageing Well,Home Sweet Home Care Ltd,Home Care - Private Contractors Payment,859.43,0.00,COMMERCIAL SUPPLIER 
 17-11-2023,People - Ageing Well,Outlook Care - 76 Neave Crescent,Supported Other Accommodation - Private Contractors Payment,860.72,0.00,COMMERCIAL SUPPLIER 
 17-11-2023,People - Ageing Well,Quality Healthcare Solutions Ltd t/a Kare Plus Romford,Home Care - Private Contractors Payment,861.25,0.00,COMMERCIAL SUPPLIER 
 15-11-2023,People - Ageing Well,John Stanleys Care Agency Ltd,Home Care - Private Contractors Payment,861.62,0.00,COMMERCIAL SUPPLIER 
 17-11-2023,People - Ageing Well,Lodge Group Care UK Ltd,Home Care - Private Contractors Payment,862.71,0.00,COMMERCIAL SUPPLIER 
 14-11-2023,People - Ageing Well,Cera Care Operations Ltd,Home Care - Private Contractors Payment,863.80,0.00,COMMERCIAL SUPPLIER 
 24-11-2023,People - Ageing Well,Trinity London Care Ltd,Daycare - Private Contractors Payment,864.00,0.00,COMMERCIAL SUPPLIER 
 05-11-2023,People - Ageing Well,Personal Information - Redacted,Home Care - Private Contractors Payment,865.92,0.00,INDIVIDUALS 
 05-11-2023,People - Ageing Well,Personal Information - Redacted,Home Care - Private Contractors Payment,865.92,0.00,INDIVIDUALS 
 17-11-2023,People - Ageing Well,DMP Healthcare (Cherry Orchard) Ltd,Nursing Homes - Private Contractors Payment,872.65,0.00,COMMERCIAL SUPPLIER 
 17-11-2023,People - Ageing Well,DMP Healthcare (Cherry Orchard) Ltd,Nursing Homes - Private Contractors Payment,872.65,0.00,COMMERCIAL SUPPLIER 
 17-11-2023,People - Ageing Well,DMP Healthcare (Cherry Orchard) Ltd,Nursing Homes - Private Contractors Payment,872.65,0.00,COMMERCIAL SUPPLIER 
 17-11-2023,People - Ageing Well,DMP Healthcare (Cherry Orchard) Ltd,Nursing Homes - Private Contractors Payment,872.65,0.00,COMMERCIAL SUPPLIER 
 17-11-2023,People - Ageing Well,DMP Healthcare (Cherry Orchard) Ltd,Nursing Homes - Private Contractors Payment,872.65,0.00,COMMERCIAL SUPPLIER 
 17-11-2023,People - Ageing Well,DMP Healthcare (Cherry Orchard) Ltd,Nursing Homes - Private Contractors Payment,872.65,0.00,COMMERCIAL SUPPLIER 
 17-11-2023,People - Ageing Well,DMP Healthcare (Cherry Orchard) Ltd,Nursing Homes - Private Contractors Payment,872.65,0.00,COMMERCIAL SUPPLIER 
 17-11-2023,People - Ageing Well,DMP Healthcare (Cherry Orchard) Ltd,Nursing Homes - Private Contractors Payment,872.65,0.00,COMMERCIAL SUPPLIER 
 17-11-2023,People - Ageing Well,DMP Healthcare (Cherry Orchard) Ltd,Nursing Homes - Private Contractors Payment,872.65,0.00,COMMERCIAL SUPPLIER 
 17-11-2023,People - Ageing Well,DMP Healthcare (Cherry Orchard) Ltd,Nursing Homes - Private Contractors Payment,872.65,0.00,COMMERCIAL SUPPLIER 
 07-11-2023,People - Ageing Well,London Homecare Ltd,Home Care - Private Contractors Payment,873.63,0.00,COMMERCIAL SUPPLIER 
 07-11-2023,People - Ageing Well,London Homecare Ltd,Home Care - Private Contractors Payment,873.63,0.00,COMMERCIAL SUPPLIER 
 09-11-2023,People - Ageing Well,Prior Care Ltd_a,Home Care - Private Contractors Payment,873.63,0.00,COMMERCIAL SUPPLIER 
 17-11-2023,People - Ageing Well,Lodge Group Care UK Ltd,Home Care - Private Contractors Payment,874.00,0.00,COMMERCIAL SUPPLIER 
 17-11-2023,People - Ageing Well,Lodge Group Care UK Ltd,Home Care - Private Contractors Payment,874.00,0.00,COMMERCIAL SUPPLIER 
 10-11-2023,People - Ageing Well,Homestead Care Service,Home Care - Private Contractors Payment,878.73,0.00,COMMERCIAL SUPPLIER 
 10-11-2023,People - Ageing Well,Homestead Care Service,Home Care - Private Contractors Payment,881.28,0.00,COMMERCIAL SUPPLIER 
 17-11-2023,People - Ageing Well,Blessday Services Ltd,Supported Other Accommodation - Private Contractors Payment,884.00,0.00,COMMERCIAL SUPPLIER 
 14-11-2023,People - Ageing Well,Care-Away Ltd T/A Care Support,Home Care - Private Contractors Payment,889.49,0.00,COMMERCIAL SUPPLIER 
 08-11-2023,People - Ageing Well,Prestige Care & Support Ltd,Home Care - Private Contractors Payment,889.65,0.00,COMMERCIAL SUPPLIER 
 17-11-2023,People - Ageing Well,Lodge Group Care UK Ltd,Home Care - Private Contractors Payment,893.65,0.00,COMMERCIAL SUPPLIER 
 10-11-2023,People - Ageing Well,Homestead Care Service,Home Care - Private Contractors Payment,894.01,0.00,COMMERCIAL SUPPLIER 
 14-11-2023,People - Ageing Well,Home Support Services (Havering & Essex) Ltd,Home Care - Private Contractors Payment,894.74,0.00,COMMERCIAL SUPPLIER 
 15-11-2023,People - Ageing Well,John Stanleys Care Agency Ltd,Home Care - Private Contractors Payment,894.74,0.00,COMMERCIAL SUPPLIER 
 10-11-2023,People - Ageing Well,Home Sweet Home Care Ltd,Home Care - Private Contractors Payment,895.47,0.00,COMMERCIAL SUPPLIER 
 17-11-2023,People - Ageing Well,Quality Healthcare Solutions Ltd t/a Kare Plus Romford,Home Care - Private Contractors Payment,898.38,0.00,COMMERCIAL SUPPLIER 
 10-11-2023,People - Ageing Well,Care-Away Ltd T/A Care Support,Home Care - Private Contractors Payment,898.66,0.00,COMMERCIAL SUPPLIER 
 14-11-2023,People - Ageing Well,Care-Away Ltd T/A Care Support,Home Care - Private Contractors Payment,898.66,0.00,COMMERCIAL SUPPLIER 
 07-11-2023,People - Ageing Well,R G Care Ltd ,Daycare - Private Contractors Payment,900.00,0.00,COMMERCIAL SUPPLIER 
 17-11-2023,People - Ageing Well,One Tree Estates Ltd t/a Ashbrook Nursing Home,Nursing Homes - Private Contractors Payment,901.00,0.00,COMMERCIAL SUPPLIER 
 10-11-2023,People - Ageing Well,Homestead Care Service,Home Care - Private Contractors Payment,901.30,0.00,COMMERCIAL SUPPLIER 
 14-11-2023,People - Ageing Well,Cera Care Operations Ltd,Home Care - Private Contractors Payment,902.39,0.00,COMMERCIAL SUPPLIER 
 08-11-2023,People - Ageing Well,Prestige Care & Support Ltd,Home Care - Private Contractors Payment,903.12,0.00,COMMERCIAL SUPPLIER 
 17-11-2023,People - Ageing Well,DMP Healthcare (Cherry Orchard) Ltd,Nursing Homes - Private Contractors Payment,903.82,0.00,COMMERCIAL SUPPLIER 
 15-11-2023,People - Ageing Well,John Stanleys Care Agency Ltd,Home Care - Private Contractors Payment,904.94,0.00,COMMERCIAL SUPPLIER 
 08-11-2023,People - Ageing Well,Prestige Care & Support Ltd,Home Care - Private Contractors Payment,906.39,0.00,COMMERCIAL SUPPLIER 
 10-11-2023,People - Ageing Well,Home Sweet Home Care Ltd,Home Care - Private Contractors Payment,906.39,0.00,COMMERCIAL SUPPLIER 
 14-11-2023,People - Ageing Well,Home Support Services (Havering & Essex) Ltd,Home Care - Private Contractors Payment,906.39,0.00,COMMERCIAL SUPPLIER 
 14-11-2023,People - Ageing Well,Home Support Services (Havering & Essex) Ltd,Home Care - Private Contractors Payment,906.39,0.00,COMMERCIAL SUPPLIER 
 14-11-2023,People - Ageing Well,Home Support Services (Havering & Essex) Ltd,Home Care - Private Contractors Payment,906.76,0.00,COMMERCIAL SUPPLIER 
 10-11-2023,People - Ageing Well,Homestead Care Service,Home Care - Private Contractors Payment,907.85,0.00,COMMERCIAL SUPPLIER 
 14-11-2023,People - Ageing Well,Home Support Services (Havering & Essex) Ltd,Home Care - Private Contractors Payment,908.21,0.00,COMMERCIAL SUPPLIER 
 17-11-2023,People - Ageing Well,Lodge Group Care UK Ltd,Home Care - Private Contractors Payment,911.85,0.00,COMMERCIAL SUPPLIER 
 08-11-2023,People - Ageing Well,Prestige Care & Support Ltd,Home Care - Private Contractors Payment,912.58,0.00,COMMERCIAL SUPPLIER 
 17-11-2023,People - Ageing Well,DMP Healthcare (Cherry Orchard) Ltd,Nursing Homes - Private Contractors Payment,914.29,0.00,COMMERCIAL SUPPLIER 
 14-11-2023,People - Ageing Well,Home Support Services (Havering & Essex) Ltd,Home Care - Private Contractors Payment,914.76,0.00,COMMERCIAL SUPPLIER 
 06-11-2023,People - Ageing Well,Tapestry_a.,Daycare - Private Contractors Payment,915.00,0.00,COMMERCIAL SUPPLIER 
 06-11-2023,People - Ageing Well,Tapestry_a.,Daycare - Private Contractors Payment,915.00,0.00,COMMERCIAL SUPPLIER 
 14-11-2023,People - Ageing Well,Care-Away Ltd T/A Care Support,Home Care - Private Contractors Payment,917.00,0.00,COMMERCIAL SUPPLIER 
 03-11-2023,People - Ageing Well,Phoenix Care Havering Ltd,Home Care - Private Contractors Payment,917.31,0.00,COMMERCIAL SUPPLIER 
 05-11-2023,People - Ageing Well,Personal Information - Redacted,Home Care - Private Contractors Payment,917.31,0.00,INDIVIDUALS 
 05-11-2023,People - Ageing Well,Personal Information - Redacted,Home Care - Private Contractors Payment,917.31,0.00,INDIVIDUALS 
 08-11-2023,People - Ageing Well,Morepower Ltd t/a Aqs Homecare,Home Care - Private Contractors Payment,917.31,0.00,COMMERCIAL SUPPLIER 
 08-11-2023,People - Ageing Well,Morepower Ltd t/a Aqs Homecare,Home Care - Private Contractors Payment,917.31,0.00,COMMERCIAL SUPPLIER 
 10-11-2023,People - Ageing Well,Home Sweet Home Care Ltd,Home Care - Private Contractors Payment,917.31,0.00,COMMERCIAL SUPPLIER 
 10-11-2023,People - Ageing Well,Rosemont Care Limited,Home Care - Private Contractors Payment,917.31,0.00,COMMERCIAL SUPPLIER 
 10-11-2023,People - Ageing Well,Rosemont Care Limited,Home Care - Private Contractors Payment,917.31,0.00,COMMERCIAL SUPPLIER 
 13-11-2023,People - Ageing Well,Passion Tree Care Services Ltd,Home Care - Private Contractors Payment,917.31,0.00,COMMERCIAL SUPPLIER 
 13-11-2023,People - Ageing Well,Outreach Support Services Ltd,Home Care - Private Contractors Payment,917.31,0.00,COMMERCIAL SUPPLIER 
 16-11-2023,People - Ageing Well,Anytime Care 2020_a,Home Care - Private Contractors Payment,917.31,0.00,COMMERCIAL SUPPLIER 
 16-11-2023,People - Ageing Well,Inna Care Ltd,Home Care - Private Contractors Payment,917.31,0.00,COMMERCIAL SUPPLIER 
 16-11-2023,People - Ageing Well,Inna Care Ltd,Home Care - Private Contractors Payment,917.31,0.00,COMMERCIAL SUPPLIER 
 16-11-2023,People - Ageing Well,Inna Care Ltd,Home Care - Private Contractors Payment,917.31,0.00,COMMERCIAL SUPPLIER 
 16-11-2023,People - Ageing Well,Inna Care Ltd,Home Care - Private Contractors Payment,917.31,0.00,COMMERCIAL SUPPLIER 
 16-11-2023,People - Ageing Well,Inna Care Ltd,Home Care - Private Contractors Payment,917.31,0.00,COMMERCIAL SUPPLIER 
 17-11-2023,People - Ageing Well,Lodge Group Care UK Ltd,Home Care - Private Contractors Payment,917.31,0.00,COMMERCIAL SUPPLIER 
 17-11-2023,People - Ageing Well,Lodge Group Care UK Ltd,Home Care - Private Contractors Payment,917.31,0.00,COMMERCIAL SUPPLIER 
 17-11-2023,People - Ageing Well,Lodge Group Care UK Ltd,Home Care - Private Contractors Payment,917.31,0.00,COMMERCIAL SUPPLIER 
 17-11-2023,People - Ageing Well,Lodge Group Care UK Ltd,Home Care - Private Contractors Payment,917.68,0.00,COMMERCIAL SUPPLIER 
 05-11-2023,People - Ageing Well,Personal Information - Redacted,Home Care - Private Contractors Payment,917.88,0.00,INDIVIDUALS 
 17-11-2023,People - Ageing Well,Lodge Group Care UK Ltd,Home Care - Private Contractors Payment,918.04,0.00,COMMERCIAL SUPPLIER 
 17-11-2023,People - Ageing Well,Lodge Group Care UK Ltd,Home Care - Private Contractors Payment,918.04,0.00,COMMERCIAL SUPPLIER 
 17-11-2023,People - Ageing Well,Lodge Group Care UK Ltd,Home Care - Private Contractors Payment,918.04,0.00,COMMERCIAL SUPPLIER 
 17-11-2023,People - Ageing Well,Omega Elifar Ltd,Residential Placements - Private Contractors Payment,918.40,0.00,COMMERCIAL SUPPLIER 
 17-11-2023,People - Ageing Well,Lodge Group Care UK Ltd,Home Care - Private Contractors Payment,918.41,0.00,COMMERCIAL SUPPLIER 
 17-11-2023,People - Ageing Well,Lodge Group Care UK Ltd,Home Care - Private Contractors Payment,918.41,0.00,COMMERCIAL SUPPLIER 
 17-11-2023,People - Ageing Well,Quality Healthcare Solutions Ltd t/a Kare Plus Romford,Home Care - Private Contractors Payment,919.13,0.00,COMMERCIAL SUPPLIER 
 10-11-2023,People - Ageing Well,Home Sweet Home Care Ltd,Home Care - Private Contractors Payment,919.50,0.00,COMMERCIAL SUPPLIER 
 16-11-2023,People - Ageing Well,Anytime Care 2020_a,Home Care - Private Contractors Payment,919.50,0.00,COMMERCIAL SUPPLIER 
 15-11-2023,People - Ageing Well,John Stanleys Care Agency Ltd,Home Care - Private Contractors Payment,920.59,0.00,COMMERCIAL SUPPLIER 
 08-11-2023,People - Ageing Well,Morepower Ltd t/a Aqs Homecare,Home Care - Private Contractors Payment,920.95,0.00,COMMERCIAL SUPPLIER 
 17-11-2023,People - Ageing Well,Lodge Group Care UK Ltd,Home Care - Private Contractors Payment,920.95,0.00,COMMERCIAL SUPPLIER 
 08-11-2023,People - Ageing Well,Morepower Ltd t/a Aqs Homecare,Home Care - Private Contractors Payment,921.32,0.00,COMMERCIAL SUPPLIER 
 17-11-2023,People - Ageing Well,Lodge Group Care UK Ltd,Home Care - Private Contractors Payment,921.32,0.00,COMMERCIAL SUPPLIER 
 17-11-2023,People - Ageing Well,Lodge Group Care UK Ltd,Home Care - Private Contractors Payment,921.32,0.00,COMMERCIAL SUPPLIER 
 14-11-2023,People - Ageing Well,Home Support Services (Havering & Essex) Ltd,Home Care - Private Contractors Payment,922.05,0.00,COMMERCIAL SUPPLIER 
 17-11-2023,People - Ageing Well,Kadmiel Projects Ltd,Supported Other Accommodation - Private Contractors Payment,922.40,0.00,COMMERCIAL SUPPLIER 
 17-11-2023,People - Ageing Well,Lodge Group Care UK Ltd,Home Care - Private Contractors Payment,922.41,0.00,COMMERCIAL SUPPLIER 
 17-11-2023,People - Ageing Well,Lodge Group Care UK Ltd,Home Care - Private Contractors Payment,922.41,0.00,COMMERCIAL SUPPLIER 
 05-11-2023,People - Ageing Well,Personal Information - Redacted,Home Care - Private Contractors Payment,922.77,0.00,INDIVIDUALS 
 17-11-2023,People - Ageing Well,Lodge Group Care UK Ltd,Home Care - Private Contractors Payment,922.77,0.00,COMMERCIAL SUPPLIER 
 17-11-2023,People - Ageing Well,Lodge Group Care UK Ltd,Home Care - Private Contractors Payment,922.77,0.00,COMMERCIAL SUPPLIER 
 06-11-2023,People - Ageing Well,Hospiva Care & Associates Agency Ltd_a,Home Care - Private Contractors Payment,924.96,0.00,COMMERCIAL SUPPLIER 
 06-11-2023,People - Ageing Well,Hospiva Care & Associates Agency Ltd_a,Home Care - Private Contractors Payment,924.96,0.00,COMMERCIAL SUPPLIER 
 16-11-2023,People - Ageing Well,Anytime Care 2020_a,Home Care - Private Contractors Payment,924.96,0.00,COMMERCIAL SUPPLIER 
 17-11-2023,People - Ageing Well,Lodge Group Care UK Ltd,Home Care - Private Contractors Payment,927.51,0.00,COMMERCIAL SUPPLIER 
 06-11-2023,People - Ageing Well,Eastway Care Ltd_a,Daycare - Private Contractors Payment,928.00,0.00,COMMERCIAL SUPPLIER 
 06-11-2023,People - Ageing Well,Eastway Care Ltd_a,Daycare - Private Contractors Payment,928.00,0.00,COMMERCIAL SUPPLIER 
 16-11-2023,People - Ageing Well,Anytime Care 2020_a,Home Care - Private Contractors Payment,928.23,0.00,COMMERCIAL SUPPLIER 
 16-11-2023,People - Ageing Well,Anytime Care 2020_a,Home Care - Private Contractors Payment,928.23,0.00,COMMERCIAL SUPPLIER 
 17-11-2023,People - Ageing Well,Lodge Group Care UK Ltd,Home Care - Private Contractors Payment,928.96,0.00,COMMERCIAL SUPPLIER 
 10-11-2023,People - Ageing Well,Home Sweet Home Care Ltd,Home Care - Private Contractors Payment,929.69,0.00,COMMERCIAL SUPPLIER 
 17-11-2023,People - Ageing Well,Quality Healthcare Solutions Ltd t/a Kare Plus Romford,Home Care - Private Contractors Payment,929.69,0.00,COMMERCIAL SUPPLIER 
 08-11-2023,People - Ageing Well,Action First Assessments Ltd,Private Contractors Payment - Other,930.00,0.00,COMMERCIAL SUPPLIER 
 08-11-2023,People - Ageing Well,Action First Assessments Ltd,Private Contractors Payment - Other,930.00,0.00,COMMERCIAL SUPPLIER 
 10-11-2023,People - Ageing Well,Home Sweet Home Care Ltd,Home Care - Private Contractors Payment,930.42,0.00,COMMERCIAL SUPPLIER 
 08-11-2023,People - Ageing Well,Prestige Care & Support Ltd,Home Care - Private Contractors Payment,931.14,0.00,COMMERCIAL SUPPLIER 
 14-11-2023,People - Ageing Well,Cera Care Operations Ltd,Home Care - Private Contractors Payment,931.51,0.00,COMMERCIAL SUPPLIER 
 16-11-2023,People - Ageing Well,Anytime Care 2020_a,Home Care - Private Contractors Payment,932.97,0.00,COMMERCIAL SUPPLIER 
 17-11-2023,People - Ageing Well,Lodge Group Care UK Ltd,Home Care - Private Contractors Payment,933.33,0.00,COMMERCIAL SUPPLIER 
 17-11-2023,People - Ageing Well,Able2achieve Ltd,Supported Other Accommodation - Private Contractors Payment,933.60,0.00,COMMERCIAL SUPPLIER 
 17-11-2023,People - Ageing Well,Lodge Group Care UK Ltd,Home Care - Private Contractors Payment,934.42,0.00,COMMERCIAL SUPPLIER 
 17-11-2023,People - Ageing Well,Lodge Group Care UK Ltd,Home Care - Private Contractors Payment,934.42,0.00,COMMERCIAL SUPPLIER 
 14-11-2023,People - Ageing Well,Cera Care Operations Ltd,Home Care - Private Contractors Payment,936.24,0.00,COMMERCIAL SUPPLIER 
 10-11-2023,People - Ageing Well,Home Sweet Home Care Ltd,Home Care - Private Contractors Payment,937.33,0.00,COMMERCIAL SUPPLIER 
 14-11-2023,People - Ageing Well,Home Support Services (Havering & Essex) Ltd,Home Care - Private Contractors Payment,937.33,0.00,COMMERCIAL SUPPLIER 
 16-11-2023,People - Ageing Well,Anytime Care 2020_a,Home Care - Private Contractors Payment,937.33,0.00,COMMERCIAL SUPPLIER 
 10-11-2023,People - Ageing Well,Home Sweet Home Care Ltd,Home Care - Private Contractors Payment,938.43,0.00,COMMERCIAL SUPPLIER 
 10-11-2023,People - Ageing Well,Home Sweet Home Care Ltd,Home Care - Private Contractors Payment,941.70,0.00,COMMERCIAL SUPPLIER 
 08-11-2023,People - Ageing Well,Morepower Ltd t/a Aqs Homecare,Home Care - Private Contractors Payment,943.52,0.00,COMMERCIAL SUPPLIER 
 17-11-2023,People - Ageing Well,Quality Healthcare Solutions Ltd t/a Kare Plus Romford,Home Care - Private Contractors Payment,943.89,0.00,COMMERCIAL SUPPLIER 
 10-11-2023,People - Ageing Well,Home Sweet Home Care Ltd,Home Care - Private Contractors Payment,944.97,0.00,COMMERCIAL SUPPLIER 
 17-11-2023,People - Ageing Well,Lodge Group Care UK Ltd,Home Care - Private Contractors Payment,945.34,0.00,COMMERCIAL SUPPLIER 
 08-11-2023,People - Ageing Well,Livingstone Health Care Services,Home Care - Private Contractors Payment,946.43,0.00,COMMERCIAL SUPPLIER 
 17-11-2023,People - Ageing Well,Lodge Group Care UK Ltd,Home Care - Private Contractors Payment,948.25,0.00,COMMERCIAL SUPPLIER 
 17-11-2023,People - Ageing Well,Lodge Group Care UK Ltd,Home Care - Private Contractors Payment,948.98,0.00,COMMERCIAL SUPPLIER 
 08-11-2023,People - Ageing Well,Morepower Ltd t/a Aqs Homecare,Home Care - Private Contractors Payment,950.07,0.00,COMMERCIAL SUPPLIER 
 14-11-2023,People - Ageing Well,Home Support Services (Havering & Essex) Ltd,Home Care - Private Contractors Payment,950.07,0.00,COMMERCIAL SUPPLIER 
 17-11-2023,People - Ageing Well,Lodge Group Care UK Ltd,Home Care - Private Contractors Payment,951.53,0.00,COMMERCIAL SUPPLIER 
 17-11-2023,People - Ageing Well,Ebony Health Care Services Limited,Supported Other Accommodation - Private Contractors Payment,952.00,0.00,COMMERCIAL SUPPLIER 
 17-11-2023,People - Ageing Well,Quality Healthcare Solutions Ltd t/a Kare Plus Romford,Home Care - Private Contractors Payment,952.26,0.00,COMMERCIAL SUPPLIER 
 10-11-2023,People - Ageing Well,Care-Away Ltd T/A Care Support,Home Care - Private Contractors Payment,953.68,0.00,COMMERCIAL SUPPLIER 
 14-11-2023,People - Ageing Well,Westminster Homecare Ltd_a,Home Care - Private Contractors Payment,953.70,0.00,COMMERCIAL SUPPLIER 
 10-11-2023,People - Ageing Well,Home Sweet Home Care Ltd,Home Care - Private Contractors Payment,954.44,0.00,COMMERCIAL SUPPLIER 
 10-11-2023,People - Ageing Well,Home Sweet Home Care Ltd,Home Care - Private Contractors Payment,956.99,0.00,COMMERCIAL SUPPLIER 
 14-11-2023,People - Ageing Well,Home Support Services (Havering & Essex) Ltd,Home Care - Private Contractors Payment,957.35,0.00,COMMERCIAL SUPPLIER 
 17-11-2023,People - Ageing Well,Quality Healthcare Solutions Ltd t/a Kare Plus Romford,Home Care - Private Contractors Payment,957.35,0.00,COMMERCIAL SUPPLIER 
 17-11-2023,People - Ageing Well,Lodge Group Care UK Ltd,Home Care - Private Contractors Payment,958.07,0.00,COMMERCIAL SUPPLIER 
 15-11-2023,People - Ageing Well,John Stanleys Care Agency Ltd,Home Care - Private Contractors Payment,958.44,0.00,COMMERCIAL SUPPLIER 
 05-11-2023,People - Ageing Well,Personal Information - Redacted,Home Care - Private Contractors Payment,959.56,0.00,INDIVIDUALS 
 16-11-2023,People - Ageing Well,Carers Trust East Midlands,Home Care - Private Contractors Payment,960.97,0.00,COMMERCIAL SUPPLIER 
 17-11-2023,People - Ageing Well,Lodge Group Care UK Ltd,Home Care - Private Contractors Payment,960.99,0.00,COMMERCIAL SUPPLIER 
 10-11-2023,People - Ageing Well,Home Sweet Home Care Ltd,Home Care - Private Contractors Payment,962.81,0.00,COMMERCIAL SUPPLIER 
 14-11-2023,People - Ageing Well,Westminster Homecare Ltd_a,Home Care - Private Contractors Payment,963.54,0.00,COMMERCIAL SUPPLIER 
 17-11-2023,People - Ageing Well,Fresh Tree Care Services,Supported Other Accommodation - Private Contractors Payment,967.68,0.00,COMMERCIAL SUPPLIER 
 17-11-2023,People - Ageing Well,Consensus Support Services Ltd - Blakeney House,Residential Placements - Private Contractors Payment,968.80,0.00,COMMERCIAL SUPPLIER 
 08-11-2023,People - Ageing Well,London Care Plc_a,Home Care - Private Contractors Payment,969.73,0.00,COMMERCIAL SUPPLIER 
 17-11-2023,People - Ageing Well,Lodge Group Care UK Ltd,Home Care - Private Contractors Payment,970.10,0.00,COMMERCIAL SUPPLIER 
 17-11-2023,People - Ageing Well,Lodge Group Care UK Ltd,Home Care - Private Contractors Payment,971.92,0.00,COMMERCIAL SUPPLIER 
 17-11-2023,People - Ageing Well,Lodge Group Care UK Ltd,Home Care - Private Contractors Payment,972.64,0.00,COMMERCIAL SUPPLIER 
 01-11-2023,People - Ageing Well,Matrix SCM Ltd,Agency Staff,974.40,0.00,COMMERCIAL SUPPLIER 
 14-11-2023,People - Ageing Well,Home Support Services (Havering & Essex) Ltd,Home Care - Private Contractors Payment,975.55,0.00,COMMERCIAL SUPPLIER 
 06-11-2023,People - Ageing Well,Tapestry_a.,Daycare - Private Contractors Payment,976.00,0.00,COMMERCIAL SUPPLIER 
 06-11-2023,People - Ageing Well,Tapestry_a.,Daycare - Private Contractors Payment,976.00,0.00,COMMERCIAL SUPPLIER 
 16-11-2023,People - Ageing Well,Anytime Care 2020_a,Home Care - Private Contractors Payment,977.01,0.00,COMMERCIAL SUPPLIER 
 03-11-2023,People - Ageing Well,Livingstone Health Care Services,Home Care - Private Contractors Payment,977.37,0.00,COMMERCIAL SUPPLIER 
 08-11-2023,People - Ageing Well,Morepower Ltd t/a Aqs Homecare,Home Care - Private Contractors Payment,979.56,0.00,COMMERCIAL SUPPLIER 
 14-11-2023,People - Ageing Well,Cera Care Operations Ltd,Home Care - Private Contractors Payment,979.56,0.00,COMMERCIAL SUPPLIER 
 14-11-2023,People - Ageing Well,Home Support Services (Havering & Essex) Ltd,Home Care - Private Contractors Payment,979.56,0.00,COMMERCIAL SUPPLIER 
 14-11-2023,People - Ageing Well,Home Support Services (Havering & Essex) Ltd,Home Care - Private Contractors Payment,981.01,0.00,COMMERCIAL SUPPLIER 
 08-11-2023,People - Ageing Well,Morepower Ltd t/a Aqs Homecare,Home Care - Private Contractors Payment,982.10,0.00,COMMERCIAL SUPPLIER 
 16-11-2023,People - Ageing Well,Carers Trust East Midlands,Home Care - Private Contractors Payment,982.80,0.00,COMMERCIAL SUPPLIER 
 07-11-2023,People - Ageing Well,London Homecare Ltd,Home Care - Private Contractors Payment,982.83,0.00,COMMERCIAL SUPPLIER 
 07-11-2023,People - Ageing Well,Premier Carewaiting Ltd,Home Care - Private Contractors Payment,982.83,0.00,COMMERCIAL SUPPLIER 
 17-11-2023,People - Ageing Well,Quality Healthcare Solutions Ltd t/a Kare Plus Romford,Home Care - Private Contractors Payment,985.38,0.00,COMMERCIAL SUPPLIER 
 08-11-2023,People - Ageing Well,Prestige Care & Support Ltd,Home Care - Private Contractors Payment,986.48,0.00,COMMERCIAL SUPPLIER 
 17-11-2023,People - Ageing Well,North London Care (Havering) Ltd_a,Residential Placements - Private Contractors Payment,987.80,0.00,COMMERCIAL SUPPLIER 
 15-11-2023,People - Ageing Well,John Stanleys Care Agency Ltd,Home Care - Private Contractors Payment,988.29,0.00,COMMERCIAL SUPPLIER 
 17-11-2023,People - Ageing Well,The Cedars,Supported Other Accommodation - Private Contractors Payment,988.40,0.00,COMMERCIAL SUPPLIER 
 10-11-2023,People - Ageing Well,Care-Away Ltd T/A Care Support,Home Care - Private Contractors Payment,990.36,0.00,COMMERCIAL SUPPLIER 
 14-11-2023,People - Ageing Well,Care-Away Ltd T/A Care Support,Home Care - Private Contractors Payment,990.36,0.00,COMMERCIAL SUPPLIER 
 14-11-2023,People - Ageing Well,Home Support Services (Havering & Essex) Ltd,Home Care - Private Contractors Payment,990.47,0.00,COMMERCIAL SUPPLIER 
 17-11-2023,People - Ageing Well,Outlook Care - 4 Peel Way,Supported Other Accommodation - Private Contractors Payment,991.00,0.00,COMMERCIAL SUPPLIER 
 08-11-2023,People - Ageing Well,Morepower Ltd t/a Aqs Homecare,Home Care - Private Contractors Payment,991.94,0.00,COMMERCIAL SUPPLIER 
 10-11-2023,People - Ageing Well,Homestead Care Service,Home Care - Private Contractors Payment,995.21,0.00,COMMERCIAL SUPPLIER 
 08-11-2023,People - Ageing Well,Matrix SCM Ltd,Agency Staff,999.92,0.00,COMMERCIAL SUPPLIER 
 06-11-2023,People - Ageing Well,Gims Care Solution Ltd_a,Home Care - Private Contractors Payment,1000.32,0.00,NON COMMERCIAL SUPPLIER 
 17-11-2023,People - Ageing Well,Accomplish Group Support Ltd,Residential Placements - Private Contractors Payment,1000.52,0.00,COMMERCIAL SUPPLIER 
 08-11-2023,People - Ageing Well,Morepower Ltd t/a Aqs Homecare,Home Care - Private Contractors Payment,1001.03,0.00,COMMERCIAL SUPPLIER 
 08-11-2023,People - Ageing Well,Morepower Ltd t/a Aqs Homecare,Home Care - Private Contractors Payment,1001.76,0.00,COMMERCIAL SUPPLIER 
 20-11-2023,People - Ageing Well,Livingstone Health Care Services,Home Care - Private Contractors Payment,1003.22,0.00,COMMERCIAL SUPPLIER 
 05-11-2023,People - Ageing Well,Personal Information - Redacted,Home Care - Private Contractors Payment,1004.68,0.00,INDIVIDUALS 
 16-11-2023,People - Ageing Well,Inna Care Ltd,Home Care - Private Contractors Payment,1004.68,0.00,COMMERCIAL SUPPLIER 
 16-11-2023,People - Ageing Well,Anytime Care 2020_a,Home Care - Private Contractors Payment,1005.01,0.00,COMMERCIAL SUPPLIER 
 06-11-2023,People - Ageing Well,Hospiva Care & Associates Agency Ltd_a,Home Care - Private Contractors Payment,1005.76,0.00,COMMERCIAL SUPPLIER 
 07-11-2023,People - Ageing Well,Livingstone Health Care Services,Home Care - Private Contractors Payment,1007.58,0.00,COMMERCIAL SUPPLIER 
 10-11-2023,People - Ageing Well,Care-Away Ltd T/A Care Support,Home Care - Private Contractors Payment,1008.70,0.00,COMMERCIAL SUPPLIER 
 10-11-2023,People - Ageing Well,Care-Away Ltd T/A Care Support,Home Care - Private Contractors Payment,1008.70,0.00,COMMERCIAL SUPPLIER 
 15-11-2023,People - Ageing Well,Matrix SCM Ltd,Agency Staff,1011.32,0.00,COMMERCIAL SUPPLIER 
 15-11-2023,People - Ageing Well,Matrix SCM Ltd,Agency Staff,1011.32,0.00,COMMERCIAL SUPPLIER 
 08-11-2023,People - Ageing Well,Livingstone Health Care Services,Home Care - Private Contractors Payment,1013.77,0.00,COMMERCIAL SUPPLIER 
 03-11-2023,People - Ageing Well,Bettertogether Limited,Supported Other Accommodation - Private Contractors Payment,1013.84,0.00,NON COMMERCIAL SUPPLIER 
 07-11-2023,People - Ageing Well,Livingstone Health Care Services,Home Care - Private Contractors Payment,1014.87,0.00,COMMERCIAL SUPPLIER 
 14-11-2023,People - Ageing Well,Cera Care Operations Ltd,Home Care - Private Contractors Payment,1018.14,0.00,COMMERCIAL SUPPLIER 
 01-11-2023,People - Ageing Well,Matrix SCM Ltd,Agency Staff,1020.05,0.00,COMMERCIAL SUPPLIER 
 22-11-2023,People - Ageing Well,Matrix SCM Ltd,Agency Staff,1020.05,0.00,COMMERCIAL SUPPLIER 
 15-11-2023,People - Ageing Well,John Stanleys Care Agency Ltd,Home Care - Private Contractors Payment,1021.77,0.00,COMMERCIAL SUPPLIER 
 17-11-2023,People - Ageing Well,Quality Healthcare Solutions Ltd t/a Kare Plus Romford,Home Care - Private Contractors Payment,1022.51,0.00,COMMERCIAL SUPPLIER 
 08-11-2023,People - Ageing Well,Morepower Ltd t/a Aqs Homecare,Home Care - Private Contractors Payment,1024.33,0.00,COMMERCIAL SUPPLIER 
 10-11-2023,People - Ageing Well,Home Sweet Home Care Ltd,Home Care - Private Contractors Payment,1025.06,0.00,COMMERCIAL SUPPLIER 
 01-11-2023,People - Ageing Well,Matrix SCM Ltd,Agency Staff,1025.78,0.00,COMMERCIAL SUPPLIER 
 10-11-2023,People - Ageing Well,Care-Away Ltd T/A Care Support,Home Care - Private Contractors Payment,1027.04,0.00,COMMERCIAL SUPPLIER 
 14-11-2023,People - Ageing Well,Care-Away Ltd T/A Care Support,Home Care - Private Contractors Payment,1027.04,0.00,COMMERCIAL SUPPLIER 
 16-11-2023,People - Ageing Well,Care-Away Ltd T/A Care Support,Home Care - Private Contractors Payment,1027.04,0.00,COMMERCIAL SUPPLIER 
 16-11-2023,People - Ageing Well,Care-Away Ltd T/A Care Support,Home Care - Private Contractors Payment,1027.04,0.00,COMMERCIAL SUPPLIER 
 16-11-2023,People - Ageing Well,Care-Away Ltd T/A Care Support,Home Care - Private Contractors Payment,1027.04,0.00,COMMERCIAL SUPPLIER 
 16-11-2023,People - Ageing Well,Care-Away Ltd T/A Care Support,Home Care - Private Contractors Payment,1027.04,0.00,COMMERCIAL SUPPLIER 
 16-11-2023,People - Ageing Well,Care-Away Ltd T/A Care Support,Home Care - Private Contractors Payment,1027.04,0.00,COMMERCIAL SUPPLIER 
 14-11-2023,People - Ageing Well,Cera Care Operations Ltd,Home Care - Private Contractors Payment,1027.24,0.00,COMMERCIAL SUPPLIER 
 08-11-2023,People - Ageing Well,Prestige Care & Support Ltd,Home Care - Private Contractors Payment,1029.07,0.00,COMMERCIAL SUPPLIER 
 08-11-2023,People - Ageing Well,Morepower Ltd t/a Aqs Homecare,Home Care - Private Contractors Payment,1030.15,0.00,COMMERCIAL SUPPLIER 
 09-11-2023,People - Ageing Well,Prior Care Ltd_a,Home Care - Private Contractors Payment,1037.43,0.00,COMMERCIAL SUPPLIER 
 29-11-2023,People - Ageing Well,Matrix SCM Ltd,Agency Staff,1037.64,0.00,COMMERCIAL SUPPLIER 
 10-11-2023,People - Ageing Well,Home Sweet Home Care Ltd,Home Care - Private Contractors Payment,1038.89,0.00,COMMERCIAL SUPPLIER 
 17-11-2023,People - Ageing Well,2 Peel Way - Outlook Care,Supported Other Accommodation - Private Contractors Payment,1041.04,0.00,NON COMMERCIAL SUPPLIER 
 17-11-2023,People - Ageing Well,IECC Care,Supported Other Accommodation - Private Contractors Payment,1041.48,0.00,COMMERCIAL SUPPLIER 
 29-11-2023,People - Ageing Well,Matrix SCM Ltd,Agency Staff,1041.60,0.00,COMMERCIAL SUPPLIER 
 17-11-2023,People - Ageing Well,Lodge Group Care UK Ltd,Home Care - Private Contractors Payment,1044.34,0.00,COMMERCIAL SUPPLIER 
 10-11-2023,People - Ageing Well,Homestead Care Service,Home Care - Private Contractors Payment,1045.81,0.00,COMMERCIAL SUPPLIER 
 13-11-2023,People - Ageing Well,Passion Tree Care Services Ltd,Home Care - Private Contractors Payment,1048.33,0.00,COMMERCIAL SUPPLIER 
 08-11-2023,People - Ageing Well,Prestige Care & Support Ltd,Home Care - Private Contractors Payment,1048.36,0.00,COMMERCIAL SUPPLIER 
 17-11-2023,People - Ageing Well,Gims Care Solution Ltd_a,Supported Other Accommodation - Private Contractors Payment,1050.00,0.00,NON COMMERCIAL SUPPLIER 
 21-11-2023,People - Ageing Well,Flex360 Limited,Private Contractors Payment - Other,1050.00,0.00,COMMERCIAL SUPPLIER 
 09-11-2023,People - Ageing Well,Prior Care Ltd_a,Home Care - Private Contractors Payment,1050.91,0.00,COMMERCIAL SUPPLIER 
 15-11-2023,People - Ageing Well,John Stanleys Care Agency Ltd,Home Care - Private Contractors Payment,1052.72,0.00,COMMERCIAL SUPPLIER 
 17-11-2023,People - Ageing Well,Lodge Group Care UK Ltd,Home Care - Private Contractors Payment,1052.73,0.00,COMMERCIAL SUPPLIER 
 17-11-2023,People - Ageing Well,Lodge Group Care UK Ltd,Home Care - Private Contractors Payment,1053.45,0.00,COMMERCIAL SUPPLIER 
 10-11-2023,People - Ageing Well,Homestead Care Service,Home Care - Private Contractors Payment,1056.00,0.00,COMMERCIAL SUPPLIER 
 10-11-2023,People - Ageing Well,Homestead Care Service,Home Care - Private Contractors Payment,1059.28,0.00,COMMERCIAL SUPPLIER 
 10-11-2023,People - Ageing Well,Home Sweet Home Care Ltd,Home Care - Private Contractors Payment,1061.46,0.00,COMMERCIAL SUPPLIER 
 14-11-2023,People - Ageing Well,Care-Away Ltd T/A Care Support,Home Care - Private Contractors Payment,1063.72,0.00,COMMERCIAL SUPPLIER 
 14-11-2023,People - Ageing Well,Care-Away Ltd T/A Care Support,Home Care - Private Contractors Payment,1063.72,0.00,COMMERCIAL SUPPLIER 
 17-11-2023,People - Ageing Well,Lodge Lane Care Home Limited,Residential Placements - Private Contractors Payment,1064.00,0.00,COMMERCIAL SUPPLIER 
 17-11-2023,People - Ageing Well,The Cedars,Supported Other Accommodation - Private Contractors Payment,1064.56,0.00,COMMERCIAL SUPPLIER 
 01-11-2023,People - Ageing Well,Matrix SCM Ltd,Agency Staff,1066.04,0.00,COMMERCIAL SUPPLIER 
 08-11-2023,People - Ageing Well,Matrix SCM Ltd,Agency Staff,1066.04,0.00,COMMERCIAL SUPPLIER 
 22-11-2023,People - Ageing Well,Matrix SCM Ltd,Agency Staff,1066.04,0.00,COMMERCIAL SUPPLIER 
 22-11-2023,People - Ageing Well,Matrix SCM Ltd,Agency Staff,1066.04,0.00,COMMERCIAL SUPPLIER 
 22-11-2023,People - Ageing Well,Matrix SCM Ltd,Agency Staff,1066.04,0.00,COMMERCIAL SUPPLIER 
 10-11-2023,People - Ageing Well,Homestead Care Service,Home Care - Private Contractors Payment,1067.27,0.00,COMMERCIAL SUPPLIER 
 17-11-2023,People - Ageing Well,Outreach Support Services Ltd,Supported Other Accommodation - Private Contractors Payment,1068.00,0.00,COMMERCIAL SUPPLIER 
 08-11-2023,People - Ageing Well,Morepower Ltd t/a Aqs Homecare,Home Care - Private Contractors Payment,1068.01,0.00,COMMERCIAL SUPPLIER 
 14-11-2023,People - Ageing Well,Home Support Services (Havering & Essex) Ltd,Home Care - Private Contractors Payment,1068.01,0.00,COMMERCIAL SUPPLIER 
 05-11-2023,People - Ageing Well,Personal Information - Redacted,Home Care - Private Contractors Payment,1070.18,0.00,INDIVIDUALS 
 13-11-2023,People - Ageing Well,Passion Tree Care Services Ltd,Home Care - Private Contractors Payment,1070.19,0.00,COMMERCIAL SUPPLIER 
 17-11-2023,People - Ageing Well,Lodge Lane Care Home Limited,Respite Care - Private Contractors Payment,1071.43,0.00,COMMERCIAL SUPPLIER 
 17-11-2023,People - Ageing Well,Ebony Health Care Services Limited,Supported Other Accommodation - Private Contractors Payment,1071.60,0.00,COMMERCIAL SUPPLIER 
 10-11-2023,People - Ageing Well,Homestead Care Service,Home Care - Private Contractors Payment,1073.47,0.00,COMMERCIAL SUPPLIER 
 10-11-2023,People - Ageing Well,Homestead Care Service,Home Care - Private Contractors Payment,1077.48,0.00,COMMERCIAL SUPPLIER 
 10-11-2023,People - Ageing Well,Homestead Care Service,Home Care - Private Contractors Payment,1078.93,0.00,COMMERCIAL SUPPLIER 
 10-11-2023,People - Ageing Well,Home Sweet Home Care Ltd,Home Care - Private Contractors Payment,1079.30,0.00,COMMERCIAL SUPPLIER 
 24-11-2023,People - Ageing Well,Trinity London Care Ltd,Daycare - Private Contractors Payment,1080.00,0.00,COMMERCIAL SUPPLIER 
 24-11-2023,People - Ageing Well,Trinity London Care Ltd,Daycare - Private Contractors Payment,1080.00,0.00,COMMERCIAL SUPPLIER 
 24-11-2023,People - Ageing Well,Trinity London Care Ltd,Daycare - Private Contractors Payment,1080.00,0.00,COMMERCIAL SUPPLIER 
 05-11-2023,People - Ageing Well,Personal Information - Redacted,Home Care - Private Contractors Payment,1082.40,0.00,INDIVIDUALS 
 08-11-2023,People - Ageing Well,Prestige Care & Support Ltd,Home Care - Private Contractors Payment,1082.57,0.00,COMMERCIAL SUPPLIER 
 17-11-2023,People - Ageing Well,Coastal Supported Living CIC,Supported Other Accommodation - Private Contractors Payment,1082.76,0.00,COMMERCIAL SUPPLIER 
 20-11-2023,People - Ageing Well,Livingstone Health Care Services,Home Care - Private Contractors Payment,1082.93,0.00,COMMERCIAL SUPPLIER 
 20-11-2023,People - Ageing Well,Livingstone Health Care Services,Home Care - Private Contractors Payment,1084.03,0.00,COMMERCIAL SUPPLIER 
 17-11-2023,People - Ageing Well,Efficiency - For Care,Supported Other Accommodation - Private Contractors Payment,1085.00,0.00,COMMERCIAL SUPPLIER 
 10-11-2023,People - Ageing Well,Homestead Care Service,Home Care - Private Contractors Payment,1085.11,0.00,COMMERCIAL SUPPLIER 
 10-11-2023,People - Ageing Well,Homestead Care Service,Home Care - Private Contractors Payment,1085.84,0.00,COMMERCIAL SUPPLIER 
 15-11-2023,People - Ageing Well,John Stanleys Care Agency Ltd,Home Care - Private Contractors Payment,1086.58,0.00,COMMERCIAL SUPPLIER 
 17-11-2023,People - Ageing Well,Independent Community Support Ltd t/a Wingletye Lodge ,Supported Other Accommodation - Private Contractors Payment,1088.64,0.00,COMMERCIAL SUPPLIER 
 17-11-2023,People - Ageing Well,Personal Information - Redacted,Supported Other Accommodation - Private Contractors Payment,1088.64,0.00,INDIVIDUALS 
 17-11-2023,People - Ageing Well,Ebony Health Care Services Limited,Home Care - Private Contractors Payment,1091.96,0.00,COMMERCIAL SUPPLIER 
 08-11-2023,People - Ageing Well,IJB Healthcare Ltd,Home Care - Private Contractors Payment,1092.02,0.00,COMMERCIAL SUPPLIER 
 07-11-2023,People - Ageing Well,Premier Carewaiting Ltd,Home Care - Private Contractors Payment,1092.04,0.00,COMMERCIAL SUPPLIER 
 13-11-2023,People - Ageing Well,Outreach Support Services Ltd,Home Care - Private Contractors Payment,1092.04,0.00,COMMERCIAL SUPPLIER 
 17-11-2023,People - Ageing Well,Langley House,Respite Care - Private Contractors Payment,1092.86,0.00,COMMERCIAL SUPPLIER 
 14-11-2023,People - Ageing Well,Home Support Services (Havering & Essex) Ltd,Home Care - Private Contractors Payment,1096.75,0.00,COMMERCIAL SUPPLIER 
 10-11-2023,People - Ageing Well,Home Sweet Home Care Ltd,Home Care - Private Contractors Payment,1096.77,0.00,COMMERCIAL SUPPLIER 
 15-11-2023,People - Ageing Well,Livingstone Health Care Services,Home Care - Private Contractors Payment,1097.49,0.00,COMMERCIAL SUPPLIER 
 17-11-2023,People - Ageing Well,HC-One Oval Ltd - The Hornchurch Nursing Centre,Nursing Homes - Private Contractors Payment,1100.00,0.00,COMMERCIAL SUPPLIER 
 06-11-2023,People - Ageing Well,Hospiva Care & Associates Agency Ltd_a,Home Care - Private Contractors Payment,1100.41,0.00,COMMERCIAL SUPPLIER 
 17-11-2023,People - Ageing Well,Genesis Residential Homes Ltd - Dothan House,Residential Placements - Private Contractors Payment,1100.94,0.00,COMMERCIAL SUPPLIER 
 08-11-2023,People - Ageing Well,Morepower Ltd t/a Aqs Homecare,Home Care - Private Contractors Payment,1101.50,0.00,COMMERCIAL SUPPLIER 
 17-11-2023,People - Ageing Well,Infinite Healthcare Services Ltd.,Supported Other Accommodation - Private Contractors Payment,1101.60,0.00,COMMERCIAL SUPPLIER 
 14-11-2023,People - Ageing Well,Cera Care Operations Ltd,Home Care - Private Contractors Payment,1101.86,0.00,COMMERCIAL SUPPLIER 
 17-11-2023,People - Ageing Well,The Cedars,Supported Other Accommodation - Private Contractors Payment,1102.48,0.00,COMMERCIAL SUPPLIER 
 08-11-2023,People - Ageing Well,Livingstone Health Care Services,Home Care - Private Contractors Payment,1103.32,0.00,COMMERCIAL SUPPLIER 
 08-11-2023,People - Ageing Well,Livingstone Health Care Services,Home Care - Private Contractors Payment,1105.14,0.00,COMMERCIAL SUPPLIER 
 15-11-2023,People - Ageing Well,Livingstone Health Care Services,Home Care - Private Contractors Payment,1108.41,0.00,COMMERCIAL SUPPLIER 
 10-11-2023,People - Ageing Well,Home Sweet Home Care Ltd,Home Care - Private Contractors Payment,1114.61,0.00,COMMERCIAL SUPPLIER 
 13-11-2023,People - Ageing Well,Livingstone Health Care Services,Home Care - Private Contractors Payment,1115.33,0.00,COMMERCIAL SUPPLIER 
 15-11-2023,People - Ageing Well,Livingstone Health Care Services,Home Care - Private Contractors Payment,1115.33,0.00,COMMERCIAL SUPPLIER 
 13-11-2023,People - Ageing Well,Livingstone Health Care Services,Home Care - Private Contractors Payment,1117.51,0.00,COMMERCIAL SUPPLIER 
 17-11-2023,People - Ageing Well,Outlook Care - 4 Peel Way,Supported Other Accommodation - Private Contractors Payment,1117.88,0.00,COMMERCIAL SUPPLIER 
 16-11-2023,People - Ageing Well,Care-Away Ltd T/A Care Support,Home Care - Private Contractors Payment,1118.74,0.00,COMMERCIAL SUPPLIER 
 10-11-2023,People - Ageing Well,Home Sweet Home Care Ltd,Home Care - Private Contractors Payment,1118.98,0.00,COMMERCIAL SUPPLIER 
 06-11-2023,People - Ageing Well,Treal Care Limited,Home Care - Private Contractors Payment,1120.00,0.00,COMMERCIAL SUPPLIER 
 06-11-2023,People - Ageing Well,Treal Care Limited,Home Care - Private Contractors Payment,1120.00,0.00,COMMERCIAL SUPPLIER 
 17-11-2023,People - Ageing Well,Barleycroft Care Home Ltd,Residential Placements - Private Contractors Payment,1120.00,0.00,COMMERCIAL SUPPLIER 
 17-11-2023,People - Ageing Well,The Cottage Residential Care Home,Residential Placements - Private Contractors Payment,1123.52,0.00,COMMERCIAL SUPPLIER 
 08-11-2023,People - Ageing Well,Matrix SCM Ltd,Agency Staff,1129.22,0.00,COMMERCIAL SUPPLIER 
 10-11-2023,People - Ageing Well,Home Sweet Home Care Ltd,Home Care - Private Contractors Payment,1130.99,0.00,COMMERCIAL SUPPLIER 
 17-11-2023,People - Ageing Well,Care Management Group Ltd - The Ridgeway,Supported Other Accommodation - Private Contractors Payment,1131.60,0.00,COMMERCIAL SUPPLIER 
 08-11-2023,People - Ageing Well,Livingstone Health Care Services,Home Care - Private Contractors Payment,1133.15,0.00,COMMERCIAL SUPPLIER 
 17-11-2023,People - Ageing Well,Protecthand Care Ltd ,Supported Other Accommodation - Private Contractors Payment,1134.00,0.00,COMMERCIAL SUPPLIER 
 08-11-2023,People - Ageing Well,Morepower Ltd t/a Aqs Homecare,Home Care - Private Contractors Payment,1135.68,0.00,COMMERCIAL SUPPLIER 
 09-11-2023,People - Ageing Well,Amachyck Care Solution Ltd.,Home Care - Private Contractors Payment,1135.70,0.00,COMMERCIAL SUPPLIER 
 07-11-2023,People - Ageing Well,Livingstone Health Care Services,Home Care - Private Contractors Payment,1139.36,0.00,COMMERCIAL SUPPLIER 
 17-11-2023,People - Ageing Well,Outreach Support Services Ltd,Supported Other Accommodation - Private Contractors Payment,1143.08,0.00,COMMERCIAL SUPPLIER 
 10-11-2023,People - Ageing Well,Homestead Care Service,Home Care - Private Contractors Payment,1146.64,0.00,COMMERCIAL SUPPLIER 
 08-11-2023,People - Ageing Well,Prestige Care & Support Ltd,Home Care - Private Contractors Payment,1150.28,0.00,COMMERCIAL SUPPLIER 
 08-11-2023,People - Ageing Well,Morepower Ltd t/a Aqs Homecare,Home Care - Private Contractors Payment,1154.65,0.00,COMMERCIAL SUPPLIER 
 06-11-2023,People - Ageing Well,Treal Care Limited,Home Care - Private Contractors Payment,1155.00,0.00,COMMERCIAL SUPPLIER 
 14-11-2023,People - Ageing Well,Care-Away Ltd T/A Care Support,Home Care - Private Contractors Payment,1155.42,0.00,COMMERCIAL SUPPLIER 
 16-11-2023,People - Ageing Well,Care-Away Ltd T/A Care Support,Home Care - Private Contractors Payment,1155.42,0.00,COMMERCIAL SUPPLIER 
 16-11-2023,People - Ageing Well,Care-Away Ltd T/A Care Support,Home Care - Private Contractors Payment,1155.42,0.00,COMMERCIAL SUPPLIER 
 17-11-2023,People - Ageing Well,Bluebell & Hawthorn,Residential Placements - Private Contractors Payment,1156.80,0.00,COMMERCIAL SUPPLIER 
 08-11-2023,People - Ageing Well,Morepower Ltd t/a Aqs Homecare,Home Care - Private Contractors Payment,1157.20,0.00,COMMERCIAL SUPPLIER 
 06-11-2023,People - Ageing Well,Eveshel Care Ltd,Home Care - Private Contractors Payment,1157.55,0.00,COMMERCIAL SUPPLIER 
 06-11-2023,People - Ageing Well,Eveshel Care Ltd,Home Care - Private Contractors Payment,1157.55,0.00,COMMERCIAL SUPPLIER 
 06-11-2023,People - Ageing Well,Tapestry_a.,Daycare - Private Contractors Payment,1159.00,0.00,COMMERCIAL SUPPLIER 
 14-11-2023,People - Ageing Well,Cera Care Operations Ltd,Home Care - Private Contractors Payment,1159.37,0.00,COMMERCIAL SUPPLIER 
 15-11-2023,People - Ageing Well,Livingstone Health Care Services,Home Care - Private Contractors Payment,1159.37,0.00,COMMERCIAL SUPPLIER 
 06-11-2023,People - Ageing Well,Eastway Care Ltd_a,Daycare - Private Contractors Payment,1160.00,0.00,COMMERCIAL SUPPLIER 
 17-11-2023,People - Ageing Well,The Riverside Group,Supported Other Accommodation - Private Contractors Payment,1160.00,0.00, 
 17-11-2023,People - Ageing Well,The Riverside Group,Supported Other Accommodation - Private Contractors Payment,1160.00,0.00, 
 17-11-2023,People - Ageing Well,The Riverside Group,Supported Other Accommodation - Private Contractors Payment,1160.00,0.00, 
 17-11-2023,People - Ageing Well,The Riverside Group,Supported Other Accommodation - Private Contractors Payment,1160.00,0.00, 
 17-11-2023,People - Ageing Well,The Riverside Group,Supported Other Accommodation - Private Contractors Payment,1160.00,0.00, 
 17-11-2023,People - Ageing Well,The Riverside Group,Supported Other Accommodation - Private Contractors Payment,1160.00,0.00, 
 17-11-2023,People - Ageing Well,The Riverside Group,Supported Other Accommodation - Private Contractors Payment,1160.00,0.00, 
 17-11-2023,People - Ageing Well,The Riverside Group,Supported Other Accommodation - Private Contractors Payment,1160.00,0.00, 
 17-11-2023,People - Ageing Well,The Riverside Group,Supported Other Accommodation - Private Contractors Payment,1160.00,0.00, 
 10-11-2023,People - Ageing Well,Home Sweet Home Care Ltd,Home Care - Private Contractors Payment,1161.93,0.00,COMMERCIAL SUPPLIER 
 17-11-2023,People - Ageing Well,One Tree Estates Ltd t/a Ashbrook Nursing Home,Nursing Care Income,1165.06,0.00,COMMERCIAL SUPPLIER 
 10-11-2023,People - Ageing Well,Homestead Care Service,Home Care - Private Contractors Payment,1166.30,0.00,COMMERCIAL SUPPLIER 
 17-11-2023,People - Ageing Well,Lodge Group Care UK Ltd,Home Care - Private Contractors Payment,1166.65,0.00,COMMERCIAL SUPPLIER 
 01-11-2023,People - Ageing Well,Matrix SCM Ltd,Agency Staff,1169.28,0.00,COMMERCIAL SUPPLIER 
 10-11-2023,People - Ageing Well,Homestead Care Service,Home Care - Private Contractors Payment,1169.57,0.00,COMMERCIAL SUPPLIER 
 17-11-2023,People - Ageing Well,Lodge Group Care UK Ltd,Home Care - Private Contractors Payment,1169.93,0.00,COMMERCIAL SUPPLIER 
 10-11-2023,People - Ageing Well,Homestead Care Service,Home Care - Private Contractors Payment,1169.94,0.00,COMMERCIAL SUPPLIER 
 17-11-2023,People - Ageing Well,Lodge Group Care UK Ltd,Home Care - Private Contractors Payment,1172.84,0.00,COMMERCIAL SUPPLIER 
 14-11-2023,People - Ageing Well,Cera Care Operations Ltd,Home Care - Private Contractors Payment,1174.67,0.00,COMMERCIAL SUPPLIER 
 10-11-2023,People - Ageing Well,Home Sweet Home Care Ltd,Home Care - Private Contractors Payment,1175.76,0.00,COMMERCIAL SUPPLIER 
 08-11-2023,People - Ageing Well,IJB Healthcare Ltd,Home Care - Private Contractors Payment,1179.39,0.00,COMMERCIAL SUPPLIER 
 08-11-2023,People - Ageing Well,IJB Healthcare Ltd,Home Care - Private Contractors Payment,1179.39,0.00,COMMERCIAL SUPPLIER 
 08-11-2023,People - Ageing Well,IJB Healthcare Ltd,Home Care - Private Contractors Payment,1179.39,0.00,COMMERCIAL SUPPLIER 
 08-11-2023,People - Ageing Well,IJB Healthcare Ltd,Home Care - Private Contractors Payment,1179.39,0.00,COMMERCIAL SUPPLIER 
 08-11-2023,People - Ageing Well,IJB Healthcare Ltd,Home Care - Private Contractors Payment,1179.39,0.00,COMMERCIAL SUPPLIER 
 08-11-2023,People - Ageing Well,IJB Healthcare Ltd,Home Care - Private Contractors Payment,1179.39,0.00,COMMERCIAL SUPPLIER 
 30-11-2023,People - Ageing Well,Crystalize Care Services Ltd,Home Care - Private Contractors Payment,1179.39,0.00,COMMERCIAL SUPPLIER 
 14-11-2023,People - Ageing Well,Cera Care Operations Ltd,Home Care - Private Contractors Payment,1179.40,0.00,COMMERCIAL SUPPLIER 
 16-11-2023,People - Ageing Well,Inna Care Ltd,Home Care - Private Contractors Payment,1179.40,0.00,COMMERCIAL SUPPLIER 
 13-11-2023,People - Ageing Well,Livingstone Health Care Services,Home Care - Private Contractors Payment,1183.40,0.00,COMMERCIAL SUPPLIER 
 17-11-2023,People - Ageing Well,Lodge Group Care UK Ltd,Home Care - Private Contractors Payment,1183.77,0.00,COMMERCIAL SUPPLIER 
 14-11-2023,People - Ageing Well,Home Support Services (Havering & Essex) Ltd,Home Care - Private Contractors Payment,1184.13,0.00,COMMERCIAL SUPPLIER 
 17-11-2023,People - Ageing Well,Lodge Group Care UK Ltd,Home Care - Private Contractors Payment,1184.13,0.00,COMMERCIAL SUPPLIER 
 06-11-2023,People - Ageing Well,Radfield Home Care Havering & Brentwood,Home Care - Private Contractors Payment,1186.00,0.00,COMMERCIAL SUPPLIER 
 20-11-2023,People - Ageing Well,Radfield Home Care Havering & Brentwood,Home Care - Private Contractors Payment,1186.00,0.00,COMMERCIAL SUPPLIER 
 10-11-2023,People - Ageing Well,Homestead Care Service,Home Care - Private Contractors Payment,1187.05,0.00,COMMERCIAL SUPPLIER 
 06-11-2023,People - Ageing Well,Ace Outreach Ltd,Home Care - Private Contractors Payment,1188.00,0.00,COMMERCIAL SUPPLIER 
 10-11-2023,People - Ageing Well,Homestead Care Service,Home Care - Private Contractors Payment,1189.96,0.00,COMMERCIAL SUPPLIER 
 17-11-2023,People - Ageing Well,Two Trees Caring Home,Residential Placements - Private Contractors Payment,1190.00,0.00,COMMERCIAL SUPPLIER 
 10-11-2023,People - Ageing Well,Home Sweet Home Care Ltd,Home Care - Private Contractors Payment,1190.32,0.00,COMMERCIAL SUPPLIER 
 10-11-2023,People - Ageing Well,Home Sweet Home Care Ltd,Home Care - Private Contractors Payment,1190.32,0.00,COMMERCIAL SUPPLIER 
 16-11-2023,People - Ageing Well,Anytime Care 2020_a,Home Care - Private Contractors Payment,1190.32,0.00,COMMERCIAL SUPPLIER 
 16-11-2023,People - Ageing Well,Anytime Care 2020_a,Home Care - Private Contractors Payment,1190.32,0.00,COMMERCIAL SUPPLIER 
 10-11-2023,People - Ageing Well,Home Sweet Home Care Ltd,Home Care - Private Contractors Payment,1191.05,0.00,COMMERCIAL SUPPLIER 
 10-11-2023,People - Ageing Well,Homestead Care Service,Home Care - Private Contractors Payment,1191.42,0.00,COMMERCIAL SUPPLIER 
 10-11-2023,People - Ageing Well,Home Sweet Home Care Ltd,Home Care - Private Contractors Payment,1191.78,0.00,COMMERCIAL SUPPLIER 
 09-11-2023,People - Ageing Well,Prior Care Ltd_a,Home Care - Private Contractors Payment,1193.24,0.00,COMMERCIAL SUPPLIER 
 09-11-2023,People - Ageing Well,Prior Care Ltd_a,Home Care - Private Contractors Payment,1194.33,0.00,COMMERCIAL SUPPLIER 
 13-11-2023,People - Ageing Well,Livingstone Health Care Services,Home Care - Private Contractors Payment,1194.33,0.00,COMMERCIAL SUPPLIER 
 16-11-2023,People - Ageing Well,Anytime Care 2020_a,Home Care - Private Contractors Payment,1195.06,0.00,COMMERCIAL SUPPLIER 
 14-11-2023,People - Ageing Well,Home Support Services (Havering & Essex) Ltd,Home Care - Private Contractors Payment,1196.15,0.00,COMMERCIAL SUPPLIER 
 14-11-2023,People - Ageing Well,Home Support Services (Havering & Essex) Ltd,Home Care - Private Contractors Payment,1197.24,0.00,COMMERCIAL SUPPLIER 
 13-11-2023,People - Ageing Well,Livingstone Health Care Services,Home Care - Private Contractors Payment,1197.60,0.00,COMMERCIAL SUPPLIER 
 17-11-2023,People - Ageing Well,Lodge Lane Care Home Limited,Residential Placements - Private Contractors Payment,1200.00,0.00,COMMERCIAL SUPPLIER 
 07-11-2023,People - Ageing Well,London Homecare Ltd,Home Care - Private Contractors Payment,1201.23,0.00,COMMERCIAL SUPPLIER 
 14-11-2023,People - Ageing Well,Home Support Services (Havering & Essex) Ltd,Home Care - Private Contractors Payment,1201.24,0.00,COMMERCIAL SUPPLIER 
 10-11-2023,People - Ageing Well,Home Sweet Home Care Ltd,Home Care - Private Contractors Payment,1201.61,0.00,COMMERCIAL SUPPLIER 
 10-11-2023,People - Ageing Well,Homestead Care Service,Home Care - Private Contractors Payment,1201.97,0.00,COMMERCIAL SUPPLIER 
 20-11-2023,People - Ageing Well,Livingstone Health Care Services,Home Care - Private Contractors Payment,1201.97,0.00,COMMERCIAL SUPPLIER 
 10-11-2023,People - Ageing Well,Homestead Care Service,Home Care - Private Contractors Payment,1202.34,0.00,COMMERCIAL SUPPLIER 
 17-11-2023,People - Ageing Well,Lodge Group Care UK Ltd,Home Care - Private Contractors Payment,1202.70,0.00,COMMERCIAL SUPPLIER 
 10-11-2023,People - Ageing Well,Homestead Care Service,Home Care - Private Contractors Payment,1203.06,0.00,COMMERCIAL SUPPLIER 
 10-11-2023,People - Ageing Well,Homestead Care Service,Home Care - Private Contractors Payment,1203.06,0.00,COMMERCIAL SUPPLIER 
 10-11-2023,People - Ageing Well,Homestead Care Service,Home Care - Private Contractors Payment,1203.79,0.00,COMMERCIAL SUPPLIER 
 17-11-2023,People - Ageing Well,Lodge Group Care UK Ltd,Home Care - Private Contractors Payment,1204.52,0.00,COMMERCIAL SUPPLIER 
 16-11-2023,People - Ageing Well,Anytime Care 2020_a,Home Care - Private Contractors Payment,1205.25,0.00,COMMERCIAL SUPPLIER 
 10-11-2023,People - Ageing Well,Homestead Care Service,Home Care - Private Contractors Payment,1207.80,0.00,COMMERCIAL SUPPLIER 
 15-11-2023,People - Ageing Well,John Stanleys Care Agency Ltd,Home Care - Private Contractors Payment,1207.80,0.00,COMMERCIAL SUPPLIER 
 10-11-2023,People - Ageing Well,Homestead Care Service,Home Care - Private Contractors Payment,1208.52,0.00,COMMERCIAL SUPPLIER 
 08-11-2023,People - Ageing Well,Morepower Ltd t/a Aqs Homecare,Home Care - Private Contractors Payment,1209.25,0.00,COMMERCIAL SUPPLIER 
 15-11-2023,People - Ageing Well,Matrix SCM Ltd,Agency Staff,1209.60,0.00,COMMERCIAL SUPPLIER 
 15-11-2023,People - Ageing Well,Matrix SCM Ltd,Agency Staff,1209.60,0.00,COMMERCIAL SUPPLIER 
 14-11-2023,People - Ageing Well,Care-Away Ltd T/A Care Support,Home Care - Private Contractors Payment,1210.44,0.00,COMMERCIAL SUPPLIER 
 10-11-2023,People - Ageing Well,Home Sweet Home Care Ltd,Home Care - Private Contractors Payment,1212.16,0.00,COMMERCIAL SUPPLIER 
 10-11-2023,People - Ageing Well,Homestead Care Service,Home Care - Private Contractors Payment,1212.53,0.00,COMMERCIAL SUPPLIER 
 10-11-2023,People - Ageing Well,Homestead Care Service,Home Care - Private Contractors Payment,1213.26,0.00,COMMERCIAL SUPPLIER 
 17-11-2023,People - Ageing Well,Lodge Group Care UK Ltd,Home Care - Private Contractors Payment,1213.26,0.00,COMMERCIAL SUPPLIER 
 10-11-2023,People - Ageing Well,Home Sweet Home Care Ltd,Home Care - Private Contractors Payment,1215.44,0.00,COMMERCIAL SUPPLIER 
 10-11-2023,People - Ageing Well,Home Sweet Home Care Ltd,Home Care - Private Contractors Payment,1215.80,0.00,COMMERCIAL SUPPLIER 
 17-11-2023,People - Ageing Well,Lodge Group Care UK Ltd,Home Care - Private Contractors Payment,1216.53,0.00,COMMERCIAL SUPPLIER 
 10-11-2023,People - Ageing Well,Home Sweet Home Care Ltd,Home Care - Private Contractors Payment,1216.90,0.00,COMMERCIAL SUPPLIER 
 17-11-2023,People - Ageing Well,Quality Healthcare Solutions Ltd t/a Kare Plus Romford,Home Care - Private Contractors Payment,1216.90,0.00,COMMERCIAL SUPPLIER 
 17-11-2023,People - Ageing Well,Lodge Group Care UK Ltd,Home Care - Private Contractors Payment,1217.62,0.00,COMMERCIAL SUPPLIER 
 10-11-2023,People - Ageing Well,Homestead Care Service,Home Care - Private Contractors Payment,1217.99,0.00,COMMERCIAL SUPPLIER 
 05-11-2023,People - Ageing Well,Personal Information - Redacted,Home Care - Private Contractors Payment,1219.50,0.00,INDIVIDUALS 
 07-11-2023,People - Ageing Well,Livingstone Health Care Services,Home Care - Private Contractors Payment,1219.81,0.00,COMMERCIAL SUPPLIER 
 10-11-2023,People - Ageing Well,Home Sweet Home Care Ltd,Home Care - Private Contractors Payment,1219.81,0.00,COMMERCIAL SUPPLIER 
 06-11-2023,People - Ageing Well,Tapestry_a.,Daycare - Private Contractors Payment,1220.00,0.00,COMMERCIAL SUPPLIER 
 06-11-2023,People - Ageing Well,Tapestry_a.,Daycare - Private Contractors Payment,1220.00,0.00,COMMERCIAL SUPPLIER 
 06-11-2023,People - Ageing Well,Tapestry_a.,Daycare - Private Contractors Payment,1220.00,0.00,COMMERCIAL SUPPLIER 
 06-11-2023,People - Ageing Well,Tapestry_a.,Daycare - Private Contractors Payment,1220.00,0.00,COMMERCIAL SUPPLIER 
 17-11-2023,People - Ageing Well,Lodge Lane Care Home Limited,Respite Care - Private Contractors Payment,1221.43,0.00,COMMERCIAL SUPPLIER 
 05-11-2023,People - Ageing Well,Personal Information - Redacted,Home Care - Private Contractors Payment,1223.05,0.00,INDIVIDUALS 
 08-11-2023,People - Ageing Well,IJB Healthcare Ltd,Home Care - Private Contractors Payment,1223.06,0.00,COMMERCIAL SUPPLIER 
 16-11-2023,People - Ageing Well,Inna Care Ltd,Home Care - Private Contractors Payment,1223.06,0.00,COMMERCIAL SUPPLIER 
 30-11-2023,People - Ageing Well,Crystalize Care Services Ltd,Home Care - Private Contractors Payment,1223.06,0.00,COMMERCIAL SUPPLIER 
 30-11-2023,People - Ageing Well,Crystalize Care Services Ltd,Home Care - Private Contractors Payment,1223.06,0.00,COMMERCIAL SUPPLIER 
 06-11-2023,People - Ageing Well,Gims Care Solution Ltd_a,Home Care - Private Contractors Payment,1223.07,0.00,NON COMMERCIAL SUPPLIER 
 01-11-2023,People - Ageing Well,Letussharethecare Ltd,Home Care - Private Contractors Payment,1223.08,0.00,COMMERCIAL SUPPLIER 
 05-11-2023,People - Ageing Well,Personal Information - Redacted,Home Care - Private Contractors Payment,1223.08,0.00,INDIVIDUALS 
 05-11-2023,People - Ageing Well,Personal Information - Redacted,Home Care - Private Contractors Payment,1223.08,0.00,INDIVIDUALS 
 05-11-2023,People - Ageing Well,Personal Information - Redacted,Home Care - Private Contractors Payment,1223.08,0.00,INDIVIDUALS 
 07-11-2023,People - Ageing Well,London Homecare Ltd,Home Care - Private Contractors Payment,1223.08,0.00,COMMERCIAL SUPPLIER 
 07-11-2023,People - Ageing Well,London Homecare Ltd,Home Care - Private Contractors Payment,1223.08,0.00,COMMERCIAL SUPPLIER 
 07-11-2023,People - Ageing Well,London Homecare Ltd,Home Care - Private Contractors Payment,1223.08,0.00,COMMERCIAL SUPPLIER 
 07-11-2023,People - Ageing Well,Premier Carewaiting Ltd,Home Care - Private Contractors Payment,1223.08,0.00,COMMERCIAL SUPPLIER 
 08-11-2023,People - Ageing Well,Prestige Care & Support Ltd,Home Care - Private Contractors Payment,1223.08,0.00,COMMERCIAL SUPPLIER 
 09-11-2023,People - Ageing Well,Prior Care Ltd_a,Home Care - Private Contractors Payment,1223.08,0.00,COMMERCIAL SUPPLIER 
 09-11-2023,People - Ageing Well,Prior Care Ltd_a,Home Care - Private Contractors Payment,1223.08,0.00,COMMERCIAL SUPPLIER 
 10-11-2023,People - Ageing Well,Home Sweet Home Care Ltd,Home Care - Private Contractors Payment,1223.08,0.00,COMMERCIAL SUPPLIER 
 10-11-2023,People - Ageing Well,Rosemont Care Limited,Home Care - Private Contractors Payment,1223.08,0.00,COMMERCIAL SUPPLIER 
 10-11-2023,People - Ageing Well,Rosemont Care Limited,Home Care - Private Contractors Payment,1223.08,0.00,COMMERCIAL SUPPLIER 
 10-11-2023,People - Ageing Well,Rosemont Care Limited,Home Care - Private Contractors Payment,1223.08,0.00,COMMERCIAL SUPPLIER 
 10-11-2023,People - Ageing Well,Rosemont Care Limited,Home Care - Private Contractors Payment,1223.08,0.00,COMMERCIAL SUPPLIER 
 13-11-2023,People - Ageing Well,Passion Tree Care Services Ltd,Home Care - Private Contractors Payment,1223.08,0.00,COMMERCIAL SUPPLIER 
 13-11-2023,People - Ageing Well,Passion Tree Care Services Ltd,Home Care - Private Contractors Payment,1223.08,0.00,COMMERCIAL SUPPLIER 
 13-11-2023,People - Ageing Well,Outreach Support Services Ltd,Home Care - Private Contractors Payment,1223.08,0.00,COMMERCIAL SUPPLIER 
 13-11-2023,People - Ageing Well,Outreach Support Services Ltd,Home Care - Private Contractors Payment,1223.08,0.00,COMMERCIAL SUPPLIER 
 13-11-2023,People - Ageing Well,Outreach Support Services Ltd,Home Care - Private Contractors Payment,1223.08,0.00,COMMERCIAL SUPPLIER 
 13-11-2023,People - Ageing Well,Outreach Support Services Ltd,Home Care - Private Contractors Payment,1223.08,0.00,COMMERCIAL SUPPLIER 
 13-11-2023,People - Ageing Well,Outreach Support Services Ltd,Home Care - Private Contractors Payment,1223.08,0.00,COMMERCIAL SUPPLIER 
 13-11-2023,People - Ageing Well,Outreach Support Services Ltd,Home Care - Private Contractors Payment,1223.08,0.00,COMMERCIAL SUPPLIER 
 14-11-2023,People - Ageing Well,Home Support Services (Havering & Essex) Ltd,Home Care - Private Contractors Payment,1223.08,0.00,COMMERCIAL SUPPLIER 
 17-11-2023,People - Ageing Well,Lodge Group Care UK Ltd,Home Care - Private Contractors Payment,1223.08,0.00,COMMERCIAL SUPPLIER 
 17-11-2023,People - Ageing Well,Lodge Group Care UK Ltd,Home Care - Private Contractors Payment,1223.08,0.00,COMMERCIAL SUPPLIER 
 17-11-2023,People - Ageing Well,Lodge Group Care UK Ltd,Home Care - Private Contractors Payment,1223.08,0.00,COMMERCIAL SUPPLIER 
 17-11-2023,People - Ageing Well,Lodge Group Care UK Ltd,Home Care - Private Contractors Payment,1223.08,0.00,COMMERCIAL SUPPLIER 
 17-11-2023,People - Ageing Well,Lodge Group Care UK Ltd,Home Care - Private Contractors Payment,1223.08,0.00,COMMERCIAL SUPPLIER 
 17-11-2023,People - Ageing Well,Lodge Group Care UK Ltd,Home Care - Private Contractors Payment,1223.08,0.00,COMMERCIAL SUPPLIER 
 17-11-2023,People - Ageing Well,Lodge Group Care UK Ltd,Home Care - Private Contractors Payment,1223.08,0.00,COMMERCIAL SUPPLIER 
 16-11-2023,People - Ageing Well,Anytime Care 2020_a,Home Care - Private Contractors Payment,1223.45,0.00,COMMERCIAL SUPPLIER 
 09-11-2023,People - Ageing Well,Prior Care Ltd_a,Home Care - Private Contractors Payment,1223.81,0.00,COMMERCIAL SUPPLIER 
 10-11-2023,People - Ageing Well,Homestead Care Service,Home Care - Private Contractors Payment,1223.81,0.00,COMMERCIAL SUPPLIER 
 08-11-2023,People - Ageing Well,Prestige Care & Support Ltd,Home Care - Private Contractors Payment,1224.18,0.00,COMMERCIAL SUPPLIER 
 17-11-2023,People - Ageing Well,Lodge Group Care UK Ltd,Home Care - Private Contractors Payment,1224.18,0.00,COMMERCIAL SUPPLIER 
 10-11-2023,People - Ageing Well,Homestead Care Service,Home Care - Private Contractors Payment,1224.54,0.00,COMMERCIAL SUPPLIER 
 10-11-2023,People - Ageing Well,Homestead Care Service,Home Care - Private Contractors Payment,1224.54,0.00,COMMERCIAL SUPPLIER 
 10-11-2023,People - Ageing Well,Homestead Care Service,Home Care - Private Contractors Payment,1224.54,0.00,COMMERCIAL SUPPLIER 
 17-11-2023,People - Ageing Well,Lodge Group Care UK Ltd,Home Care - Private Contractors Payment,1224.54,0.00,COMMERCIAL SUPPLIER 
 08-11-2023,People - Ageing Well,Morepower Ltd t/a Aqs Homecare,Home Care - Private Contractors Payment,1224.90,0.00,COMMERCIAL SUPPLIER 
 10-11-2023,People - Ageing Well,Homestead Care Service,Home Care - Private Contractors Payment,1225.27,0.00,COMMERCIAL SUPPLIER 
 17-11-2023,People - Ageing Well,Lodge Group Care UK Ltd,Home Care - Private Contractors Payment,1225.27,0.00,COMMERCIAL SUPPLIER 
 09-11-2023,People - Ageing Well,Prior Care Ltd_a,Home Care - Private Contractors Payment,1225.63,0.00,COMMERCIAL SUPPLIER 
 10-11-2023,People - Ageing Well,Homestead Care Service,Home Care - Private Contractors Payment,1225.63,0.00,COMMERCIAL SUPPLIER 
 10-11-2023,People - Ageing Well,Homestead Care Service,Home Care - Private Contractors Payment,1225.63,0.00,COMMERCIAL SUPPLIER 
 10-11-2023,People - Ageing Well,Home Sweet Home Care Ltd,Home Care - Private Contractors Payment,1225.63,0.00,COMMERCIAL SUPPLIER 
 10-11-2023,People - Ageing Well,Home Sweet Home Care Ltd,Home Care - Private Contractors Payment,1225.63,0.00,COMMERCIAL SUPPLIER 
 14-11-2023,People - Ageing Well,Home Support Services (Havering & Essex) Ltd,Home Care - Private Contractors Payment,1225.63,0.00,COMMERCIAL SUPPLIER 
 14-11-2023,People - Ageing Well,Home Support Services (Havering & Essex) Ltd,Home Care - Private Contractors Payment,1225.63,0.00,COMMERCIAL SUPPLIER 
 14-11-2023,People - Ageing Well,Home Support Services (Havering & Essex) Ltd,Home Care - Private Contractors Payment,1225.63,0.00,COMMERCIAL SUPPLIER 
 14-11-2023,People - Ageing Well,Home Support Services (Havering & Essex) Ltd,Home Care - Private Contractors Payment,1225.99,0.00,COMMERCIAL SUPPLIER 
 16-11-2023,People - Ageing Well,Anytime Care 2020_a,Home Care - Private Contractors Payment,1226.00,0.00,COMMERCIAL SUPPLIER 
 17-11-2023,People - Ageing Well,Lodge Group Care UK Ltd,Home Care - Private Contractors Payment,1226.00,0.00,COMMERCIAL SUPPLIER 
 10-11-2023,People - Ageing Well,Homestead Care Service,Home Care - Private Contractors Payment,1226.72,0.00,COMMERCIAL SUPPLIER 
 17-11-2023,People - Ageing Well,Lodge Group Care UK Ltd,Home Care - Private Contractors Payment,1226.72,0.00,COMMERCIAL SUPPLIER 
 09-11-2023,People - Ageing Well,Prior Care Ltd_a,Home Care - Private Contractors Payment,1227.44,0.00,COMMERCIAL SUPPLIER 
 10-11-2023,People - Ageing Well,Home Sweet Home Care Ltd,Home Care - Private Contractors Payment,1227.45,0.00,COMMERCIAL SUPPLIER 
 17-11-2023,People - Ageing Well,Lodge Group Care UK Ltd,Home Care - Private Contractors Payment,1228.54,0.00,COMMERCIAL SUPPLIER 
 16-11-2023,People - Ageing Well,Anytime Care 2020_a,Home Care - Private Contractors Payment,1228.91,0.00,COMMERCIAL SUPPLIER 
 17-11-2023,People - Ageing Well,Lodge Group Care UK Ltd,Home Care - Private Contractors Payment,1228.91,0.00,COMMERCIAL SUPPLIER 
 10-11-2023,People - Ageing Well,Home Sweet Home Care Ltd,Home Care - Private Contractors Payment,1229.27,0.00,COMMERCIAL SUPPLIER 
 17-11-2023,People - Ageing Well,Lodge Group Care UK Ltd,Home Care - Private Contractors Payment,1229.27,0.00,COMMERCIAL SUPPLIER 
 08-11-2023,People - Ageing Well,Morepower Ltd t/a Aqs Homecare,Home Care - Private Contractors Payment,1229.62,0.00,COMMERCIAL SUPPLIER 
 10-11-2023,People - Ageing Well,Homestead Care Service,Home Care - Private Contractors Payment,1229.64,0.00,COMMERCIAL SUPPLIER 
 17-11-2023,People - Ageing Well,Lodge Group Care UK Ltd,Home Care - Private Contractors Payment,1229.64,0.00,COMMERCIAL SUPPLIER 
 20-11-2023,People - Ageing Well,Livingstone Health Care Services,Home Care - Private Contractors Payment,1230.00,0.00,COMMERCIAL SUPPLIER 
 17-11-2023,People - Ageing Well,Lodge Group Care UK Ltd,Home Care - Private Contractors Payment,1230.36,0.00,COMMERCIAL SUPPLIER 
 06-11-2023,People - Ageing Well,Hospiva Care & Associates Agency Ltd_a,Home Care - Private Contractors Payment,1230.73,0.00,COMMERCIAL SUPPLIER 
 03-11-2023,People - Ageing Well,Livingstone Health Care Services,Home Care - Private Contractors Payment,1231.09,0.00,COMMERCIAL SUPPLIER 
 20-11-2023,People - Ageing Well,Livingstone Health Care Services,Home Care - Private Contractors Payment,1231.09,0.00,COMMERCIAL SUPPLIER 
 03-11-2023,People - Ageing Well,Livingstone Health Care Services,Home Care - Private Contractors Payment,1231.82,0.00,COMMERCIAL SUPPLIER 
 10-11-2023,People - Ageing Well,Homestead Care Service,Home Care - Private Contractors Payment,1231.82,0.00,COMMERCIAL SUPPLIER 
 14-11-2023,People - Ageing Well,Cera Care Operations Ltd,Home Care - Private Contractors Payment,1231.82,0.00,COMMERCIAL SUPPLIER 
 07-11-2023,People - Ageing Well,Livingstone Health Care Services,Home Care - Private Contractors Payment,1232.54,0.00,COMMERCIAL SUPPLIER 
 10-11-2023,People - Ageing Well,Home Sweet Home Care Ltd,Home Care - Private Contractors Payment,1232.55,0.00,COMMERCIAL SUPPLIER 
 15-11-2023,People - Ageing Well,John Stanleys Care Agency Ltd,Home Care - Private Contractors Payment,1232.55,0.00,COMMERCIAL SUPPLIER 
 14-11-2023,People - Ageing Well,Cera Care Operations Ltd,Home Care - Private Contractors Payment,1232.91,0.00,COMMERCIAL SUPPLIER 
 09-11-2023,People - Ageing Well,Prior Care Ltd_a,Home Care - Private Contractors Payment,1233.28,0.00,COMMERCIAL SUPPLIER 
 14-11-2023,People - Ageing Well,Home Support Services (Havering & Essex) Ltd,Home Care - Private Contractors Payment,1233.28,0.00,COMMERCIAL SUPPLIER 
 09-11-2023,People - Ageing Well,Prior Care Ltd_a,Home Care - Private Contractors Payment,1234.00,0.00,COMMERCIAL SUPPLIER 
 10-11-2023,People - Ageing Well,Home Sweet Home Care Ltd,Home Care - Private Contractors Payment,1234.00,0.00,COMMERCIAL SUPPLIER 
 08-11-2023,People - Ageing Well,Prestige Care & Support Ltd,Home Care - Private Contractors Payment,1234.37,0.00,COMMERCIAL SUPPLIER 
 08-11-2023,People - Ageing Well,Prestige Care & Support Ltd,Home Care - Private Contractors Payment,1234.73,0.00,COMMERCIAL SUPPLIER 
 14-11-2023,People - Ageing Well,Cera Care Operations Ltd,Home Care - Private Contractors Payment,1234.73,0.00,COMMERCIAL SUPPLIER 
 17-11-2023,People - Ageing Well,Lodge Group Care UK Ltd,Home Care - Private Contractors Payment,1235.10,0.00,COMMERCIAL SUPPLIER 
 10-11-2023,People - Ageing Well,Homestead Care Service,Home Care - Private Contractors Payment,1235.46,0.00,COMMERCIAL SUPPLIER 
 10-11-2023,People - Ageing Well,Homestead Care Service,Home Care - Private Contractors Payment,1235.82,0.00,COMMERCIAL SUPPLIER 
 14-11-2023,People - Ageing Well,Cera Care Operations Ltd,Home Care - Private Contractors Payment,1235.82,0.00,COMMERCIAL SUPPLIER 
 17-11-2023,People - Ageing Well,Lodge Group Care UK Ltd,Home Care - Private Contractors Payment,1236.55,0.00,COMMERCIAL SUPPLIER 
 17-11-2023,People - Ageing Well,Lodge Group Care UK Ltd,Home Care - Private Contractors Payment,1236.92,0.00,COMMERCIAL SUPPLIER 
 15-11-2023,People - Ageing Well,Matrix SCM Ltd,Agency Staff,1237.70,0.00,COMMERCIAL SUPPLIER 
 22-11-2023,People - Ageing Well,Matrix SCM Ltd,Agency Staff,1237.70,0.00,COMMERCIAL SUPPLIER 
 15-11-2023,People - Ageing Well,Livingstone Health Care Services,Home Care - Private Contractors Payment,1238.37,0.00,COMMERCIAL SUPPLIER 
 17-11-2023,People - Ageing Well,Lodge Group Care UK Ltd,Home Care - Private Contractors Payment,1238.37,0.00,COMMERCIAL SUPPLIER 
 14-11-2023,People - Ageing Well,Cera Care Operations Ltd,Home Care - Private Contractors Payment,1238.74,0.00,COMMERCIAL SUPPLIER 
 17-11-2023,People - Ageing Well,Lodge Group Care UK Ltd,Home Care - Private Contractors Payment,1238.74,0.00,COMMERCIAL SUPPLIER 
 17-11-2023,People - Ageing Well,Lodge Group Care UK Ltd,Home Care - Private Contractors Payment,1238.74,0.00,COMMERCIAL SUPPLIER 
 10-11-2023,People - Ageing Well,Home Sweet Home Care Ltd,Home Care - Private Contractors Payment,1239.10,0.00,COMMERCIAL SUPPLIER 
 10-11-2023,People - Ageing Well,Home Sweet Home Care Ltd,Home Care - Private Contractors Payment,1239.10,0.00,COMMERCIAL SUPPLIER 
 14-11-2023,People - Ageing Well,Home Support Services (Havering & Essex) Ltd,Home Care - Private Contractors Payment,1239.10,0.00,COMMERCIAL SUPPLIER 
 08-11-2023,People - Ageing Well,Action First Assessments Ltd,Private Contractors Payment - Other,1240.00,0.00,COMMERCIAL SUPPLIER 
 10-11-2023,People - Ageing Well,Homestead Care Service,Home Care - Private Contractors Payment,1240.19,0.00,COMMERCIAL SUPPLIER 
 10-11-2023,People - Ageing Well,Home Sweet Home Care Ltd,Home Care - Private Contractors Payment,1240.19,0.00,COMMERCIAL SUPPLIER 
 10-11-2023,People - Ageing Well,Homestead Care Service,Home Care - Private Contractors Payment,1240.56,0.00,COMMERCIAL SUPPLIER 
 14-11-2023,People - Ageing Well,Westminster Homecare Ltd_a,Home Care - Private Contractors Payment,1240.56,0.00,COMMERCIAL SUPPLIER 
 14-11-2023,People - Ageing Well,Westminster Homecare Ltd_a,Home Care - Private Contractors Payment,1240.92,0.00,COMMERCIAL SUPPLIER 
 01-11-2023,People - Ageing Well,Matrix SCM Ltd,Agency Staff,1241.28,0.00,COMMERCIAL SUPPLIER 
 01-11-2023,People - Ageing Well,Matrix SCM Ltd,Agency Staff,1241.28,0.00,COMMERCIAL SUPPLIER 
 01-11-2023,People - Ageing Well,Matrix SCM Ltd,Agency Staff,1241.28,0.00,COMMERCIAL SUPPLIER 
 01-11-2023,People - Ageing Well,Matrix SCM Ltd,Agency Staff,1241.28,0.00,COMMERCIAL SUPPLIER 
 01-11-2023,People - Ageing Well,Matrix SCM Ltd,Agency Staff,1241.28,0.00,COMMERCIAL SUPPLIER 
 01-11-2023,People - Ageing Well,Matrix SCM Ltd,Agency Staff,1241.28,0.00,COMMERCIAL SUPPLIER 
 01-11-2023,People - Ageing Well,Matrix SCM Ltd,Agency Staff,1241.28,0.00,COMMERCIAL SUPPLIER 
 01-11-2023,People - Ageing Well,Matrix SCM Ltd,Agency Staff,1241.28,0.00,COMMERCIAL SUPPLIER 
 08-11-2023,People - Ageing Well,Matrix SCM Ltd,Agency Staff,1241.28,0.00,COMMERCIAL SUPPLIER 
 08-11-2023,People - Ageing Well,Matrix SCM Ltd,Agency Staff,1241.28,0.00,COMMERCIAL SUPPLIER 
 08-11-2023,People - Ageing Well,Matrix SCM Ltd,Agency Staff,1241.28,0.00,COMMERCIAL SUPPLIER 
 08-11-2023,People - Ageing Well,Matrix SCM Ltd,Agency Staff,1241.28,0.00,COMMERCIAL SUPPLIER 
 08-11-2023,People - Ageing Well,Matrix SCM Ltd,Agency Staff,1241.28,0.00,COMMERCIAL SUPPLIER 
 08-11-2023,People - Ageing Well,Matrix SCM Ltd,Agency Staff,1241.28,0.00,COMMERCIAL SUPPLIER 
 08-11-2023,People - Ageing Well,Matrix SCM Ltd,Agency Staff,1241.28,0.00,COMMERCIAL SUPPLIER 
 10-11-2023,People - Ageing Well,Homestead Care Service,Home Care - Private Contractors Payment,1241.28,0.00,COMMERCIAL SUPPLIER 
 14-11-2023,People - Ageing Well,Home Support Services (Havering & Essex) Ltd,Home Care - Private Contractors Payment,1241.28,0.00,COMMERCIAL SUPPLIER 
 15-11-2023,People - Ageing Well,Matrix SCM Ltd,Agency Staff,1241.28,0.00,COMMERCIAL SUPPLIER 
 15-11-2023,People - Ageing Well,Matrix SCM Ltd,Agency Staff,1241.28,0.00,COMMERCIAL SUPPLIER 
 15-11-2023,People - Ageing Well,Matrix SCM Ltd,Agency Staff,1241.28,0.00,COMMERCIAL SUPPLIER 
 15-11-2023,People - Ageing Well,Matrix SCM Ltd,Agency Staff,1241.28,0.00,COMMERCIAL SUPPLIER 
 15-11-2023,People - Ageing Well,Matrix SCM Ltd,Agency Staff,1241.28,0.00,COMMERCIAL SUPPLIER 
 15-11-2023,People - Ageing Well,Matrix SCM Ltd,Agency Staff,1241.28,0.00,COMMERCIAL SUPPLIER 
 15-11-2023,People - Ageing Well,Matrix SCM Ltd,Agency Staff,1241.28,0.00,COMMERCIAL SUPPLIER 
 22-11-2023,People - Ageing Well,Matrix SCM Ltd,Agency Staff,1241.28,0.00,COMMERCIAL SUPPLIER 
 22-11-2023,People - Ageing Well,Matrix SCM Ltd,Agency Staff,1241.28,0.00,COMMERCIAL SUPPLIER 
 22-11-2023,People - Ageing Well,Matrix SCM Ltd,Agency Staff,1241.28,0.00,COMMERCIAL SUPPLIER 
 22-11-2023,People - Ageing Well,Matrix SCM Ltd,Agency Staff,1241.28,0.00,COMMERCIAL SUPPLIER 
 22-11-2023,People - Ageing Well,Matrix SCM Ltd,Agency Staff,1241.28,0.00,COMMERCIAL SUPPLIER 
 22-11-2023,People - Ageing Well,Matrix SCM Ltd,Agency Staff,1241.28,0.00,COMMERCIAL SUPPLIER 
 29-11-2023,People - Ageing Well,Matrix SCM Ltd,Agency Staff,1241.28,0.00,COMMERCIAL SUPPLIER 
 29-11-2023,People - Ageing Well,Matrix SCM Ltd,Agency Staff,1241.28,0.00,COMMERCIAL SUPPLIER 
 29-11-2023,People - Ageing Well,Matrix SCM Ltd,Agency Staff,1241.28,0.00,COMMERCIAL SUPPLIER 
 29-11-2023,People - Ageing Well,Matrix SCM Ltd,Agency Staff,1241.28,0.00,COMMERCIAL SUPPLIER 
 29-11-2023,People - Ageing Well,Matrix SCM Ltd,Agency Staff,1241.28,0.00,COMMERCIAL SUPPLIER 
 29-11-2023,People - Ageing Well,Matrix SCM Ltd,Agency Staff,1241.28,0.00,COMMERCIAL SUPPLIER 
 07-11-2023,People - Ageing Well,Livingstone Health Care Services,Home Care - Private Contractors Payment,1242.01,0.00,COMMERCIAL SUPPLIER 
 10-11-2023,People - Ageing Well,Homestead Care Service,Home Care - Private Contractors Payment,1242.01,0.00,COMMERCIAL SUPPLIER 
 14-11-2023,People - Ageing Well,Cera Care Operations Ltd,Home Care - Private Contractors Payment,1242.01,0.00,COMMERCIAL SUPPLIER 
 10-11-2023,People - Ageing Well,Homestead Care Service,Home Care - Private Contractors Payment,1242.38,0.00,COMMERCIAL SUPPLIER 
 10-11-2023,People - Ageing Well,Homestead Care Service,Home Care - Private Contractors Payment,1242.74,0.00,COMMERCIAL SUPPLIER 
 17-11-2023,People - Ageing Well,Lodge Group Care UK Ltd,Home Care - Private Contractors Payment,1242.74,0.00,COMMERCIAL SUPPLIER 
 08-11-2023,People - Ageing Well,Prestige Care & Support Ltd,Home Care - Private Contractors Payment,1243.10,0.00,COMMERCIAL SUPPLIER 
 09-11-2023,People - Ageing Well,Prior Care Ltd_a,Home Care - Private Contractors Payment,1243.83,0.00,COMMERCIAL SUPPLIER 
 08-11-2023,People - Ageing Well,Morepower Ltd t/a Aqs Homecare,Home Care - Private Contractors Payment,1244.20,0.00,COMMERCIAL SUPPLIER 
 10-11-2023,People - Ageing Well,Homestead Care Service,Home Care - Private Contractors Payment,1244.56,0.00,COMMERCIAL SUPPLIER 
 14-11-2023,People - Ageing Well,Home Support Services (Havering & Essex) Ltd,Home Care - Private Contractors Payment,1244.56,0.00,COMMERCIAL SUPPLIER 
 17-11-2023,People - Ageing Well,Lodge Group Care UK Ltd,Home Care - Private Contractors Payment,1244.92,0.00,COMMERCIAL SUPPLIER 
 08-11-2023,People - Ageing Well,Morepower Ltd t/a Aqs Homecare,Home Care - Private Contractors Payment,1245.29,0.00,COMMERCIAL SUPPLIER 
 17-11-2023,People - Ageing Well,Lodge Group Care UK Ltd,Home Care - Private Contractors Payment,1245.64,0.00,COMMERCIAL SUPPLIER 
 10-11-2023,People - Ageing Well,Home Sweet Home Care Ltd,Home Care - Private Contractors Payment,1245.65,0.00,COMMERCIAL SUPPLIER 
 08-11-2023,People - Ageing Well,Morepower Ltd t/a Aqs Homecare,Home Care - Private Contractors Payment,1246.02,0.00,COMMERCIAL SUPPLIER 
 08-11-2023,People - Ageing Well,Morepower Ltd t/a Aqs Homecare,Home Care - Private Contractors Payment,1246.38,0.00,COMMERCIAL SUPPLIER 
 10-11-2023,People - Ageing Well,Homestead Care Service,Home Care - Private Contractors Payment,1246.74,0.00,COMMERCIAL SUPPLIER 
 10-11-2023,People - Ageing Well,Home Sweet Home Care Ltd,Home Care - Private Contractors Payment,1246.74,0.00,COMMERCIAL SUPPLIER 
 09-11-2023,People - Ageing Well,Prior Care Ltd_a,Home Care - Private Contractors Payment,1246.75,0.00,COMMERCIAL SUPPLIER 
 17-11-2023,People - Ageing Well,DMP Healthcare (Cherry Orchard) Ltd,Nursing Homes - Private Contractors Payment,1247.52,0.00,COMMERCIAL SUPPLIER 
 17-11-2023,People - Ageing Well,DMP Healthcare (Cherry Orchard) Ltd,Nursing Homes - Private Contractors Payment,1247.52,0.00,COMMERCIAL SUPPLIER 
 08-11-2023,People - Ageing Well,Morepower Ltd t/a Aqs Homecare,Home Care - Private Contractors Payment,1248.20,0.00,COMMERCIAL SUPPLIER 
 10-11-2023,People - Ageing Well,Home Sweet Home Care Ltd,Home Care - Private Contractors Payment,1249.29,0.00,COMMERCIAL SUPPLIER 
 14-11-2023,People - Ageing Well,Home Support Services (Havering & Essex) Ltd,Home Care - Private Contractors Payment,1250.02,0.00,COMMERCIAL SUPPLIER 
 10-11-2023,People - Ageing Well,Homestead Care Service,Home Care - Private Contractors Payment,1251.11,0.00,COMMERCIAL SUPPLIER 
 16-11-2023,People - Ageing Well,Anytime Care 2020_a,Home Care - Private Contractors Payment,1251.47,0.00,COMMERCIAL SUPPLIER 
 01-11-2023,People - Ageing Well,Matrix SCM Ltd,Agency Staff,1252.11,0.00,COMMERCIAL SUPPLIER 
 09-11-2023,People - Ageing Well,Prior Care Ltd_a,Home Care - Private Contractors Payment,1252.20,0.00,COMMERCIAL SUPPLIER 
 17-11-2023,People - Ageing Well,Lodge Group Care UK Ltd,Home Care - Private Contractors Payment,1252.57,0.00,COMMERCIAL SUPPLIER 
 01-11-2023,People - Ageing Well,Matrix SCM Ltd,Agency Staff,1253.54,0.00,COMMERCIAL SUPPLIER 
 08-11-2023,People - Ageing Well,Matrix SCM Ltd,Agency Staff,1253.54,0.00,COMMERCIAL SUPPLIER 
 15-11-2023,People - Ageing Well,Matrix SCM Ltd,Agency Staff,1253.54,0.00,COMMERCIAL SUPPLIER 
 22-11-2023,People - Ageing Well,Matrix SCM Ltd,Agency Staff,1253.54,0.00,COMMERCIAL SUPPLIER 
 29-11-2023,People - Ageing Well,Matrix SCM Ltd,Agency Staff,1253.54,0.00,COMMERCIAL SUPPLIER 
 10-11-2023,People - Ageing Well,Homestead Care Service,Home Care - Private Contractors Payment,1254.02,0.00,COMMERCIAL SUPPLIER 
 10-11-2023,People - Ageing Well,Home Sweet Home Care Ltd,Home Care - Private Contractors Payment,1254.39,0.00,COMMERCIAL SUPPLIER 
 14-11-2023,People - Ageing Well,Home Support Services (Havering & Essex) Ltd,Home Care - Private Contractors Payment,1254.39,0.00,COMMERCIAL SUPPLIER 
 09-11-2023,People - Ageing Well,Prior Care Ltd_a,Home Care - Private Contractors Payment,1255.12,0.00,COMMERCIAL SUPPLIER 
 17-11-2023,People - Ageing Well,Lodge Group Care UK Ltd,Home Care - Private Contractors Payment,1255.12,0.00,COMMERCIAL SUPPLIER 
 10-11-2023,People - Ageing Well,Home Sweet Home Care Ltd,Home Care - Private Contractors Payment,1256.21,0.00,COMMERCIAL SUPPLIER 
 17-11-2023,People - Ageing Well,Lodge Group Care UK Ltd,Home Care - Private Contractors Payment,1256.94,0.00,COMMERCIAL SUPPLIER 
 17-11-2023,People - Ageing Well,Lodge Group Care UK Ltd,Home Care - Private Contractors Payment,1256.94,0.00,COMMERCIAL SUPPLIER 
 08-11-2023,People - Ageing Well,Morepower Ltd t/a Aqs Homecare,Home Care - Private Contractors Payment,1257.30,0.00,COMMERCIAL SUPPLIER 
 10-11-2023,People - Ageing Well,Home Sweet Home Care Ltd,Home Care - Private Contractors Payment,1257.66,0.00,COMMERCIAL SUPPLIER 
 08-11-2023,People - Ageing Well,Prestige Care & Support Ltd,Home Care - Private Contractors Payment,1258.03,0.00,COMMERCIAL SUPPLIER 
 10-11-2023,People - Ageing Well,Homestead Care Service,Home Care - Private Contractors Payment,1258.39,0.00,COMMERCIAL SUPPLIER 
 17-11-2023,People - Ageing Well,Lodge Group Care UK Ltd,Home Care - Private Contractors Payment,1258.76,0.00,COMMERCIAL SUPPLIER 
 14-11-2023,People - Ageing Well,Home Support Services (Havering & Essex) Ltd,Home Care - Private Contractors Payment,1259.12,0.00,COMMERCIAL SUPPLIER 
 17-11-2023,People - Ageing Well,Lodge Group Care UK Ltd,Home Care - Private Contractors Payment,1259.12,0.00,COMMERCIAL SUPPLIER 
 06-11-2023,People - Ageing Well,Hospiva Care & Associates Agency Ltd_a,Home Care - Private Contractors Payment,1260.21,0.00,COMMERCIAL SUPPLIER 
 01-11-2023,People - Ageing Well,Matrix SCM Ltd,Agency Staff,1261.74,0.00,COMMERCIAL SUPPLIER 
 15-11-2023,People - Ageing Well,Matrix SCM Ltd,Agency Staff,1261.74,0.00,COMMERCIAL SUPPLIER 
 15-11-2023,People - Ageing Well,Matrix SCM Ltd,Agency Staff,1261.74,0.00,COMMERCIAL SUPPLIER 
 22-11-2023,People - Ageing Well,Matrix SCM Ltd,Agency Staff,1261.74,0.00,COMMERCIAL SUPPLIER 
 29-11-2023,People - Ageing Well,Matrix SCM Ltd,Agency Staff,1261.74,0.00,COMMERCIAL SUPPLIER 
 08-11-2023,People - Ageing Well,Prestige Care & Support Ltd,Home Care - Private Contractors Payment,1262.40,0.00,COMMERCIAL SUPPLIER 
 08-11-2023,People - Ageing Well,Morepower Ltd t/a Aqs Homecare,Home Care - Private Contractors Payment,1263.49,0.00,COMMERCIAL SUPPLIER 
 07-11-2023,People - Ageing Well,Livingstone Health Care Services,Home Care - Private Contractors Payment,1263.85,0.00,COMMERCIAL SUPPLIER 
 14-11-2023,People - Ageing Well,Home Support Services (Havering & Essex) Ltd,Home Care - Private Contractors Payment,1264.22,0.00,COMMERCIAL SUPPLIER 
 08-11-2023,People - Ageing Well,Livingstone Health Care Services,Home Care - Private Contractors Payment,1264.55,0.00,COMMERCIAL SUPPLIER 
 15-11-2023,People - Ageing Well,Livingstone Health Care Services,Home Care - Private Contractors Payment,1264.94,0.00,COMMERCIAL SUPPLIER 
 15-11-2023,People - Ageing Well,John Stanleys Care Agency Ltd,Home Care - Private Contractors Payment,1265.31,0.00,COMMERCIAL SUPPLIER 
 08-11-2023,People - Ageing Well,Morepower Ltd t/a Aqs Homecare,Home Care - Private Contractors Payment,1265.67,0.00,COMMERCIAL SUPPLIER 
 17-11-2023,People - Ageing Well,St Michaels Homes Ltd,Residential Placements - Private Contractors Payment,1266.43,0.00,COMMERCIAL SUPPLIER 
 17-11-2023,People - Ageing Well,Lodge Group Care UK Ltd,Home Care - Private Contractors Payment,1266.76,0.00,COMMERCIAL SUPPLIER 
 17-11-2023,People - Ageing Well,Lodge Group Care UK Ltd,Home Care - Private Contractors Payment,1266.76,0.00,COMMERCIAL SUPPLIER 
 08-11-2023,People - Ageing Well,Morepower Ltd t/a Aqs Homecare,Home Care - Private Contractors Payment,1266.77,0.00,COMMERCIAL SUPPLIER 
 20-11-2023,People - Ageing Well,Livingstone Health Care Services,Home Care - Private Contractors Payment,1267.49,0.00,COMMERCIAL SUPPLIER 
 20-11-2023,People - Ageing Well,Livingstone Health Care Services,Home Care - Private Contractors Payment,1267.86,0.00,COMMERCIAL SUPPLIER 
 08-11-2023,People - Ageing Well,Livingstone Health Care Services,Home Care - Private Contractors Payment,1268.58,0.00,COMMERCIAL SUPPLIER 
 17-11-2023,People - Ageing Well,Ashgate House Ltd_a,Residential Placements - Private Contractors Payment,1269.24,0.00,COMMERCIAL SUPPLIER 
 17-11-2023,People - Ageing Well,Footsteps Support Ltd_a,Supported Other Accommodation - Private Contractors Payment,1270.08,0.00,COMMERCIAL SUPPLIER 
 14-11-2023,People - Ageing Well,Home Support Services (Havering & Essex) Ltd,Home Care - Private Contractors Payment,1270.40,0.00,COMMERCIAL SUPPLIER 
 20-11-2023,People - Ageing Well,Livingstone Health Care Services,Home Care - Private Contractors Payment,1272.22,0.00,COMMERCIAL SUPPLIER 
 14-11-2023,People - Ageing Well,Cera Care Operations Ltd,Home Care - Private Contractors Payment,1274.04,0.00,COMMERCIAL SUPPLIER 
 14-11-2023,People - Ageing Well,Home Support Services (Havering & Essex) Ltd,Home Care - Private Contractors Payment,1274.04,0.00,COMMERCIAL SUPPLIER 
 01-11-2023,People - Ageing Well,Matrix SCM Ltd,Agency Staff,1274.05,0.00,COMMERCIAL SUPPLIER 
 08-11-2023,People - Ageing Well,Matrix SCM Ltd,Agency Staff,1274.05,0.00,COMMERCIAL SUPPLIER 
 15-11-2023,People - Ageing Well,Matrix SCM Ltd,Agency Staff,1274.05,0.00,COMMERCIAL SUPPLIER 
 22-11-2023,People - Ageing Well,Matrix SCM Ltd,Agency Staff,1274.05,0.00,COMMERCIAL SUPPLIER 
 29-11-2023,People - Ageing Well,Matrix SCM Ltd,Agency Staff,1274.05,0.00,COMMERCIAL SUPPLIER 
 10-11-2023,People - Ageing Well,Homestead Care Service,Home Care - Private Contractors Payment,1275.14,0.00,COMMERCIAL SUPPLIER 
 01-11-2023,People - Ageing Well,Matrix SCM Ltd,Agency Staff,1275.49,0.00,COMMERCIAL SUPPLIER 
 01-11-2023,People - Ageing Well,Matrix SCM Ltd,Agency Staff,1275.49,0.00,COMMERCIAL SUPPLIER 
 08-11-2023,People - Ageing Well,Matrix SCM Ltd,Agency Staff,1275.49,0.00,COMMERCIAL SUPPLIER 
 15-11-2023,People - Ageing Well,Matrix SCM Ltd,Agency Staff,1275.49,0.00,COMMERCIAL SUPPLIER 
 15-11-2023,People - Ageing Well,Matrix SCM Ltd,Agency Staff,1275.49,0.00,COMMERCIAL SUPPLIER 
 15-11-2023,People - Ageing Well,Matrix SCM Ltd,Agency Staff,1275.49,0.00,COMMERCIAL SUPPLIER 
 22-11-2023,People - Ageing Well,Matrix SCM Ltd,Agency Staff,1275.49,0.00,COMMERCIAL SUPPLIER 
 29-11-2023,People - Ageing Well,Matrix SCM Ltd,Agency Staff,1275.49,0.00,COMMERCIAL SUPPLIER 
 29-11-2023,People - Ageing Well,Matrix SCM Ltd,Agency Staff,1275.49,0.00,COMMERCIAL SUPPLIER 
 13-11-2023,People - Ageing Well,Livingstone Health Care Services,Home Care - Private Contractors Payment,1275.86,0.00,COMMERCIAL SUPPLIER 
 14-11-2023,People - Ageing Well,Home Support Services (Havering & Essex) Ltd,Home Care - Private Contractors Payment,1275.86,0.00,COMMERCIAL SUPPLIER 
 17-11-2023,People - Ageing Well,Quality Healthcare Solutions Ltd t/a Kare Plus Romford,Home Care - Private Contractors Payment,1276.22,0.00,COMMERCIAL SUPPLIER 
 14-11-2023,People - Ageing Well,Cera Care Operations Ltd,Home Care - Private Contractors Payment,1276.96,0.00,COMMERCIAL SUPPLIER 
 16-11-2023,People - Ageing Well,Anytime Care 2020_a,Home Care - Private Contractors Payment,1276.96,0.00,COMMERCIAL SUPPLIER 
 08-11-2023,People - Ageing Well,Matrix SCM Ltd,Agency Staff,1277.28,0.00,COMMERCIAL SUPPLIER 
 15-11-2023,People - Ageing Well,Matrix SCM Ltd,Agency Staff,1277.28,0.00,COMMERCIAL SUPPLIER 
 29-11-2023,People - Ageing Well,Matrix SCM Ltd,Agency Staff,1277.28,0.00,COMMERCIAL SUPPLIER 
 13-11-2023,People - Ageing Well,Livingstone Health Care Services,Home Care - Private Contractors Payment,1280.60,0.00,COMMERCIAL SUPPLIER 
 13-11-2023,People - Ageing Well,Livingstone Health Care Services,Home Care - Private Contractors Payment,1280.96,0.00,COMMERCIAL SUPPLIER 
 08-11-2023,People - Ageing Well,Livingstone Health Care Services,Home Care - Private Contractors Payment,1281.69,0.00,COMMERCIAL SUPPLIER 
 01-11-2023,People - Ageing Well,Matrix SCM Ltd,Agency Staff,1283.04,0.00,COMMERCIAL SUPPLIER 
 08-11-2023,People - Ageing Well,Matrix SCM Ltd,Agency Staff,1283.04,0.00,COMMERCIAL SUPPLIER 
 22-11-2023,People - Ageing Well,Matrix SCM Ltd,Agency Staff,1283.04,0.00,COMMERCIAL SUPPLIER 
 22-11-2023,People - Ageing Well,Matrix SCM Ltd,Agency Staff,1283.04,0.00,COMMERCIAL SUPPLIER 
 29-11-2023,People - Ageing Well,Matrix SCM Ltd,Agency Staff,1283.04,0.00,COMMERCIAL SUPPLIER 
 14-11-2023,People - Ageing Well,Care-Away Ltd T/A Care Support,Home Care - Private Contractors Payment,1283.80,0.00,COMMERCIAL SUPPLIER 
 16-11-2023,People - Ageing Well,Care-Away Ltd T/A Care Support,Home Care - Private Contractors Payment,1283.80,0.00,COMMERCIAL SUPPLIER 
 08-11-2023,People - Ageing Well,Prestige Care & Support Ltd,Home Care - Private Contractors Payment,1283.87,0.00,COMMERCIAL SUPPLIER 
 08-11-2023,People - Ageing Well,Livingstone Health Care Services,Home Care - Private Contractors Payment,1284.24,0.00,COMMERCIAL SUPPLIER 
 15-11-2023,People - Ageing Well,John Stanleys Care Agency Ltd,Home Care - Private Contractors Payment,1284.96,0.00,COMMERCIAL SUPPLIER 
 17-11-2023,People - Ageing Well,Lodge Lane Care Home Limited,Respite Care - Private Contractors Payment,1285.71,0.00,COMMERCIAL SUPPLIER 
 17-11-2023,People - Ageing Well,Lodge Lane Care Home Limited,Respite Care - Private Contractors Payment,1285.71,0.00,COMMERCIAL SUPPLIER 
 08-11-2023,People - Ageing Well,Morepower Ltd t/a Aqs Homecare,Home Care - Private Contractors Payment,1286.42,0.00,COMMERCIAL SUPPLIER 
 08-11-2023,People - Ageing Well,Morepower Ltd t/a Aqs Homecare,Home Care - Private Contractors Payment,1287.51,0.00,COMMERCIAL SUPPLIER 
 01-11-2023,People - Ageing Well,Matrix SCM Ltd,Agency Staff,1288.10,0.00,COMMERCIAL SUPPLIER 
 01-11-2023,People - Ageing Well,Matrix SCM Ltd,Agency Staff,1288.10,0.00,COMMERCIAL SUPPLIER 
 01-11-2023,People - Ageing Well,Matrix SCM Ltd,Agency Staff,1288.10,0.00,COMMERCIAL SUPPLIER 
 08-11-2023,People - Ageing Well,Matrix SCM Ltd,Agency Staff,1288.10,0.00,COMMERCIAL SUPPLIER 
 15-11-2023,People - Ageing Well,Matrix SCM Ltd,Agency Staff,1288.10,0.00,COMMERCIAL SUPPLIER 
 15-11-2023,People - Ageing Well,Matrix SCM Ltd,Agency Staff,1288.10,0.00,COMMERCIAL SUPPLIER 
 22-11-2023,People - Ageing Well,Matrix SCM Ltd,Agency Staff,1288.10,0.00,COMMERCIAL SUPPLIER 
 22-11-2023,People - Ageing Well,Matrix SCM Ltd,Agency Staff,1288.10,0.00,COMMERCIAL SUPPLIER 
 22-11-2023,People - Ageing Well,Matrix SCM Ltd,Agency Staff,1288.10,0.00,COMMERCIAL SUPPLIER 
 29-11-2023,People - Ageing Well,Matrix SCM Ltd,Agency Staff,1288.10,0.00,COMMERCIAL SUPPLIER 
 29-11-2023,People - Ageing Well,Matrix SCM Ltd,Agency Staff,1288.10,0.00,COMMERCIAL SUPPLIER 
 01-11-2023,People - Ageing Well,Matrix SCM Ltd,Agency Staff,1288.45,0.00,COMMERCIAL SUPPLIER 
 15-11-2023,People - Ageing Well,Matrix SCM Ltd,Agency Staff,1288.45,0.00,COMMERCIAL SUPPLIER 
 15-11-2023,People - Ageing Well,Matrix SCM Ltd,Agency Staff,1288.45,0.00,COMMERCIAL SUPPLIER 
 22-11-2023,People - Ageing Well,Matrix SCM Ltd,Agency Staff,1288.45,0.00,COMMERCIAL SUPPLIER 
 29-11-2023,People - Ageing Well,Matrix SCM Ltd,Agency Staff,1288.45,0.00,COMMERCIAL SUPPLIER 
 08-11-2023,People - Ageing Well,Livingstone Health Care Services,Home Care - Private Contractors Payment,1289.70,0.00,COMMERCIAL SUPPLIER 
 13-11-2023,People - Ageing Well,Livingstone Health Care Services,Home Care - Private Contractors Payment,1291.88,0.00,COMMERCIAL SUPPLIER 
 03-11-2023,People - Ageing Well,Livingstone Health Care Services,Home Care - Private Contractors Payment,1292.61,0.00,COMMERCIAL SUPPLIER 
 03-11-2023,People - Ageing Well,Livingstone Health Care Services,Home Care - Private Contractors Payment,1294.06,0.00,COMMERCIAL SUPPLIER 
 03-11-2023,People - Ageing Well,Livingstone Health Care Services,Home Care - Private Contractors Payment,1294.79,0.00,COMMERCIAL SUPPLIER 
 10-11-2023,People - Ageing Well,Homestead Care Service,Home Care - Private Contractors Payment,1297.70,0.00,COMMERCIAL SUPPLIER 
 10-11-2023,People - Ageing Well,Homestead Care Service,Home Care - Private Contractors Payment,1297.70,0.00,COMMERCIAL SUPPLIER 
 14-11-2023,People - Ageing Well,Cera Care Operations Ltd,Home Care - Private Contractors Payment,1300.98,0.00,COMMERCIAL SUPPLIER 
 15-11-2023,People - Ageing Well,John Stanleys Care Agency Ltd,Home Care - Private Contractors Payment,1303.50,0.00,COMMERCIAL SUPPLIER 
 10-11-2023,People - Ageing Well,Homestead Care Service,Home Care - Private Contractors Payment,1303.89,0.00,COMMERCIAL SUPPLIER 
 17-11-2023,People - Ageing Well,One Tree Estates Ltd t/a Ashbrook Nursing Home,Nursing Care Income,1304.88,0.00,COMMERCIAL SUPPLIER 
 17-11-2023,People - Ageing Well,One Tree Estates Ltd t/a Ashbrook Nursing Home,Nursing Care Income,1304.88,0.00,COMMERCIAL SUPPLIER 
 17-11-2023,People - Ageing Well,One Tree Estates Ltd t/a Ashbrook Nursing Home,Nursing Care Income,1304.88,0.00,COMMERCIAL SUPPLIER 
 17-11-2023,People - Ageing Well,One Tree Estates Ltd t/a Ashbrook Nursing Home,Nursing Care Income,1304.88,0.00,COMMERCIAL SUPPLIER 
 17-11-2023,People - Ageing Well,One Tree Estates Ltd t/a Ashbrook Nursing Home,Nursing Care Income,1304.88,0.00,COMMERCIAL SUPPLIER 
 17-11-2023,People - Ageing Well,One Tree Estates Ltd t/a Ashbrook Nursing Home,Nursing Care Income,1304.88,0.00,COMMERCIAL SUPPLIER 
 07-11-2023,People - Ageing Well,London Homecare Ltd,Home Care - Private Contractors Payment,1304.98,0.00,COMMERCIAL SUPPLIER 
 07-11-2023,People - Ageing Well,London Homecare Ltd,Home Care - Private Contractors Payment,1304.98,0.00,COMMERCIAL SUPPLIER 
 17-11-2023,People - Ageing Well,Independent Community Support Ltd t/a Wingletye Lodge ,Supported Other Accommodation - Private Contractors Payment,1306.36,0.00,COMMERCIAL SUPPLIER 
 14-11-2023,People - Ageing Well,Home Support Services (Havering & Essex) Ltd,Home Care - Private Contractors Payment,1308.26,0.00,COMMERCIAL SUPPLIER 
 10-11-2023,People - Ageing Well,Homestead Care Service,Home Care - Private Contractors Payment,1310.08,0.00,COMMERCIAL SUPPLIER 
 17-11-2023,People - Ageing Well,Achieve Together Ltd - Kingscroft,Supported Other Accommodation - Private Contractors Payment,1310.24,0.00,COMMERCIAL SUPPLIER 
 05-11-2023,People - Ageing Well,Personal Information - Redacted,Home Care - Private Contractors Payment,1310.40,0.00,INDIVIDUALS 
 16-11-2023,People - Ageing Well,Carers Trust East Midlands,Home Care - Private Contractors Payment,1310.41,0.00,COMMERCIAL SUPPLIER 
 07-11-2023,People - Ageing Well,Premier Carewaiting Ltd,Home Care - Private Contractors Payment,1310.44,0.00,COMMERCIAL SUPPLIER 
 13-11-2023,People - Ageing Well,Passion Tree Care Services Ltd,Home Care - Private Contractors Payment,1310.45,0.00,COMMERCIAL SUPPLIER 
 08-11-2023,People - Ageing Well,Morepower Ltd t/a Aqs Homecare,Home Care - Private Contractors Payment,1311.90,0.00,COMMERCIAL SUPPLIER 
 08-11-2023,People - Ageing Well,Morepower Ltd t/a Aqs Homecare,Home Care - Private Contractors Payment,1311.90,0.00,COMMERCIAL SUPPLIER 
 10-11-2023,People - Ageing Well,Homestead Care Service,Home Care - Private Contractors Payment,1314.45,0.00,COMMERCIAL SUPPLIER 
 10-11-2023,People - Ageing Well,Homestead Care Service,Home Care - Private Contractors Payment,1317.00,0.00,COMMERCIAL SUPPLIER 
 17-11-2023,People - Ageing Well,Lodge Group Care UK Ltd,Home Care - Private Contractors Payment,1318.45,0.00,COMMERCIAL SUPPLIER 
 10-11-2023,People - Ageing Well,Care-Away Ltd T/A Care Support,Home Care - Private Contractors Payment,1320.48,0.00,COMMERCIAL SUPPLIER 
 17-11-2023,People - Ageing Well,Lodge Group Care UK Ltd,Home Care - Private Contractors Payment,1321.00,0.00,COMMERCIAL SUPPLIER 
 14-11-2023,People - Ageing Well,Home Support Services (Havering & Essex) Ltd,Home Care - Private Contractors Payment,1322.82,0.00,COMMERCIAL SUPPLIER 
 29-11-2023,People - Ageing Well,Matrix SCM Ltd,Agency Staff,1323.36,0.00,COMMERCIAL SUPPLIER 
 14-11-2023,People - Ageing Well,Westminster Homecare Ltd_a,Home Care - Private Contractors Payment,1325.00,0.00,COMMERCIAL SUPPLIER 
 10-11-2023,People - Ageing Well,Homestead Care Service,Home Care - Private Contractors Payment,1325.37,0.00,COMMERCIAL SUPPLIER 
 08-11-2023,People - Ageing Well,Prestige Care & Support Ltd,Home Care - Private Contractors Payment,1327.19,0.00,COMMERCIAL SUPPLIER 
 10-11-2023,People - Ageing Well,Home Sweet Home Care Ltd,Home Care - Private Contractors Payment,1330.10,0.00,COMMERCIAL SUPPLIER 
 03-11-2023,People - Ageing Well,Livingstone Health Care Services,Home Care - Private Contractors Payment,1330.47,0.00,COMMERCIAL SUPPLIER 
 10-11-2023,People - Ageing Well,Homestead Care Service,Home Care - Private Contractors Payment,1331.56,0.00,COMMERCIAL SUPPLIER 
 07-11-2023,People - Ageing Well,Livingstone Health Care Services,Home Care - Private Contractors Payment,1334.47,0.00,COMMERCIAL SUPPLIER 
 10-11-2023,People - Ageing Well,Homestead Care Service,Home Care - Private Contractors Payment,1335.20,0.00,COMMERCIAL SUPPLIER 
 17-11-2023,People - Ageing Well,Langley House,Residential Placements - Private Contractors Payment,1335.71,0.00,COMMERCIAL SUPPLIER 
 15-11-2023,People - Ageing Well,John Stanleys Care Agency Ltd,Home Care - Private Contractors Payment,1335.92,0.00,COMMERCIAL SUPPLIER 
 10-11-2023,People - Ageing Well,Home Sweet Home Care Ltd,Home Care - Private Contractors Payment,1339.56,0.00,COMMERCIAL SUPPLIER 
 17-11-2023,People - Ageing Well,Lodge Group Care UK Ltd,Home Care - Private Contractors Payment,1343.21,0.00,COMMERCIAL SUPPLIER 
 17-11-2023,People - Ageing Well,Lodge Group Care UK Ltd,Home Care - Private Contractors Payment,1344.30,0.00,COMMERCIAL SUPPLIER 
 17-11-2023,People - Ageing Well,Quality Healthcare Solutions Ltd t/a Kare Plus Romford,Home Care - Private Contractors Payment,1344.30,0.00,COMMERCIAL SUPPLIER 
 10-11-2023,People - Ageing Well,Homestead Care Service,Home Care - Private Contractors Payment,1345.02,0.00,COMMERCIAL SUPPLIER 
 10-11-2023,People - Ageing Well,Home Sweet Home Care Ltd,Home Care - Private Contractors Payment,1345.39,0.00,COMMERCIAL SUPPLIER 
 16-11-2023,People - Ageing Well,Anytime Care 2020_a,Home Care - Private Contractors Payment,1347.21,0.00,COMMERCIAL SUPPLIER 
 10-11-2023,People - Ageing Well,Home Sweet Home Care Ltd,Home Care - Private Contractors Payment,1347.57,0.00,COMMERCIAL SUPPLIER 
 14-11-2023,People - Ageing Well,Cera Care Operations Ltd,Home Care - Private Contractors Payment,1348.30,0.00,COMMERCIAL SUPPLIER 
 16-11-2023,People - Ageing Well,Anytime Care 2020_a,Home Care - Private Contractors Payment,1348.30,0.00,COMMERCIAL SUPPLIER 
 08-11-2023,People - Ageing Well,Morepower Ltd t/a Aqs Homecare,Home Care - Private Contractors Payment,1352.30,0.00,COMMERCIAL SUPPLIER 
 08-11-2023,People - Ageing Well,Morepower Ltd t/a Aqs Homecare,Home Care - Private Contractors Payment,1352.30,0.00,COMMERCIAL SUPPLIER 
 13-11-2023,People - Ageing Well,Livingstone Health Care Services,Home Care - Private Contractors Payment,1354.12,0.00,COMMERCIAL SUPPLIER 
 14-11-2023,People - Ageing Well,Cera Care Operations Ltd,Home Care - Private Contractors Payment,1356.67,0.00,COMMERCIAL SUPPLIER 
 14-11-2023,People - Ageing Well,Care-Away Ltd T/A Care Support,Home Care - Private Contractors Payment,1357.16,0.00,COMMERCIAL SUPPLIER 
 06-11-2023,People - Ageing Well,Bluebird Care Havering,Home Care - Private Contractors Payment,1357.52,0.00,COMMERCIAL SUPPLIER 
 20-11-2023,People - Ageing Well,Bluebird Care Havering,Home Care - Private Contractors Payment,1357.52,0.00,COMMERCIAL SUPPLIER 
 14-11-2023,People - Ageing Well,Home Support Services (Havering & Essex) Ltd,Home Care - Private Contractors Payment,1357.76,0.00,COMMERCIAL SUPPLIER 
 17-11-2023,People - Ageing Well,Lodge Group Care UK Ltd,Home Care - Private Contractors Payment,1358.49,0.00,COMMERCIAL SUPPLIER 
 10-11-2023,People - Ageing Well,Home Sweet Home Care Ltd,Home Care - Private Contractors Payment,1358.85,0.00,COMMERCIAL SUPPLIER 
 17-11-2023,People - Ageing Well,Lodge Group Care UK Ltd,Home Care - Private Contractors Payment,1360.31,0.00,COMMERCIAL SUPPLIER 
 14-11-2023,People - Ageing Well,Cera Care Operations Ltd,Home Care - Private Contractors Payment,1361.04,0.00,COMMERCIAL SUPPLIER 
 10-11-2023,People - Ageing Well,Homestead Care Service,Home Care - Private Contractors Payment,1364.32,0.00,COMMERCIAL SUPPLIER 
 07-11-2023,People - Ageing Well,Livingstone Health Care Services,Home Care - Private Contractors Payment,1366.84,0.00,COMMERCIAL SUPPLIER 
 15-11-2023,People - Ageing Well,Livingstone Health Care Services,Home Care - Private Contractors Payment,1368.68,0.00,COMMERCIAL SUPPLIER 
 14-11-2023,People - Ageing Well,Home Support Services (Havering & Essex) Ltd,Home Care - Private Contractors Payment,1370.50,0.00,COMMERCIAL SUPPLIER 
 17-11-2023,People - Ageing Well,Lodge Group Care UK Ltd,Home Care - Private Contractors Payment,1371.23,0.00,COMMERCIAL SUPPLIER 
 15-11-2023,People - Ageing Well,John Stanleys Care Agency Ltd,Home Care - Private Contractors Payment,1372.32,0.00,COMMERCIAL SUPPLIER 
 10-11-2023,People - Ageing Well,Homestead Care Service,Home Care - Private Contractors Payment,1373.05,0.00,COMMERCIAL SUPPLIER 
 15-11-2023,People - Ageing Well,John Stanleys Care Agency Ltd,Home Care - Private Contractors Payment,1373.42,0.00,COMMERCIAL SUPPLIER 
 17-11-2023,People - Ageing Well,Lodge Group Care UK Ltd,Home Care - Private Contractors Payment,1373.78,0.00,COMMERCIAL SUPPLIER 
 07-11-2023,People - Ageing Well,Premier Carewaiting Ltd,Home Care - Private Contractors Payment,1375.95,0.00,COMMERCIAL SUPPLIER 
 05-11-2023,People - Ageing Well,Personal Information - Redacted,Home Care - Private Contractors Payment,1375.96,0.00,INDIVIDUALS 
 07-11-2023,People - Ageing Well,London Homecare Ltd,Home Care - Private Contractors Payment,1375.96,0.00,COMMERCIAL SUPPLIER 
 07-11-2023,People - Ageing Well,London Homecare Ltd,Home Care - Private Contractors Payment,1375.96,0.00,COMMERCIAL SUPPLIER 
 07-11-2023,People - Ageing Well,London Homecare Ltd,Home Care - Private Contractors Payment,1375.96,0.00,COMMERCIAL SUPPLIER 
 13-11-2023,People - Ageing Well,Outreach Support Services Ltd,Home Care - Private Contractors Payment,1375.96,0.00,COMMERCIAL SUPPLIER 
 13-11-2023,People - Ageing Well,Outreach Support Services Ltd,Home Care - Private Contractors Payment,1375.96,0.00,COMMERCIAL SUPPLIER 
 13-11-2023,People - Ageing Well,Outreach Support Services Ltd,Home Care - Private Contractors Payment,1375.96,0.00,COMMERCIAL SUPPLIER 
 15-11-2023,People - Ageing Well,Livingstone Health Care Services,Home Care - Private Contractors Payment,1375.96,0.00,COMMERCIAL SUPPLIER 
 16-11-2023,People - Ageing Well,Inna Care Ltd,Home Care - Private Contractors Payment,1375.96,0.00,COMMERCIAL SUPPLIER 
 16-11-2023,People - Ageing Well,Inna Care Ltd,Home Care - Private Contractors Payment,1375.96,0.00,COMMERCIAL SUPPLIER 
 30-11-2023,People - Ageing Well,Crystalize Care Services Ltd,Home Care - Private Contractors Payment,1375.96,0.00,COMMERCIAL SUPPLIER 
 30-11-2023,People - Ageing Well,Crystalize Care Services Ltd,Home Care - Private Contractors Payment,1375.96,0.00,COMMERCIAL SUPPLIER 
 09-11-2023,People - Ageing Well,Mayflower Travel,Client Transport,1376.00,0.00,COMMERCIAL SUPPLIER 
 14-11-2023,People - Ageing Well,Cera Care Operations Ltd,Home Care - Private Contractors Payment,1377.41,0.00,COMMERCIAL SUPPLIER 
 10-11-2023,People - Ageing Well,Homestead Care Service,Home Care - Private Contractors Payment,1378.15,0.00,COMMERCIAL SUPPLIER 
 17-11-2023,People - Ageing Well,Quality Healthcare Solutions Ltd t/a Kare Plus Romford,Home Care - Private Contractors Payment,1379.97,0.00,COMMERCIAL SUPPLIER 
 07-11-2023,People - Ageing Well,Livingstone Health Care Services,Home Care - Private Contractors Payment,1380.70,0.00,COMMERCIAL SUPPLIER 
 15-11-2023,People - Ageing Well,John Stanleys Care Agency Ltd,Home Care - Private Contractors Payment,1381.43,0.00,COMMERCIAL SUPPLIER 
 15-11-2023,People - Ageing Well,John Stanleys Care Agency Ltd,Home Care - Private Contractors Payment,1382.88,0.00,COMMERCIAL SUPPLIER 
 01-11-2023,People - Ageing Well,Matrix SCM Ltd,Agency Staff,1384.58,0.00,COMMERCIAL SUPPLIER 
 08-11-2023,People - Ageing Well,Matrix SCM Ltd,Agency Staff,1384.58,0.00,COMMERCIAL SUPPLIER 
 15-11-2023,People - Ageing Well,Matrix SCM Ltd,Agency Staff,1384.58,0.00,COMMERCIAL SUPPLIER 
 22-11-2023,People - Ageing Well,Matrix SCM Ltd,Agency Staff,1384.58,0.00,COMMERCIAL SUPPLIER 
 29-11-2023,People - Ageing Well,Matrix SCM Ltd,Agency Staff,1384.58,0.00,COMMERCIAL SUPPLIER 
 01-11-2023,People - Ageing Well,Matrix SCM Ltd,Agency Staff,1385.28,0.00,COMMERCIAL SUPPLIER 
 08-11-2023,People - Ageing Well,Matrix SCM Ltd,Agency Staff,1385.28,0.00,COMMERCIAL SUPPLIER 
 22-11-2023,People - Ageing Well,Matrix SCM Ltd,Agency Staff,1385.28,0.00,COMMERCIAL SUPPLIER 
 22-11-2023,People - Ageing Well,Matrix SCM Ltd,Agency Staff,1385.28,0.00,COMMERCIAL SUPPLIER 
 29-11-2023,People - Ageing Well,Matrix SCM Ltd,Agency Staff,1385.28,0.00,COMMERCIAL SUPPLIER 
 13-11-2023,People - Ageing Well,Livingstone Health Care Services,Home Care - Private Contractors Payment,1388.34,0.00,COMMERCIAL SUPPLIER 
 14-11-2023,People - Ageing Well,Cera Care Operations Ltd,Home Care - Private Contractors Payment,1388.71,0.00,COMMERCIAL SUPPLIER 
 13-11-2023,People - Ageing Well,Livingstone Health Care Services,Home Care - Private Contractors Payment,1390.16,0.00,COMMERCIAL SUPPLIER 
 06-11-2023,People - Ageing Well,Hospiva Care & Associates Agency Ltd_a,Home Care - Private Contractors Payment,1391.25,0.00,COMMERCIAL SUPPLIER 
 06-11-2023,People - Ageing Well,Hospiva Care & Associates Agency Ltd_a,Home Care - Private Contractors Payment,1391.25,0.00,COMMERCIAL SUPPLIER 
 06-11-2023,People - Ageing Well,Hospiva Care & Associates Agency Ltd_a,Home Care - Private Contractors Payment,1391.98,0.00,COMMERCIAL SUPPLIER 
 06-11-2023,People - Ageing Well,Hospiva Care & Associates Agency Ltd_a,Home Care - Private Contractors Payment,1391.98,0.00,COMMERCIAL SUPPLIER 
 10-11-2023,People - Ageing Well,Home Sweet Home Care Ltd,Home Care - Private Contractors Payment,1392.71,0.00,COMMERCIAL SUPPLIER 
 01-11-2023,People - Ageing Well,Matrix SCM Ltd,Agency Staff,1395.73,0.00,COMMERCIAL SUPPLIER 
 15-11-2023,People - Ageing Well,Matrix SCM Ltd,Agency Staff,1395.73,0.00,COMMERCIAL SUPPLIER 
 15-11-2023,People - Ageing Well,Matrix SCM Ltd,Agency Staff,1395.73,0.00,COMMERCIAL SUPPLIER 
 22-11-2023,People - Ageing Well,Matrix SCM Ltd,Agency Staff,1395.73,0.00,COMMERCIAL SUPPLIER 
 29-11-2023,People - Ageing Well,Matrix SCM Ltd,Agency Staff,1395.73,0.00,COMMERCIAL SUPPLIER 
 14-11-2023,People - Ageing Well,Westminster Homecare Ltd_a,Home Care - Private Contractors Payment,1397.44,0.00,COMMERCIAL SUPPLIER 
 05-11-2023,People - Ageing Well,Personal Information - Redacted,Home Care - Private Contractors Payment,1397.81,0.00,INDIVIDUALS 
 08-11-2023,People - Ageing Well,Prestige Care & Support Ltd,Home Care - Private Contractors Payment,1397.81,0.00,COMMERCIAL SUPPLIER 
 15-11-2023,People - Ageing Well,John Stanleys Care Agency Ltd,Home Care - Private Contractors Payment,1398.16,0.00,COMMERCIAL SUPPLIER 
 06-11-2023,People - Ageing Well,Hospiva Care & Associates Agency Ltd_a,Home Care - Private Contractors Payment,1399.26,0.00,COMMERCIAL SUPPLIER 
 06-11-2023,People - Ageing Well,Hospiva Care & Associates Agency Ltd_a,Home Care - Private Contractors Payment,1399.26,0.00,COMMERCIAL SUPPLIER 
 17-11-2023,People - Ageing Well,Independant Community Support Ltd T/A Heaton Lodge,Supported Other Accommodation - Private Contractors Payment,1399.68,0.00,COMMERCIAL SUPPLIER 
 17-11-2023,People - Ageing Well,Genesis Residential Homes Ltd - Dothan House,Respite Care - Private Contractors Payment,1401.20,0.00,COMMERCIAL SUPPLIER 
 17-11-2023,People - Ageing Well,Rosebuds Supported Living Ltd,Supported Other Accommodation - Private Contractors Payment,1406.88,0.00,COMMERCIAL SUPPLIER 
 08-11-2023,People - Ageing Well,Livingstone Health Care Services,Home Care - Private Contractors Payment,1406.90,0.00,COMMERCIAL SUPPLIER 
 08-11-2023,People - Ageing Well,Livingstone Health Care Services,Home Care - Private Contractors Payment,1407.24,0.00,COMMERCIAL SUPPLIER 
 08-11-2023,People - Ageing Well,Livingstone Health Care Services,Home Care - Private Contractors Payment,1407.27,0.00,COMMERCIAL SUPPLIER 
 10-11-2023,People - Ageing Well,Homestead Care Service,Home Care - Private Contractors Payment,1407.64,0.00,COMMERCIAL SUPPLIER 
 17-11-2023,People - Ageing Well,Ashgate House Ltd_a,Residential Placements - Private Contractors Payment,1408.12,0.00,COMMERCIAL SUPPLIER 
 20-11-2023,People - Ageing Well,Livingstone Health Care Services,Home Care - Private Contractors Payment,1410.91,0.00,COMMERCIAL SUPPLIER 
 17-11-2023,People - Ageing Well,Nightingale Residential Care Home Ltd,Residential Placements - Private Contractors Payment,1414.29,0.00,COMMERCIAL SUPPLIER 
 14-11-2023,People - Ageing Well,Home Support Services (Havering & Essex) Ltd,Home Care - Private Contractors Payment,1415.64,0.00,COMMERCIAL SUPPLIER 
 14-11-2023,People - Ageing Well,Home Support Services (Havering & Essex) Ltd,Home Care - Private Contractors Payment,1415.64,0.00,COMMERCIAL SUPPLIER 
 10-11-2023,People - Ageing Well,Homestead Care Service,Home Care - Private Contractors Payment,1418.90,0.00,COMMERCIAL SUPPLIER 
 07-11-2023,People - Ageing Well,London Homecare Ltd,Home Care - Private Contractors Payment,1419.63,0.00,COMMERCIAL SUPPLIER 
 29-11-2023,People - Ageing Well,Matrix SCM Ltd,Agency Staff,1420.89,0.00,COMMERCIAL SUPPLIER 
 15-11-2023,People - Ageing Well,Matrix SCM Ltd,Agency Staff,1420.90,0.00,COMMERCIAL SUPPLIER 
 22-11-2023,People - Ageing Well,Matrix SCM Ltd,Agency Staff,1420.90,0.00,COMMERCIAL SUPPLIER 
 10-11-2023,People - Ageing Well,Homestead Care Service,Home Care - Private Contractors Payment,1423.28,0.00,COMMERCIAL SUPPLIER 
 14-11-2023,People - Ageing Well,Westminster Homecare Ltd_a,Home Care - Private Contractors Payment,1423.29,0.00,COMMERCIAL SUPPLIER 
 08-11-2023,People - Ageing Well,London Care Plc_a,Home Care - Private Contractors Payment,1434.93,0.00,COMMERCIAL SUPPLIER 
 08-11-2023,People - Ageing Well,London Care Plc_a,Home Care - Private Contractors Payment,1438.21,0.00,COMMERCIAL SUPPLIER 
 17-11-2023,People - Ageing Well,Moreland House_a,Nursing Homes - Private Contractors Payment,1440.00,0.00,COMMERCIAL SUPPLIER 
 17-11-2023,People - Ageing Well,Bettertogether Limited,Supported Other Accommodation - Private Contractors Payment,1440.00,0.00,NON COMMERCIAL SUPPLIER 
 07-11-2023,People - Ageing Well,London Homecare Ltd,Home Care - Private Contractors Payment,1441.47,0.00,COMMERCIAL SUPPLIER 
 14-11-2023,People - Ageing Well,Home Support Services (Havering & Essex) Ltd,Home Care - Private Contractors Payment,1441.48,0.00,COMMERCIAL SUPPLIER 
 14-11-2023,People - Ageing Well,Westminster Homecare Ltd_a,Home Care - Private Contractors Payment,1442.94,0.00,COMMERCIAL SUPPLIER 
 03-11-2023,People - Ageing Well,Bettertogether Limited,Supported Other Accommodation - Private Contractors Payment,1444.39,0.00,NON COMMERCIAL SUPPLIER 
 08-11-2023,People - Ageing Well,Morepower Ltd t/a Aqs Homecare,Home Care - Private Contractors Payment,1448.40,0.00,COMMERCIAL SUPPLIER 
